Workbook

Sheet FOOD MASTER
B1: ROSWELL INDEPENDENT SCHOOL DISTRICT | I1: Vendor Name: | L1: RISD
B2: CAFETERIA FOOD BID 20-10 FOR SCHOOL YEAR 2020-21 | I2: Vendor Contact
B3: MUST BE RECEIVED BY MAY 7, 2020 ON CD-R OR FLASH DRIVE SEALED WITH SUPPORTING DOCUMENTS | I3: Date | L3: 2020-05-20
B4: ITEM | C4: STOCK ID | D4: ITEM | E4: DESCRIPTION | F4: Approved Brand | G4: Product Code or UPC | H4: BID UNIT | I4: CASE PACK | K4: EST USAGE | L4: BID UNIT PRICE | M4: Extended Total | N4: per UNIT price | O4: VENDOR STOCK NO | P4: BRAND NAME | Q4: PACK SIZE | R4: SPECIAL ORDER YES NO | S4: BIDDERS NOTES | U4: BEK | V4: Labatt | W4: Shamrock | X4: Sysco | Y4: Schreiber | Z4: El Charro
T5: Awarded To
B6: 1 | C6: 1104 | D6: APPLESAUCE CANNED | E6: APPLESAUCE GRADE B FANCY, NATURAL COLOR, UNSWEETENED | F6: SPECIFY | H6: CS | I6: 6 | J6: 10 CN | K6: 400 | L6: 25.15 | M6: =IF(L6*K6= 0,"",L6*K6) -> 10060 | N6: =IF(L6/I6= 0,"",L6/I6) -> 4.191666667 | O6: 38418 | P6: Ambrosia | Q6: 6/#10 | R6: no | S6: Lowest had minimum pallet order | T6: Shamrock | V6: 31.52 | W6: 30 | X6: 34.44 | Y6: 25.15 | Z6: 0
B7: 2 | C7: 1505 | D7: APPLESAUCE CUPS CINNAMON UNSWEETENED | E7: CINNAMON UNSWEETENED, APPLESAUCE, MUST PROVIDE 1/2 CUP FRUIT EQUIVALENT UNDER THE NSLP. 100% ALL NATURAL INGREDIENTS, SHELF-STABLE FOR 18 MONTHS, NO HIGH FRUCTOSE CORN SYRUP OR ADDED SUGAR, FAT FREE, 100% VITAMIN C | F7: SPECIFY | H7: CS | I7: 96 | J7: 4.5 OZ | K7: 500 | U7: 0 | V7: 0 | Y7: 0 | Z7: 0
B8: 3 | C8: 1476 | D8: APPLESAUCE CUPS PEACH UNSWEETENED | E8: PEACH, UNSWEETENED, APPLESAUCE, MUST PROVIDE 1/2 CUP FRUIT EQUIVALENT UNDER THE NSLP. 100% ALL NATURAL INGREDIENTS, SHELF-STABLE FOR 18 MONTHS, NO HIGH FRUCTOSE CORN SYRUP OR ADDED SUGAR, FAT FREE, 100% VITAMIN C | F8: SPECIFY | H8: CS | I8: 96 | J8: 4.5 OZ | K8: 500 | U8: 0 | V8: 0 | Y8: 0 | Z8: 0
B9: 4 | C9: 1475 | D9: APPLESAUCE CUPS PLAIN UNSWEETENED | E9: PLAIN, UNSWEETENED, APPLESAUCE, MUST PROVIDE 1/2 CUP FRUIT EQUIVALENT UNDER THE NSLP. 100% ALL NATURAL INGREDIENTS, SHELF-STABLE FOR 18 MONTHS, NO HIGH FRUCTOSE CORN SYRUP OR ADDED SUGAR, FAT FREE, 100% VITAMIN C | F9: SPECIFY | H9: CS | I9: 96 | J9: 4.5 OZ | K9: 500 | U9: 0 | V9: 0 | Y9: 0 | Z9: 0
B10: 5 | C10: 1478 | D10: APPLESAUCE CUPS STRAWBERRY UNSWEETENED | E10: PLAIN UNSWEETENED, APPLESAUCE, MUST PROVIDE 1/2 CUP FRUIT EQUIVALENT UNDER THE NSLP. 100% ALL NATURAL INGREDIENTS, SHELF-STABLE FOR 18 MONTHS, NO HIGH FRUCTOSE CORN SYRUP OR ADDED SUGAR, FAT FREE, 100% VITAMIN C | F10: SPECIFY | H10: CS | I10: 96 | J10: 4.5 OZ | K10: 500 | U10: 0 | V10: 0 | Y10: 0 | Z10: 0
B11: 6 | C11: 1334 | D11: AVACADO PULP | E11: AVACADO PULP, FROZEN, CATERING | F11: SPECIFY | H11: CS | I11: 6 | J11: 2 LBS | K11: 70 | L11: 52.01 | M11: 3640.7 | N11: 8.668333333 | O11: 3927541 | P11: Simplot | Q11: 12/1# | T11: Shamrock | V11: 63.01 | W11: 52.01 | X11: 55.44 | Y11: 0 | Z11: 0
B12: 7 | C12: 1022 | D12: BACON BITS | E12: AN IMITATION BACON FLAVORED SOY PRODUCT THAT RESEMBLES CRISP BITS OF SMOKED BACON, CATERING | F12: SPECIFY | H12: CS | I12: 10 | J12: LBS | K12: 60 | L12: 16.85 | M12: 1011 | N12: 1.685 | O12: 2919561 | P12: FAIRBURY | Q12: 1 / 10 LB | S12: NG2919561 / BACON BITS, IMITATIN F412199 | T12: Labatt | U12: 33.96 | V12: 16.85 | W12: 88.79 | X12: 17.33 | Y12: 0 | Z12: 0
B13: 8 | C13: 1147 | D13: BACON PIECES | E13: BACON ENDS & PIECES CATERING | F13: WRIGHTS OR APPROVED EQUIVALENT | H13: CS | I13: 12 | J13: 3 LB | K13: 425 | L13: 1.56 | M13: 663 | N13: 0.13 | O13: 5407106 | P13: DANKWORTH | Q13: 1 / 10 LB | S13: NG5407106 / 539 BACON ENDS & PCS FRZN Per Pound Price listed | T13: Labatt | V13: 1.56 | W13: 87.89 | X13: 40.64 | Y13: 0 | Z13: 0
B14: 9 | C14: 1424 | D14: BACON SLICED THICK | E14: BACON, THICK SLICED, CATERING | F14: SPECIFY | H14: CS | I14: 15 | J14: LB | K14: 30 | L14: 37.6 | M14: 1128 | N14: 2.506666667 | O14: 3020251 | P14: Prairie Creek | Q14: 15# | T14: Shamrock | V14: 92.17 | W14: 37.6 | X14: 41.89 | Y14: 0 | Z14: 0
B15: 10 | C15: 1351 | D15: BACON SLICED THIN | E15: BACON, THIN SLICED, CATERING | F15: SPECIFY | H15: CS | I15: 10 | J15: LB | K15: 15 | L15: 40 | M15: 600 | N15: 4 | O15: 14260 | P15: WRIGHT | Q15: 1 / 10 LB | S15: 401210-616 / BACON, SLCD THIN BULK 9SLC" | T15: Labatt | V15: 40 | W15: 41.9 | X15: 46 | Y15: 0 | Z15: 0
B16: 11 | D16: BAGEL BLUEBERRY | E16: BAGEL, WG, BLUEBERRY, SLICED, IW; MUST BE WHOLE GRAIN RICH AND PROVIDE 2.0OZ GRAIN EQUIVALENTS. PORTION TO PROVIDE AT LEAST 115 CALORIES, WITH NO MORE THAN 2 GRAMS OF FAT. | F16: BAKE CRAFTERS OR APPROVED EQUIVALENT | G16: 696 | H16: CS | I16: 84 | J16: 2 OZ | K16: 450 | L16: 26.58 | M16: 11961 | O16: 4031320 | P16: BAKECRAFTE | Q16: 84 / 2 OZ | S16: 696 / BAGELS, BLUEBERRY WG SL IW | T16: Labatt | V16: 26.58 | Y16: 0 | Z16: 0
B17: 12 | C17: 1019 | D17: BAKING SODA | E17: SODIUM BICARBONATE | F17: SPECIFY | H17: CS | I17: 24 | J17: 1 LBS | K17: 60 | L17: 15.89 | M17: 953.4 | N17: =IF(L17/I17= 0,"",L17/I17) -> 0.6620833333 | O17: 3077601 | P17: Katys | Q17: 24/1# | S17: Lowest was special order | T17: Shamrock | U17: 20.59 | V17: 16.31 | W17: 15.89 | X17: 14.23 | Y17: 0 | Z17: 0
B18: 13 | C18: 1460 | D18: BAR BREAKFAST APPLE CINNAMON | E18: INDIVIDUALLY WRAPPED, 51% WHOLE GRAIN, APPLE CINNAMON | F18: BeneFIT OR APPROVED EQUIVALENT | G18: 40403 | H18: CS | I18: 48 | J18: 2.5 OZ | K18: 150 | L18: 19.37172775 | M18: 2905.759162 | N18: 0.4035776614 | O18: 8610067 | P18: READIBK | Q18: 48/2.5 OZ | R18: Y | S18: Will stock if awarded | T18: Sysco | U18: 0 | V18: 20.73 | W18: 33.11 | X18: 19.37 | Y18: 0 | Z18: 0
B19: 14 | C19: 1383 | D19: BAR BREAKFAST BANANA CHOCOLATE | E19: INDIVIDUALLY WRAPPED, 51% WHOLE GRAIN, BANANA CHOCOLATE CHUNK | F19: BeneFIT OR APPROVED EQUIVALENT | G19: 40402 | H19: CS | I19: 48 | J19: 2.5 OZ | K19: 200 | L19: 19.17 | M19: 3834 | N19: 0.399375 | O19: 2883711 | P19: J&J Snacks | Q19: 48/2.5oz | R19: n | S19: Lowest was special order | T19: Shamrock | U19: 0 | V19: 20.44 | W19: 19.17 | X19: 18.59 | Y19: 0 | Z19: 0
B20: 15 | C20: 1059 | D20: BAR BREAKFAST COCOA CHIP | E20: INDIVIDUALLY WRAPPED, 51% WHOLE GRAIN, COCOA CHIP | F20: BeneFIT OR APPROVED EQUIVALENT | G20: 40406 | H20: CS | I20: 48 | J20: 2.5 OZ | K20: 200 | L20: 20.52 | M20: 4104 | N20: 0.4275 | O20: 4012001 | P20: J&J Snacks | Q20: 48/2.5oz | T20: Shamrock | U20: 0 | V20: 21.83 | W20: 20.52 | X20: 29.58 | Y20: 0 | Z20: 0
B21: 16 | C21: 1413 | D21: BAR BREAKFAST OATMEAL CHOCOLATE CHIP | E21: INDIVIDUALLY WRAPPED, 51% WHOLE GRAIN, OATMEAL CHOCOLATE CHIP | F21: BeneFIT OR APPROVED EQUIVALENT | G21: 40401 | H21: CS | I21: 48 | J21: 2.5 oz | K21: 200 | L21: 19.17 | M21: 3834 | N21: 0.399375 | O21: 2883731 | P21: J&J Snacks | Q21: 48/2.5oz | R21: n | S21: Lowest was special order | T21: Shamrock | U21: 0 | V21: 20.57 | W21: 19.17 | X21: 18.88 | Y21: 0 | Z21: 0
B22: 17 | C22: 1023 | D22: BASE BEEF | E22: GRADE A TO CONTAIN BEEF, LOW SODIUM- PASTE, NON-CAKING, READY TO DISSOLVE, BEEF FLAVORED, NO MSG | F22: SPECIFY | H22: CS | I22: 12 | J22: 1 LBS | K22: 60 | L22: 29.15 | M22: 1749 | N22: 2.429166667 | P22: CUSTOM CULINARY | Q22: 6/1LB | R22: YES | S22: MFG 03361ECFP | T22: BEK | U22: 29.15 | V22: 41.05 | W22: 42.89 | X22: 32.19 | Y22: 0 | Z22: 0
B23: 18 | C23: 1024 | D23: BASE CHICKEN | E23: GRADE A TO CONTAIN CHICKEN, LOW SODIUM - PASTE, NON-CAKING, READY TO DISSOLVE, CHICKEN FLAVORED, NO MSG | F23: SPECIFY | H23: CS | I23: 12 | J23: 1 LBS | K23: 200 | L23: 24.8 | M23: 4960 | N23: 2.066666667 | O23: 120357 | P23: CUSTOM CULINARY | Q23: 6/1LB | S23: MFG 01461ECFP | T23: BEK | U23: 24.8 | V23: 37.33 | W23: 42.55 | X23: 27.69 | Y23: 0 | Z23: 0
B24: 19 | C24: 1272 | D24: BASE HAM | E24: GRADE A TO CONTAIN HAM, LOW SODIUM - PASTE, NON-CAKING, READY TO DISSOLVE, BEEF FLAVORED, NO MSG | F24: SPECIFY | H24: CS | I24: 12 | J24: 1 LBS | K24: 300 | L24: 23.38947368 | M24: 7016.842105 | N24: 1.949122807 | O24: 4944724 | P24: SYS IMP | Q24: 6/1 LB | R24: N | T24: Sysco | U24: 72.99 | V24: 43.54 | W24: 55.78 | X24: 23.39 | Y24: 0 | Z24: 0
B25: 20 | C25: 1455 | D25: BEANS GARBANZO | E25: BRINE PACK. GARBANZO BEANS, WATER, SALT, VINEGAR, DISODIUM EDTA (TO PROMOTE COLOR AND RETENTION) AND CALCIUM CHLORIDE (A FIRMING AGENT). | F25: SPECIFY | H25: CS | I25: 6 | J25: 10 LB | K25: 65 | L25: 22.63 | M25: 1470.95 | N25: 3.771666667 | O25: 1909921 | P25: Bountiful Harvest | Q25: 6/10 cn | T25: Shamrock | U25: 25.88 | V25: 22.9 | W25: 22.63 | X25: 23.25 | Y25: 0 | Z25: 0
B26: 21 | C26: 1229 | D26: BEANS PINTO | E26: PINTO BEANS, WHOLE STYLE, SEASONED, VEGETARIAN, CANNED IN BRINE, US GRADE B LOW SODIUM (140 MILLIGRAMS OF SODIUM OR LESS PER SERVING) | F26: BUSH'S OR APPROVED EQUIVALENT | H26: CS | I26: 6 | J26: 10 CN | K26: 1300 | L26: 21.43157895 | M26: 27861.05263 | N26: 3.571929825 | O26: 79584 | P26: BUSH | Q26: 6/#10 | R26: N | T26: Sysco | U26: 0 | V26: 23.8 | W26: 23.66 | X26: 21.43 | Y26: 0 | Z26: 0
B27: 22 | C27: 1237 | D27: BEANS PINTO DRY | E27: US #1 GRADE A, CURRENT CROP, 98% CLEAN, FREE OF WEEVILS, DIRT AND ROCKS. TRIPLE CLEANED. | F27: SPECIFY | H27: LB | I27: 50 | J27: LBS | K27: 250 | L27: 36.09473684 | M27: 9023.684211 | N27: 0.7218947368 | O27: 4183968 | P27: SYS CLS | Q27: 1/50 LB | R27: N | T27: Sysco | U27: 40.29 | V27: 39.14 | W27: 38.28 | X27: 36.09 | Y27: 0 | Z27: 0
B28: 23 | C28: 1230 | D28: BEANS RANCH STYLE | E28: PINTO BEANS, WATER, TOMATO PUREE, LESS THAN 2% BLEND OF VEGETABLE OILS AND ANIMAL FAT, SALT, CHILI PEPPERS, SUGAR, PAPRIKA, VINEGAR, SPICES, ONION POWDER, GARLIC POWDER, NATURAL FLAVORINGS, SOY LECITHIN, LOW SODIUM (140 MILLIGRAMS OF SODIUM OR LESS PER SERVING) | F28: RANCH STYLE OR APPROVED EQUIVALENT | G28: 4690000116 | H28: CS | I28: 6 | J28: 10 CN | K28: 300 | L28: 23.45263158 | M28: 7035.789474 | N28: 3.90877193 | O28: 5975123 | P28: CASACLS | Q28: 6/#10 | R28: N | T28: Sysco | U28: 46.23 | V28: 24.97 | W28: 33.13 | X28: 23.45 | Y28: 0 | Z28: 0
B29: 24 | C29: 1238 | D29: BEANS REFRIED | E29: DEHYDRATED, JUST ADD WATER TO COOK AND SERVE, UNSEASONED. US GRADE A | F29: SANTIAGO | G29: 10166 | H29: CS | I29: 6 | J29: 28.1 OZ | K29: 300 | L29: 28.08622503 | M29: 8425.867508 | N29: 4.681037504 | O29: 8649127 | P29: SANTAGO | Q29: 6/26.25Z | R29: N | T29: Sysco | V29: 32.18 | W29: 30.43 | X29: 28.09 | Y29: 0 | Z29: 0
B30: 25 | C30: 1238 | D30: BEANS VEGETARIAN | E30: REDUCED SODIUM, VEGETARIAN BAKED BEANS | F30: BUSHS BEST OR APPROVED EQUIVALENT | H30: CS | I30: 6 | J30: #10 CANS | K30: 1500 | L30: 26.97 | M30: 40455 | O30: 1541461 | P30: HANOVER | Q30: 6 / #10 | S30: 13093 / VEGETARIAN BEANS LOW SODIUM | T30: Labatt | U30: 34 | V30: 26.97 | W30: 28.92 | X30: 34.12 | Y30: 0 | Z30: 0
B31: 26 | C31: 1124 | D31: BEEF BRISKET | E31: BEEF, PACKER TRIM, VACCUUM PACKED, LARGE, 14-22 LB, CATERING | F31: SPECIFY | H31: LB | I31: 1 | J31: LB | K31: 2000 | L31: 2.952879581 | M31: 5905.759162 | N31: =IF(L31/I31= 0,"",L31/I31) -> 2.952879581 | O31: 1044056 | P31: PACKER | Q31: 5/10#UP | R31: N | T31: Sysco | V31: 3.35 | W31: 3.07 | X31: 2.95 | Y31: 0 | Z31: 0
B32: 27 | C32: 1344 | D32: BEEF CHX FRIED STEAK | E32: EXCLUSIVE CUT™ WHOLE MUSCLE BEEF. BATTERED WITH A BUTTERMILK BLEND, BREADED WITH A FLOUR-BASED BREADING. CATERING | F32: ADVANCE/PIERRE OR APPROVED EQUIVALENT | G32: 4541 | H32: CS | I32: 40 | J32: 4 OZ | K32: 25 | L32: 37.77083333 | M32: 944.2708333 | N32: =IF(L32/I32= 0,"",L32/I32) -> 0.9442708333 | O32: 2454221 | P32: ADVANCE | Q32: 40/4 OZ | R32: N | T32: Sysco | U32: 38.17 | V32: 38.01 | W32: 39.25 | X32: 37.77 | Y32: 0 | Z32: 0
B33: 28 | C33: 1125 | D33: BEEF CRUMBLES | E33: PRE-COOKED BEEF CRUMBLES, LOW SODIUM, COMMERCIAL VERSION OF COMMDODITY 8737 | F33: ADVANCE/PIERRE OR APPROVED EQUIVALENT | G33: 8837 | H33: CS | I33: 40 | J33: 8/5LBS--291/2.20 | K33: 660 | L33: 124.96 | M33: 82473.6 | N33: =IF(L33/I33= 0,"",L33/I33) -> 3.124 | P33: TYSON | Q33: 291/2.2OZ | R33: NO | S33: MFG 10000008837 | T33: BEK | U33: 124.96 | V33: 131.59 | W33: 128.08 | X33: 233.27 | Y33: 0 | Z33: 0
B34: 29 | C34: 1439 | D34: BEEF FAJITA STRIPS | E34: FORMED BEEF, SEASONED, FULLY COOKED AND SLICED INTO 3/8-INCH STRIPS. SOY ADDED. CHAR MARKED. | F34: ADVANCE/PIERRE OR APPROVED EQUIVALENT | G34: 56001 | H34: CS | I34: 2 | J34: 5 LB | K34: 100 | L34: 37.19353156 | M34: 3719.353156 | N34: =IF(L34/I34= 0,"",L34/I34) -> 18.59676578 | O34: 8578809 | P34: SMRTSRV | Q34: 2/5 LB | R34: N | T34: Sysco | V34: 54.78 | W34: 84.72 | X34: 37.19 | Y34: 0 | Z34: 0
B35: 30 | C35: 1126 | D35: BEEF GROUND | E35: BEEF GROUND, RAW FROZEN, NAMP 136, BONELESS, UNSEASONED, FIND GRIND, 80/20 LEAN/FAT RATIO, INDIVIDUALLY WRAPPED, 8 PIECES/10 POUNDS EACH | F35: SPECIFY | H35: CS | I35: 8 | J35: 10# | K35: 350 | L35: 2.42 | M35: 847 | O35: 5452511 | P35: PACKER | Q35: 4 / 10 LB | S35: 0423 / 136 FZ GRND BEEF 81/19 FG Per Pound Price listed | T35: Labatt | V35: 2.42 | W35: 2.73 | X35: 3.3 | Y35: 0 | Z35: 0
B36: 31 | D36: BEEF PATTY: | E36: BEEF PATTY: FULLY COOKED, CHOPPED AND FORMED BEEF STEAK BURGER WITH SEASONING. CN LABELED. GROUND BEEF NOT TO EXCEED 20% FAT. NO SOY ADDED. MAXIMUM 3.0OZ SERVING TO PROVIDE 2 M/MA. CALORIES NOT TO EXCEED 130. SODIUM NOT TO EXCEED 340MG. SATURATED FAT NOT TO EXCEED 3.3G. COMMERCIAL VERSION OF COMMODITY ITEM | F36: TYSON OR APPROVED EQUIVALENT | G36: 5425 | H36: CS | I36: 200 | J36: 2.5 OZ | K36: 1500 | L36: 34.39 | M36: 51585 | O36: 2450271 | P36: Advance Pierre | Q36: 90/2.5oz | S36: MFG 155-525-0 | T36: Shamrock | U36: 67.79 | V36: 78.84 | W36: 34.39 | X36: 61.09 | Y36: 0 | Z36: 0
B37: 32 | C37: 1453 | D37: BEEF PHILLY STEAK | E37: FULLY COOKED COOKED SLICED STEAK LESS THAN 230MG SODIUM PER SERVING | F37: ADVANCE/PIERRE OR APPROVED EQUIVALENT | G37: 69249 | H37: CS | I37: 170 | J37: 2.82 OZ | K37: 200 | L37: 144.36 | M37: 28872 | N37: =IF(L37/I37= 0,"",L37/I37) -> 0.8491764706 | P37: TYSON | Q37: 192/25.5 OZ | R37: NO | S37: Lowest bid wrong item | T37: BEK | U37: 144.36 | V37: 50.7 | W37: 147.67 | X37: 144.36 | Y37: 0 | Z37: 0
B38: 33 | D38: BEEF PHILLY STEAK | E38: FULLY COOKED REDI-STEAK BEEF PHILLY SLICES CN CREDIT 20Z M/MA | F38: TYSON OR APPROVED EQUIVALENT | G38: 20310 | H38: CS | I38: 170 | J38: 2.82 OZ | K38: 200 | L38: 50.7 | M38: =IF(L38*K38= 0,"",L38*K38) -> 10140 | N38: 0.2982352941 | O38: 8958177 | P38: ADVANCE | Q38: 4 / 2.5 LB | S38: 20310 / PHILLY BEEF SLICES FC | T38: Labatt | U38: 52.11 | V38: 50.7 | W38: 139.31 | X38: 144.36 | Y38: 0 | Z38: 0
B39: 34 | C39: 1128 | D39: BEEF STEAK FINGERS WG | E39: FULLY COOKED, CHOPPED BEEF, BREADED W/ A WHOLE GRAIN BREADING, SOY ADDED, REDUCED FAT & SODIUM CONTENT. STICK SHAPE. CN LABELED. LESS THAN 170MG SODIUM PER SERVING | F39: TYSON OR APPROVED EQUIVALENT | G39: 6119 | H39: CS | I39: 155 | J39: 3.20 oz | K39: 600 | L39: 85.24 | M39: 51144 | N39: 0.5499354839 | O39: 8931241 | P39: ADVANCE | Q39: 620 / .8 OZ | S39: Lowest was not correct code | T39: Labatt | U39: 34.42 | V39: 85.24 | W39: 85.77 | X39: 35.14 | Y39: 0 | Z39: 0
B40: 35 | C40: 1436 | D40: BEEF STEAK PATTIE WG | E40: FULLY COOKED, CHOPPED BEEF, BREADED WITH A WHOLE GRAIN BREADING, SOY ADDED, REDUCED FAT & SODIUM CONTENT, OVAL IN SHAPE, CN LABELED. LESS THAN 170MG SODIUM PER SERVING | F40: ADVANCE/PIERRE OR APPROVED EQUIVALENT | G40: 68005 | H40: CS | I40: 150 | J40: 3.20 oz | K40: 400 | L40: 86.09921671 | M40: 34439.68668 | N40: 0.5739947781 | O40: 2369728 | P40: ADVANCE | Q40: 150/3.2OZ | R40: Y | S40: Will stock if awarded | T40: Sysco | U40: 87.78 | V40: 88.12 | W40: 88.78 | X40: 86.1 | Y40: 0 | Z40: 0
B41: 36 | C41: 1200 | D41: BISCUIT WG | E41: HONEY WHOLE WHEAT HEAT & SERVE, PRE-SLICED, MEET 2 OZ/GR | F41: BRIDGEFORD OR APPROVED EQUIVALENT | G41: 6270 | H41: CS | I41: 100 | J41: 2.25 OZ | K41: 300 | L41: 25.32 | M41: 7596 | N41: 0.2532 | P41: BRIDGFORD | Q41: 100/2.25OZ | R41: NO | S41: WILL BRING IN IF AWARDED | T41: BEK | U41: 25.32 | V41: 27.16 | W41: 26.03 | X41: 25.79 | Y41: 0 | Z41: 0
B42: 37 | C42: 1076 | D42: BISCUIT WHITE BUTTERMILK | E42: BISCUIT, OLD SOUTH BUTTERMILK, PRE-SLICED, FULLY COOOKED 2.25 OZ | F42: BRIDGEFORD OR APPROVED EQUIVALENT | G42: 6170 | H42: CS | I42: 100 | J42: 2.25 OZ | K42: 300 | L42: 27 | M42: 8100 | N42: 0.27 | O42: 9236655 | P42: BRIDGFORD | Q42: 100 / 2.25 OZ | S42: Lowest had incorrect product code | T42: Labatt | U42: 24.2 | V42: 27 | W42: 30.82 | X42: 22.84 | Y42: 0 | Z42: 0
B43: 38 | D43: BREAD BANANA SLICE IW | E43: 3.4OZ (96G), FROZEN, IW, THAW & SERVE, CONTAINS ZERO TRANS-FAT, > 51% WHOLE WHEAT FLOUR, NON-DAIRY, NO ARTIFICIAL COLORS, FLAVORS, OR PRESERVATIVES. MUST CONFORM TO USDA CHILD NUTRITION PROGRAM SPECIFICATIONS, AND MEET 2 SERVINGS OF GRAIN. | F43: SUPER BAKERY OR APPROVED EQUIVALENT | G43: 6071 | H43: CS | I43: 70 | J43: 3.4 OZ | K43: 1800 | L43: 37.19 | M43: 66942 | O43: 128509 | P43: SUPER BAKERY | Q43: 70/3.4 OZ | R43: NO | T43: BEK | U43: 37.19 | V43: 39.12 | W43: 39.88 | X43: 39.35 | Y43: 0 | Z43: 0
B44: 39 | C44: 1080 | D44: BREAD CIABATTA | E44: CIABATTA BREAD, PRE SLICED WHOLE GRAIN, MEETS 2 OZ EQ GRAIN, <170 MG OF SOIDUM | F44: PILLSBURY OR APPROVED EQUIVALENT | G44: 100-94562-37778-7 | H44: CS | I44: 96 | J44: 1.80 OZ | K44: 300 | L44: 24.08 | M44: 7224 | N44: =IF(L44/I44= 0,"",L44/I44) -> 0.2508333333 | O44: 9340123 | P44: PILLSBURY | Q44: 96 / 1.8 OZ | S44: 37738 / BREAD, CIABATTA WG TS LS | T44: Labatt | U44: 25.49 | V44: 24.08 | W44: 24.97 | X44: 25.01 | Y44: 0 | Z44: 0
B45: 40 | D45: BREAD SANDWICH | E45: 20 OZ PULLMAN 4 % X 4%, 20 SLICES PLUS ENDS — UNIT: LOAF, MINIMUM 51% WHOLE GRAINS, ACCORDING TO USDA STANDARD-FRESH - FLAT TOP, PULLMAN OR SANDWICH LOAF. SLICED LOAF, WITH SLICES APPROXIMATELY 1/2-INCH THICK. BREAD: CONTAINS ADDED THIAMIN, RIBOFLAVIN, NI, MUST MEET 1 OZ GRAIN PER SLICE | F45: ALPHA OR APPROVED EQUIVALENT | G45: 11627 | H45: CS | I45: 6 | J45: 20 OZ | K45: 700 | L45: 15.83246073 | M45: 11082.72251 | N45: =IF(L45/I45= 0,"",L45/I45) -> 2.638743455 | O45: 8386815 | P45: SYS CLS | Q45: 10/24OZ | R45: N | T45: Sysco | U45: 18.35 | V45: 21.98 | W45: 25.26 | X45: 15.83 | Y45: 0 | Z45: 0
B46: 41 | D46: BREAD TEXAS TOAST | E46: BREAD, TEXAS TOAST | F46: EUROPEAN OR APPROVED EQUIVALENT | H46: CS | I46: 10 | J46: 24 OZ | K46: 400 | L46: 15.61 | M46: 6244 | O46: 170042 | P46: SARA LEE | Q46: 6 / 24 OZ | S46: 56108 / BREAD, TEXAS TOAST | T46: Labatt | V46: 15.61 | W46: 36.31 | X46: 32.51 | Y46: 0 | Z46: 0
B47: 42 | C47: 1201 | D47: BREADSTICK WHITE WHOLE WHEAT | E47: WHITE WHOLE WHEAT CHEESY GARLIC BREADSTICK DOUGH, FROZEN, RAW, PROOF AND BAKE, WHOLE GRAIN FLOUR, CHEESE AND GARLIC FLAVORED. EACH STICK MUST PROVIDE A MINUMIM OF 1GB COMPONENT FOR NSLP | F47: BRIDGEFORD OR APPROVED EQUIVALENT | G47: 6787 | H47: CS | I47: 320 | J47: 1.125 oz | K47: 900 | L47: 29.98960499 | M47: 26990.64449 | N47: =IF(L47/I47= 0,"",L47/I47) -> 0.09371751559 | O47: 7002454 | P47: BRDGFRD | Q47: 320/1 OZ | R47: N | T47: Sysco | U47: 30.37 | V47: 31.43 | W47: 30.87 | X47: 29.99 | Y47: 0 | Z47: 0
B48: 43 | D48: BREAKFAST BAGEL | E48: PIZZA; BREAKFAST SAUSAGE BAGEL, 100% MOZZ; FROZEN, IW; OVENABLE WRAP; READY MADE PIZZA WITH SAUSAGE ON A WGR BAGEL; SODIUM MG NOT TO EXCEED 390MG; CN LABEL OR PRODUCT ANALYSIS SHEET TO PROVIDE 1OZ M/MA AND 1OZ GRAIN EQ; MUST MEET FNS REQUIREMENTS ON ALL GRAINS; CASE PACK 96 EACH COMMODITY PROCESSED | F48: NARDONES BROS OR APPROVED EQUIVALENT | G48: 464 | H48: CS | I48: 1 | J48: 96 CT | K48: 800 | L48: 54.92 | M48: 43936 | O48: 4400751 | P48: Nardones | Q48: 96/3.80 oz | S48: MFG M96WBBS | T48: Shamrock | V48: 58.23 | W48: 54.92 | Y48: 0 | Z48: 0
B49: 44 | D49: BUN HAMBURGER | E49: WHITE/WHOLE GRAIN , 4.0" HAMBURGER BUN, MEETS 2 OZ GRAIN EQUIVALENT | F49: ALPHA OR APPROVED EQUIVALENT | G49: 51667 | H49: CS | I49: 120 | J49: 2 OZ | K49: 1500 | L49: 19.37 | M49: 29055 | N49: =IF(L49/I49= 0,"",L49/I49) -> 0.1614166667 | O49: 3243161 | P49: Alpha Baking | Q49: 120/2 oz | T49: Shamrock | U49: 20.46 | V49: 24.02 | W49: 19.37 | X49: 21.76 | Y49: 0 | Z49: 0
B50: 45 | D50: BUN HOAGIE 6" | E50: BUN, HOAGIE, WHITE SLICED 6" | F50: BAKE CRAFTERS OR APPROVED EQUIVALENT | G50: 4030 | H50: CS | I50: 72 | J50: 3 OZ | K50: 1500 | L50: 19.42 | M50: 29130 | O50: 2571991 | P50: Brickfire | Q50: 10/6 ct | S50: this is a Alpha Baking product but only a 60 ct case | T50: Shamrock | U50: 21.22 | V50: 26.62 | W50: 19.42 | X50: 21.13 | Y50: 0 | Z50: 0
B51: 46 | D51: BUN HOT DOG 6" | E51: 6" HOT DOG BUN SLICED | F51: BAKE CRAFTERS OR APPROVED EQUIVALENT | G51: 423 | H51: CS | I51: 144 | J51: 1.5 OZ | K51: 1500 | L51: 22.85714286 | M51: 34285.71429 | O51: 1549460 | P51: FSPLB4S | Q51: 12/12 CT | R51: N | T51: Sysco | U51: 23.17 | V51: 28.36 | W51: 23.16 | X51: 22.86 | Y51: 0 | Z51: 0
B52: 47 | D52: BURRITO | E52: BEEF, BEAN AND CHEESE BURRITO. A RED CHILI BEEF, BEAN AND TEXTURED VEGETABLE PROTEIN FILLING, WRAPPED IN A FLOUR TORTILLA. BURRITOS SHALL BE UNIFORMLY ROLLED WITH A UNIFORM DISTRIBUTION OF FILLING. NO EXESSIVELY FLATTENED OR IRREGULAR SHAPED PRODUCT. | F52: BUTCHERBOY/POSADA OR APPROVED EQUIVALENT | G52: 1020001 | H52: CS | I52: 72 | J52: 4 OZ | K52: 600 | L52: 34.73015873 | M52: 20838.09524 | O52: 1654466C | P52: B/BOY | Q52: 72/4 OZ | R52: Y | S52: Will stock if awarded | T52: Sysco | U52: 37 | V52: 38.78 | W52: 37.35 | X52: 34.73 | Y52: 0 | Z52: 0
B53: 48 | C53: 1314 | D53: BURRITO BULK | E53: 4.75 OZ. CHEESE, BEEF, BEAN & RED CHILI BURRITO FULLY COOKED GROUND BEEF, RED CHILI SAUCE, AMERICAN CHEESE, PINTO BEANS WRAPPED IN A WHOLE GRAIN RICH BLEND OF WHEAT AND CORN FLOUR TORTILLA 16g PROTEIN PER SERVING CN LABELED - SERVES 2 OZ. M/MA & 2 OZ. EQUIVALENT GRAINS PRE-FRIED | F53: FERNANDO'S OR APPROVED EQUIVALENT | G53: 21072 | H53: CS | I53: 72 | J53: 4.75 oz | K53: 1000 | L53: 42.38 | M53: 42380 | N53: =IF(L53/I53= 0,"",L53/I53) -> 0.5886111111 | O53: 8977076 | P53: FERNANDOS | Q53: 60 / 5 OZ | S53: 5210 / BURRITO BF BN & CHEESE WG CN | T53: Labatt | U53: 47.49 | V53: 42.38 | W53: 47.27 | X53: 48.91 | Y53: 0 | Z53: 0
B54: 49 | C54: 1089 | D54: BUTTER ALTERNATIVE | E54: PHASE® ZERO TRANS NO SODIUM LIQUID BUTTER ALTERNATIVE | F54: PHASE OR APPROVED EQUIVALENT | G54: 13688 | H54: CS | I54: 3 | J54: GAL | K54: 200 | L54: 32.15789474 | M54: 6431.578947 | N54: =IF(L54/I54= 0,"",L54/I54) -> 10.71929825 | O54: 9607268 | P54: PHASE | Q54: 3/1 GAL | R54: N | T54: Sysco | U54: 35.29 | V54: 32.82 | W54: 33.49 | X54: 32.16 | Y54: 0 | Z54: 0
B55: 50 | D55: BUTTERMILK BAKING 1% | E55: BUTTERMILK, BAKING 1% | F55: SPECIFY | H55: CS | I55: 4 | J55: GAL | K55: 100 | L55: 3.58 | O55: 8205046 | P55: BORDEN | Q55: 1 / HG | S55: 15538 / BUTTERMILK, BAKING 1% | T55: Labatt | V55: 3.58 | W55: 32.71 | X55: 17.09 | Y55: 0 | Z55: 0
B56: 51 | D56: CARAMEL BROWNIE ICE CREAM STICK BAR SMART SNACK | E56: STICK BAR REDUCED FAT SALTY CARAMEL BROWNIE CRUNCH BAR | F56: HERSHEY'S OR APPROVED EQUIVALENT | G56: 31167 | H56: CS | I56: 36 | J56: 2.75 OZ | K56: 200 | L56: 18.54 | O56: 4221011 | P56: HERSHEY'S | Q56: 36 / 2.75 OZ | S56: 31167 / STICK BAR CARAMEL BROWNIE | T56: Labatt | V56: 18.54 | Y56: 0 | Z56: 0
B57: 52 | C57: 1321 | D57: CEREAL BAR CINN TST | E57: SNACK BARS: CEREAL, CINNAMON TOAST, IW, WHOLE GRAIN. MUST CONTAIN 1G EQUIVALENCY FOR SBP | F57: GENERAL MILLS OR APPROVED EQUIVALENT | G57: 45576000 | H57: CS | I57: 96 | J57: 1.42 OZ | K57: 200 | L57: 26.14736842 | M57: =IF(L57*K57= 0,"",L57*K57) -> 5229.473684 | N57: =IF(L57/I57= 0,"",L57/I57) -> 0.2723684211 | O57: 1898651 | P57: GM | Q57: 96/1.42OZ | R57: Y | S57: Will stock if awarded | T57: Sysco | U57: 29.26 | V57: 27.11 | W57: 27.74 | X57: 26.15 | Y57: 0 | Z57: 0
B58: 53 | C58: 1322 | D58: CEREAL BAR TRIX | E58: SNACK BARS: CEREAL, FRUIT PUFFS, IW, WHOLE GRAIN. MUST CONTAIN 1G EQUIVALENCY FOR SBP | F58: GENERAL MILLS OR APPROVED EQUIVALENT | G58: 31915000 | H58: CS | I58: 96 | J58: 1.42 oz | K58: 100 | L58: 26.14736842 | M58: 2614.736842 | N58: 0.2723684211 | O58: 1898677 | P58: GM | Q58: 96/1.42OZ | R58: Y | T58: Sysco | U58: 29.26 | V58: 27.13 | W58: 28.06 | X58: 26.15 | Y58: 0 | Z58: 0
B59: 54 | C59: 1172 | D59: CEREAL BOWLS CHEERIOS WG | E59: READY TO EAT CEREALS: BOWL PACK, WHOLE GRAIN, OATS, RINGS. MUST MEET 1G EQUIVALENCY FOR SBP | F59: GENERAL MILLS OR APPROVED EQUIVALENT | G59: 32262000 | H59: CS | I59: 96 | J59: 1 oz | K59: 250 | L59: 17.30208333 | M59: 4325.520833 | N59: 0.1802300347 | O59: 2177584 | P59: GM | Q59: 96/1 OZ | R59: N | T59: Sysco | U59: 20.46 | V59: 22.48 | W59: 20.39 | X59: 17.3 | Y59: 0 | Z59: 0
B60: 55 | D60: CEREAL BOWLS CINNAMON CHEX 2 GRAIN | E60: Cinnamon Chex™ is made with real cinnamon and sweetened rice gluten-free cereal. This ready-to-eat cup provides convenient portion control and room for milk. Whole Grain Rice – first ingredient. Meets 2 ounce equivalent grains, USDA Smart Snack criteria, and is CACFP eligible. | F60: GENERAL MILLS OR APPROVED EQUIVALENT | G60: 14883000 | H60: CS | I60: 60 | J60: 2 OZ | K60: 500 | L60: 22.59259259 | M60: 11296.2963 | N60: 0.3765432099 | O60: 7072203C | P60: GM | Q60: 60/2 OZ | R60: Y | S60: Will stock if awarded | T60: Sysco | U60: 25.99 | V60: 27.67 | W60: 31.06 | X60: 22.59 | Y60: 0 | Z60: 0
B61: 56 | C61: 1174 | D61: CEREAL BOWLS CINNAMON TOAST CRUNCH | E61: READY TO EAT CEREALS: BOWL PACK, WHOLE GRAIN, 25% LESS SUGAR, CINNAMON TOAST, SQUARES. MUST MEET 1G EQUIVALENCY FOR SBP | F61: GENERAL MILLS OR APPROVED EQUIVALENT | G61: 294440000 | H61: CS | I61: 96 | J61: 1 OZ | K61: 250 | L61: 17.30208333 | M61: 4325.520833 | N61: 0.1802300347 | O61: 6055800 | P61: GM | Q61: 96/1 OZ | R61: N | T61: Sysco | U61: 20.46 | V61: 21.66 | W61: 20.39 | X61: 17.3 | Y61: 0 | Z61: 0
B62: 57 | D62: CEREAL BOWLS CINNAMON TOAST CRUNCH 2 GRAIN | E62: READY TO EAT CEREALS: BOWL PACK, WHOLE GRAIN, 25% LESS SUGAR, CINNAMON TOAST, SQUARES. MUST MEET 2G EQUIVALENCY FOR SBP | F62: GENERAL MILLS OR APPROVED EQUIVALENT | G62: 148861000 | H62: CS | I62: 60 | J62: 2 OZ | K62: 1000 | L62: 22.59259259 | M62: 22592.59259 | N62: 0.3765432099 | O62: 7072170 | P62: GM | Q62: 60/2 OZ | R62: Y | S62: Will stock if awarded | T62: Sysco | U62: 25.99 | V62: 27.67 | W62: 31.06 | X62: 22.59 | Y62: 0 | Z62: 0
B63: 58 | C63: 1174 | D63: CEREAL BOWLS COCOA PUFFS 2 GRAIN | E63: READY TO EAT CEREALS: BOWL PACK, WHOLE GRAIN, COCOA PUFFS, REDUCED SUGAR, MUST MEET 2 GRAIN EQUIVALENCY FOR SBP | F63: GENERAL MILLS OR APPROVED EQUIVALENT | G63: 148854000 | H63: CS | I63: 60 | J63: 2 OZ | K63: 1000 | L63: 22.59259259 | M63: 22592.59259 | N63: 0.3765432099 | O63: 7072182 | P63: GM | Q63: 60/2 OZ | R63: Y | S63: Lowest was not 2 oz | T63: Sysco | U63: 25.99 | V63: 27.66 | W63: 20.39 | X63: 22.59 | Y63: 0 | Z63: 0
B64: 59 | D64: CEREAL BOWLS LUCKY CHARMS 2 GRAIN | E64: READY TO EAT CEREALS: BOWL PACK, WHOLE GRAIN, WITH MARSHMALLOWS, ASSORTED BERRY PUFFS, REDUCED SUGAR. MUST MEET 2G EQUIVALENCY FOR SBP | F64: GENERAL MILLS OR APPROVED EQUIVALENT | G64: 148847000 | H64: CS | I64: 60 | J64: 2 OZ | K64: 200 | L64: 22.59259259 | M64: 4518.518519 | N64: 0.3765432099 | O64: 7072180 | P64: GM | Q64: 60/2 OZ | R64: Y | S64: Will stock if awarded | T64: Sysco | U64: 25.99 | V64: 27.67 | W64: 31.06 | X64: 22.59 | Y64: 0 | Z64: 0
B65: 60 | C65: 1175 | D65: CEREAL FARINA | E65: HOT CEREALS: ENRICHED, PLAIN, BULK, QUICK COOK, CREAM OF WHEAT, WHOLE GRAIN. MUST MEET 1G EQUIVALENCY FOR SBP | F65: SPECIFY | H65: CS | I65: 12 | J65: 28 OZ | K65: 10 | L65: 23.39583333 | M65: 233.9583333 | N65: 1.949652778 | O65: 4528972 | P65: QUAKER | Q65: 12/28 OZ | R65: N | T65: Sysco | U65: 25.49 | V65: 27.4 | W65: 25.05 | X65: 23.4 | Y65: 0 | Z65: 0
B66: 61 | C66: 1465 | D66: CEREAL MEALS CINNAMON TOAST CRUNCH WG REDUCED SUGAR | E66: WG CINNAMON TOAST CRUNCH; PEPPERIDGE FARM® GOLDFISH GRAHAMS, CINNAMON, 2PK; MINUTE MAID® KIDS+™ 100% JUICE, GRAPE JUICE. KIT TO HAVE LESS THAN 20% CALORIES FROM FAT, LESS THAN 5% FROM SATURATED FAT, 25 GRAMS OR LESS OF SUGAR, AND ESSENTIAL VITAMINS. | F66: ESFOODS OR APPROVED EQUIVALENT | G66: 61119 | H66: CS | I66: 72 | J66: CT | K66: 400 | L66: 58.74 | M66: 23496 | N66: 0.8158333333 | O66: 2933531 | P66: ES Foods | Q66: 72 ct | R66: Yes | T66: Shamrock | V66: 61.97 | W66: 58.74 | Y66: 0 | Z66: 0
B67: 62 | C67: 1306 | D67: CEREAL MEALS FROSTED FLAKES WG REDUCED SUGAR | E67: FROSTED FLAKES, WHOLE GRAIN; CHEEZE-IT CRACKER; 100% JUICE. KIT TO HAVE LESS THAN 20% CALORIES FROM FAT, LESS THAN 5% FROM SATURATED FAT, 25 GRAMS OR LESS OF SUGAR, AND ESSENTIAL VITAMINS. | F67: ESFOODS OR APPROVED EQUIVALENT | G67: 61106 | H67: CS | I67: 72 | J67: CT | K67: 400 | L67: 58.74 | M67: 23496 | N67: 0.8158333333 | O67: 2943071 | P67: ES Foods | Q67: 72 ct | R67: Yes | T67: Shamrock | V67: 62.36 | W67: 58.74 | Y67: 0 | Z67: 0
B68: 63 | C68: 1307 | D68: CEREAL MEALS LUCKY CHARMS WG | E68: WG LUCKY CHARMS; GIANT GOLDFISH GRAMS, CINNAMON; 100% JUICE, FRUIT JUICE. KIT TO HAVE LESS THAN 20% CALORIES FROM FAT, LESS THAN 5% FROM SATURATED FAT, 25 GRAMS OR LESS OF SUGAR, AND ESSENTIAL VITAMINS. | F68: ESFOODS OR APPROVED EQUIVALENT | G68: 61105 | H68: CS | I68: 72 | J68: CT | K68: 400 | L68: 48.74 | M68: 19496 | N68: 0.6769444444 | O68: 3085881 | P68: ES Foods | R68: Yes | T68: Shamrock | V68: 62.09 | W68: 48.74 | Y68: 0 | Z68: 0
B69: 64 | C69: 1223 | D69: CEREAL MEALS TRIX WG REDUCED SUGAR | E69: WG TRIX REDUCED SUGAR; PEPPERIDGE FARM® GOLDFISH GRAHAMS, CINNAMON, 100% JUICE, FRUIT JUICE. KIT TO HAVE LESS THAN 20% CALORIES FROM FAT, LESS THAN 5% FROM SATURATED FAT, 25 GRAMS OR LESS OF SUGAR, AND ESSENTIAL VITAMINS. | F69: ESFOODS OR APPROVED EQUIVALENT | G69: 61114 | H69: CS | I69: 72 | J69: CT | K69: 400 | L69: 48.74 | M69: 19496 | N69: 0.6769444444 | O69: 2651281 | P69: Breakfast Break | Q69: 1/60 pz | T69: Shamrock | V69: 52.29 | W69: 48.74 | Y69: 0 | Z69: 0
B70: 65 | C70: 1180 | D70: CEREAL OATS | E70: OATS, ROLLED, INSTANT, ENRICHED, DRY | F70: SPECIFY | H70: CS | I70: 12 | J70: 42 OZ | K70: 20 | L70: 27.56 | M70: 551.2 | N70: 2.296666667 | O70: 4003171 | P70: Maypole | Q70: 8/42 oz | T70: Shamrock | U70: 36.3 | V70: 33.19 | W70: 27.56 | X70: 30.62 | Y70: 0 | Z70: 0
B71: 66 | C71: 1171 | D71: CEREAL RICE KRISPIES | E71: RICE, BULK, WHOLE GRAIN, PLAIN, PUFFS. MUST MEET 1G EQUIVALENCY FOR SBP | F71: SPECIFY | H71: CS | I71: 4 | J71: 35 OZ | K71: 900 | L71: 15.47 | M71: 13923 | N71: 3.8675 | O71: 6709455 | P71: HOSPTLY | Q71: 4/35 OZ | R71: N | T71: Sysco | U71: 18.65 | V71: 23.27 | W71: 16.1 | X71: 15.47 | Y71: 0 | Z71: 0
B72: 67 | C72: 1052 | D72: CHEESE AMERICAN SLICED | E72: CHEESE, SLICED, AMERICAN, NO IMITATION, LOW SODIUM, 160 CT | F72: SPECIFY | H72: CS | I72: 4 | J72: 5 LB | K72: 250 | L72: 30.72631579 | M72: 7681.578947 | N72: 7.681578947 | O72: 5132234 | P72: BBRLCLS | Q72: 4/5 LB | R72: N | T72: Sysco | V72: 42.14 | W72: 39.76 | X72: 30.73 | Y72: 0 | Z72: 0
B73: 68 | C73: 1053 | D73: CHEESE AMERICAN SLICED | E73: CHEESE, AMERICAN PROCESSED, SLICED, 1/2 OUNCE EACH, UNWRAPPED. REDUCED FAT, REDUCED SODIUM; PRE-SLICED, YELLOW; AMERICAN PROCESSED CHEESE. IMITATION OR CHEESE BLENDS NOT ACCEPTED. FAT GRAMS NOT TO EXCEED 2G PER SLICE; SODIUM NOT TO EXCEED 210MG PER SLICE. 1 SLICE/.5OZ .5OZMMA 6/5#LAND O LAKES PREFERRED - AVAILABLE FOR NET OFF INVOICE | F73: LAND O'LAKES OR APPROVED EQUIVALENT | G73: 46253 | H73: CS | I73: 6 | J73: 5 LB | K73: 1000 | L73: 66.99 | M73: 66990 | O73: 3550331 | P73: Land O Lakes | Q73: 6/5# | R73: N | S73: Lowest was not brand specific | T73: Shamrock | V73: 42.14 | W73: 66.99 | X73: 30.73 | Y73: 0 | Z73: 0
B74: 69 | D74: CHEESE CHEDDAR SHREDDED | E74: CHEESE, CHEDDAR, SHREDDED, REDUCED FAT; REDUCED SODIUM, MILD; NO IMITATION; ENZYMES AND ARTIFICIAL COLORING MAY BE ADDED. PASTEURIZED; PLEASING ODOR AND FLAVOR; SATISFACTORY MELTABILITY. FAT GRAMS NOT TO EXCEED 4.5G; SODIUM NOT TO EXCEED 90MG. 4/5# AVAILABLE FOR NET OFF INVOICE. LAND O LAKES PREFERRED | F74: LAND O'LAKES OR APPROVED EQUIVALENT | G74: 41749 | H74: CS | I74: 4 | J74: 5 LB | K74: 825 | L74: 49.75 | M74: 41043.75 | O74: 2416361 | P74: Land O Lakes | Q74: 4/5# | T74: Shamrock | V74: 51.67 | W74: 49.75 | X74: 50.12 | Y74: 0 | Z74: 0
B75: 70 | C75: 1054 | D75: CHEESE COTTAGE | E75: COTTAGE CHEESE, SMALL CURD | F75: SPECIFY | H75: CS | I75: 2 | J75: 5 LB | K75: 75 | L75: 9.26 | M75: 694.5 | N75: =IF(L75/I75= 0,"",L75/I75) -> 4.63 | O75: 8201266 | P75: SARAH FARM | Q75: 1 / 5 LB | S75: 83961002153 / COTTAGE CHEESE LOW FAT | T75: Labatt | U75: 43.07 | V75: 9.26 | W75: 23.87 | X75: 14.97 | Y75: 0 | Z75: 0
B76: 71 | C76: 1055 | D76: CHEESE CREAM | E76: CREAM CHEESE | F76: SPECIFY | H76: CS | I76: 10 | J76: 3 LB | K76: 20 | L76: 60.14 | M76: 1202.8 | N76: =IF(L76/I76= 0,"",L76/I76) -> 6.014 | O76: 8701617 | P76: RASKAS | Q76: 10 / 3 LBS | S76: Lowest was not by # | T76: Labatt | U76: 48.54 | V76: 60.14 | W76: 55.69 | X76: 49.46 | Y76: 0 | Z76: 0
B77: 72 | D77: CHEESE CREAM PC | E77: CREAM CHEESE PC. .75OZ CREAM CHEESE SPREAD. | F77: KRAFT OR APPROVED EQUIVALENT | G77: 61089 | H77: CS | I77: 100 | J77: .75 OZ | K77: 500 | L77: 15.83068783 | M77: 7915.343915 | O77: 5156284 | P77: RASKAS | Q77: 100/1 OZ | R77: N | T77: Sysco | V77: 16.53 | W77: 19.67 | X77: 15.83 | Y77: 0 | Z77: 0
B78: 73 | D78: CHEESE CREAM STRAWBERRY PC | E78: 1OZ STRAWBERRY CREAM CHEESE CUP. PLASTIC PORTION CONTROL CUP. | F78: KRAFT OR APPROVED EQUIVALENT | G78: 72683 | H78: CS | I78: 100 | J78: 1 OZ | K78: 500 | L78: 13.31216931 | M78: 6656.084656 | O78: 6262000 | P78: BBRLIMP | Q78: 100/.75 OZ | R78: Y | S78: Will stock if awarded | T78: Sysco | V78: 16.34 | W78: 14.82 | X78: 13.31 | Y78: 0 | Z78: 0
B79: 74 | C79: 1258 | D79: CHEESE FETA | E79: FETA CHEESE CRUMBLES | I79: 4 | J79: 2.5 LB | K79: 50 | L79: 30.05 | M79: 1502.5 | N79: =IF(L79/I79= 0,"",L79/I79) -> 7.5125 | O79: 3485441 | P79: Villa Frizzoni | Q79: 4/2.5# | T79: Shamrock | U79: 33.94 | V79: 31.95 | W79: 30.05 | X79: 52.2 | Y79: 0 | Z79: 0
B80: 75 | C80: 1340 | D80: CHEESE MOZZARELLA SHREDDED | E80: CHEESE, MOZZARELLA, SHREDDED: PART-SKIM 100% MOZZARELLA, SHREDDED. FAT GRAMS NOT TO EXCEED 6G; SODIUM NOT TO EXCEED 160MG. 1OZ SERVING MUST EQUAL 1OZ M/MA. 4/5# AVAILABLE NET OFF INVOICE LAND O LAKES PREFERRED. | F80: LAND O'LAKES OR APPROVED EQUIVALENT | G80: 41698 | H80: CS | I80: 4 | J80: 5 LB | K80: 200 | L80: 36.29473684 | M80: 7258.947368 | O80: 2329413 | P80: AREZIMP | Q80: 4/5LB | R80: N | T80: Sysco | V80: 50.88 | W80: 49.18 | X80: 36.29 | Y80: 0 | Z80: 0
B81: 76 | C81: 1483 | D81: CHEESE PEPPER JACK | E81: CHEESE, SLICED, PEPPER JACK, NO IMITATION, REDUCED FAT, LOW SODIUM, LOW FAT, 160 CT | F81: SPECIFY | H81: CS | I81: 4 | J81: 5 LB | K81: 50 | L81: 31.55789474 | M81: 1577.894737 | N81: =IF(L81/I81= 0,"",L81/I81) -> 7.889473684 | O81: 8315453 | P81: GR LAKE | Q81: 8/20 OZ | R81: N | T81: Sysco | V81: 46.07 | X81: 31.56 | Y81: 0 | Z81: 0
B82: 77 | C82: 1294 | D82: CHEESE PROVOLONE | E82: CHEESE, SLICED, NO IMITATION, REDUCED FAT & SODIUM, 160 CT | F82: SPECIFY | H82: CS | I82: 4 | J82: 5 LB | K82: 50 | L82: 37.85263158 | M82: 1892.631579 | N82: =IF(L82/I82= 0,"",L82/I82) -> 9.463157895 | O82: 4605525 | P82: SCHRBER | Q82: 10/1 LB | R82: N | T82: Sysco | V82: 47 | W82: 45.45 | X82: 37.85 | Y82: 0 | Z82: 0
B83: 78 | C83: 1498 | D83: CHEESE STICK BREADED | E83: CHEESE STICKS, WG BREADED, INDIVIDUALLY FROZEN,. 6 STICKS PROVIDE 2 OZ EQUIVALENT MEAT ALTERNATE AND 2 OZ GRAINS. | F83: RICH'S OR APPROVED EQUIVALENT | G83: 65220 | H83: CS | I83: 8 | J83: 3 LB | K83: 500 | L83: 53.06 | M83: 26530 | N83: =IF(L83/I83= 0,"",L83/I83) -> 6.6325 | O83: 9371212 | P83: RICH'S | Q83: 8 / 3 LB | S83: 65220 / CHEESE STICKS, RF, 51% WG | T83: Labatt | U83: 55.32 | V83: 53.06 | W83: 55.64 | X83: 58.67 | Y83: 0 | Z83: 0
B84: 79 | C84: 1406 | D84: CHEESE STICK COLBY | E84: CHEESE, REDUCED FAT & SODIUM, COLBY, IW | F84: LAND O'LAKES OR APPROVED EQUIVALENT | G84: 44877 | H84: CS | I84: 168 | J84: 1 OZ | K84: 750 | L84: 37.72 | M84: 28290 | N84: =IF(L84/I84= 0,"",L84/I84) -> 0.2245238095 | O84: 746053 | P84: LAND O LAKES | Q84: 168/1OZ | R84: NO | S84: Lowest was not brand specific | T84: BEK | U84: 37.72 | V84: 38.82 | W84: 38.07 | X84: 13.81 | Y84: 0 | Z84: 0
B85: 80 | C85: 1056 | D85: CHEESE STRING IW | E85: CHEESE: WHITE, REDUCED FAT & SODIUM, PORTION, STICKS, STRING, PASTEURIZED, LOW MOISTURE, PART SKIM, MOZZARELLA, IW | F85: LAND O'LAKES OR APPROVED EQUIVALENT | G85: 59703 | H85: CS | I85: 168 | J85: 1 OZ | K85: 900 | L85: 31.58 | M85: 28422 | N85: =IF(L85/I85= 0,"",L85/I85) -> 0.1879761905 | O85: 747156 | P85: LAND O LAKES | Q85: 168/1OZ | R85: NO | T85: BEK | U85: 31.58 | V85: 33.98 | W85: 34.07 | X85: 35.29 | Y85: 0 | Z85: 0
B86: 81 | D86: CHEESE SWISS SLICES | E86: SWISS CHEESE SLICES, REDUCED FAT PRESLICED, EASY TO SEPARATE. EACH SLICE 14G. 2 SLICES PROVIDES 1 M/MA FOR THE CHILD NUTRITION MEAL PROGRAM. | F86: LAND O'LAKES OR APPROVED EQUIVALENT | H86: CS | I86: 8 | J86: 1.5 LB | K86: 50 | L86: 38.83597884 | M86: 1941.798942 | O86: 3554569 | P86: BBRLIMP | Q86: 8/1.5 LB | R86: N | T86: Sysco | U86: 0 | V86: 47.63 | W86: 46.53 | X86: 38.84 | Y86: 0 | Z86: 0
B87: 82 | C87: 1357 | D87: CHEESECAKE NY STYLE PLAIN | E87: CHEESECAKE, NY STYLE, PLAIN, (16 SLICES EACH, 10 INCH) CATERING | F87: SARALEE OR APPROVED EQUIVALENT | H87: CS | I87: 4 | J87: 10 IN CAKES | K87: 20 | L87: 68.51 | M87: 1370.2 | N87: =IF(L87/I87= 0,"",L87/I87) -> 17.1275 | O87: 9340100 | P87: SARA LEE | Q87: 4 / 10" 16CT | S87: 8078 / CHEESECAKE, NY STYLE PRE CUT | T87: Labatt | U87: 86.34 | V87: 68.51 | W87: 72 | X87: 87.62 | Y87: 0 | Z87: 0
B88: 83 | D88: CHEESECAKE NY STYLE VARIETY PACK | E88: FAMOUS NEW YORK STYLE CHEESECAKES CAREFULLY CRAFTED WITH RICH INDULGENT INGREDIENTS. CONTAINS ONE EACH OF PLAIN, CHOCOLATE MARBLE, BUTTER PECAN AND DOUBLE CHOCOLATE CHEESECAKES (16 SLICES EACH), 10 INCH, CATERING | F88: SARALEE OR APPROVED EQUIVALENT | G88: 8083 | H88: CS | I88: 4 | J88: 10 IN CAKES | K88: 10 | L88: 42.90526316 | M88: 429.0526316 | N88: 10.72631579 | O88: 234419 | P88: SYS CLS | Q88: 4/30 OZ | R88: N | T88: Sysco | V88: 80.78 | W88: 86.04 | X88: 42.91 | Y88: 0 | Z88: 0
B89: 84 | C89: 1325 | D89: CHEESECAKE VARIETY PACK | E89: ASSORTED CHEESECAKES, CONTAINS ONE EACH OF CARAMEL PECAN, MOCHA SWIRL, WHITE CHOCOLATE TUXEDO AND FUDGE TRUFFLE, (16 SLICES EACH), 10 INCH, CATERING | F89: SARALEE OR APPROVED EQUIVALENT | G89: 8793 | H89: CS | I89: 4 | J89: 10 IN CAKES | K89: 10 | L89: 98.47 | M89: 984.7 | N89: 24.6175 | O89: 9340241 | P89: SARA LEE | Q89: 4 / 10" 14CT | S89: 8793 / CHEESECAKE, ELITE VARITY P/C | T89: Labatt | U89: 115.1 | V89: 98.47 | W89: 103.94 | Y89: 0 | Z89: 0
B90: 85 | C90: 1414 | D90: CHICKEN ASIAN CHERRY BLOOSOM | E90: FULLY COOKED, CHICKEN CHUNKS, WHOLE GRAIN, SWEET AND SOUR CHERRY ASIAN STYLE | F90: ASIAN FOODS OR APPROVED EQUIVALENT | G90: 72005 | H90: CS | I90: 6 | J90: 7.15 LB | K90: 200 | L90: 115.14 | M90: 23028 | N90: 19.19 | O90: 9407024 | P90: ASIAN FOOD | Q90: 6 / 7.15 LB | S90: 72005 / CHICKEN, CHERRY BLOSSOM | T90: Labatt | V90: 115.14 | W90: 116.51 | X90: 115.34 | Y90: 0 | Z90: 0
B91: 86 | C91: 1434 | D91: CHICKEN ASIAN GENERAL TSO | E91: FULLY COOKED, WG BREADED CHICKEN CHUNKS TOSSED WITH A SWEET AND SPICY SAUCE | F91: ASIAN SOLUTIONS OR APPROVED EQUIVALENT | G91: 72003 | H91: CS | I91: 6 | J91: 7.15 LB | K91: 90 | L91: 115.5 | M91: 10395 | N91: 19.25 | O91: 8832001 | P91: ASIAN FOOD | Q91: 6 / 7.15 LB | S91: Lowest was a special order | T91: Labatt | V91: 115.5 | W91: 116.1 | X91: 114.74 | Y91: 0 | Z91: 0
B92: 87 | C92: 1394 | D92: CHICKEN ASIAN SRIRACHA HONEY | E92: FULLY COOKED, CHICKEN STRIPS IN A SRIRACH HONEY | F92: ASIAN SOLUTIONS OR APPROVED EQUIVALENT | G92: 72013 | H92: CS | I92: 6 | J92: 7.15 LB | K92: 60 | L92: 115.46 | M92: 6927.6 | N92: 19.24333333 | O92: 8832012 | P92: ASIAN FOOD | Q92: 6 / 7.15 LB | R92: n | S92: Lowest was a special order | T92: Labatt | V92: 115.46 | W92: 116.9 | X92: 115.34 | Y92: 0 | Z92: 0
B93: 88 | C93: 1256 | D93: CHICKEN ASIAN TANGERINE | E93: FULLY COOKED, WG BREADED CHICKEN CHUNKS TOSSED WITH A SWEET AND TANGY SAUCE | F93: ASIAN SOLUTIONS OR APPROVED EQUIVALENT | G93: 72001 | H93: CS | I93: 6 | J93: 7.15 LB | K93: 200 | L93: 115.36 | M93: 23072 | N93: 19.22666667 | O93: 8832020 | P93: ASIAN FOOD | Q93: 6 / 5 LB | S93: Lowest was a special order | T93: Labatt | V93: 115.36 | W93: 116.43 | X93: 114.74 | Y93: 0 | Z93: 0
B94: 89 | C94: 1416 | D94: CHICKEN BREAST RAW | E94: CHICKEN, UNCOOKED, BREAST, BONELESS, SKINLESS, WHITE, 6 OZ SIZE, CATERING | F94: SPECIFY | H94: CS | I94: 48 | J94: 6 OZ | K94: 25 | L94: 3.42 | M94: 85.5 | N94: 0.07125 | O94: 5450567 | P94: DSM CHIX | Q94: 4 / 5 LB | S94: BRST FZ 6 OZ FILET NF Per Pound Price listed | T94: Labatt | U94: 0 | V94: 3.42 | W94: 64.94 | X94: 45.44 | Y94: 0 | Z94: 0
B95: 90 | C95: 1407 | D95: CHICKEN BROTH | E95: 100% NATURAL CHICKEN BROTH, LOW SODIUM | F95: SWANSON OR APPROVED EQUIVALENT | H95: CS | I95: 12 | J95: 49 oz | K95: 50 | L95: 31.72 | M95: 1586 | N95: 2.643333333 | O95: 1780701 | P95: Katy's Kitchen | Q95: 12/49 oz | R95: NO | T95: Shamrock | V95: 32.75 | W95: 31.72 | X95: 33.15 | Y95: 0 | Z95: 0
B96: 91 | C96: 1423 | D96: CHICKEN DICED | E96: FULLY COOKED, DICED, NO ADDED SPICES | F96: SPECIFY | H96: CS | I96: 2 | J96: 5 LBS | K96: 50 | L96: 24.64210526 | M96: 1232.105263 | N96: 12.32105263 | O96: 2976528 | P96: TYSON | Q96: 2/5LB | R96: N | T96: Sysco | U96: 30.95 | V96: 32.75 | W96: 31.84 | X96: 24.64 | Y96: 0 | Z96: 0
B97: 92 | C97: 1437 | D97: CHICKEN DRUMSTICK BBQ | E97: FULLY COOKED, BBQ GLAZED DRUMSTICKS | F97: TYSON OR APPROVED EQUIVALENT | G97: 2133-928 | H97: CS | I97: 1 | J97: 10 LB--36/2.85 OZ | K97: 700 | L97: 25.83979328 | O97: 3476488 | P97: TYSON | Q97: 2/5 LB | R97: N | T97: Sysco | U97: 26.32 | V97: 26.73 | W97: 26.65 | X97: 25.84 | Y97: 0 | Z97: 0
B98: 93 | C98: 1437 | D98: CHICKEN DRUMSTICK BREADED | E98: FULLY COOKED, BREADED DRUMSTICK | F98: TYSON OR APPROVED EQUIVALENT | G98: 16660-100928 | H98: CS | I98: 92 | J98: 4.21 OZ | K98: 1530 | L98: 79.81 | M98: =IF(L98*K98= 0,"",L98*K98) -> 122109.3 | N98: =IF(L98/I98= 0,"",L98/I98) -> 0.8675 | P98: TYSON | R98: NO | S98: MFG 16660100928 | T98: BEK | U98: 79.81 | V98: 85.27 | W98: 81.88 | X98: 80.23 | Y98: 0 | Z98: 0
B99: 94 | C99: 1151 | D99: CHICKEN FAJITA STRIPS | E99: FAJITA STRIPS, CHICKEN, SEASONED | F99: PILGRIM'S OR APPROVED EQUIVALENT | G99: 1250 | H99: CS | I99: 195 | J99: 2.45 OZ | K99: 100 | L99: 31.63157895 | M99: 3163.157895 | N99: 0.1622132254 | O99: 1647353 | P99: SYS CLS | Q99: 2/5 LB | R99: N | T99: Sysco | U99: 96.36 | V99: 106.44 | W99: 98.53 | X99: 31.63 | Y99: 0 | Z99: 0
B100: 95 | C100: 1154 | D100: CHICKEN FILET | E100: FULLY COOKED, WHOLE MUSCLE CHICKEN FILETS-CN | F100: PILGRIM'S OR APPROVED EQUIVALENT | G100: 7516 | H100: CS | I100: 120 | J100: 4 OZ | K100: 100 | L100: 105.46 | M100: 10546 | N100: 0.8788333333 | O100: 8867507 | P100: CHRIS P | Q100: 1 / 30 LB | S100: Lowest was not approved brand | T100: Labatt | U100: 105.46 | V100: 105.46 | W100: 39.27 | X100: 58.5 | Y100: 0 | Z100: 0
B101: 96 | C101: 1152 | D101: CHICKEN NUGGET | E101: FULLY COOKED WG BREADED, CN LABELED, NO ADDED SOY PRODUCTS, DAIRY OR DRIED WHOLE EGG, 5 NUGGEST PROVIDE 2 OZ MEAT/MEAT ALTERNATIVE AND 1 GRAIN SERVING. COMMERICAL VERSION OF COMMODITY | F101: GOLK KIST FARMS OR APPROVED EQUIVALENT | G101: 6116 | H101: CS | I101: 120 | J101: 3.9 OZ | K101: 800 | L101: 75.07 | M101: 60056 | N101: 0.6255833333 | O101: 3629461 | P101: Gold Kist | Q101: 120/3.9 oz | R101: YES | S101: Lowest wasn't brand specific | T101: Shamrock | V101: 38.05 | W101: 75.07 | X101: 22.84 | Y101: 0 | Z101: 0
B102: 97 | C102: 1153 | D102: CHICKEN PATTY BREADED | E102: FULLY COOKED, WG BREADED, CN LABELED, NO ADDED SOY PRODUCTS, DAIRY OR DRIED WHOLE EGG, 1 PATTY PROVIDES 2 OZ MEAT/MEAT ALTERNATIVE AND 1 GRAIN SERVING. COMMERCIAL VERSION OF COMMODITY | F102: GOLD KIST FARMS OR APPROVED EQUIVALENT | G102: 6616 | H102: CS | I102: 120 | J102: 3.9 OZ | K102: 725 | L102: 44.63157895 | M102: 32357.89474 | N102: 0.3719298246 | O102: 3151463 | P102: ADVANCE | Q102: 90/3 OZ | R102: N | T102: Sysco | V102: 75.7 | W102: 57.17 | X102: 44.63 | Y102: 0 | Z102: 0
B103: 98 | C103: 1083 | D103: CHICKEN PATTY BREADED SPICY | E103: FULLY COOKED, WG SPICY BREADED, CN LABELED, 1 PATTY PROVIDED 2 OZ MEAT/MEAT ALTERNATIVE AND 1 OZ GRAIN PER SERVING | F103: PILGRIM'S OR APPROVED EQUIVALENT | G103: 666600 | H103: CS | I103: 156 | J103: 3.05 OZ | K103: 100 | L103: 60.73 | M103: 6073 | N103: 0.3892948718 | O103: 9011076 | P103: TYSON | Q103: 148 / 3.53 OZ | S103: Lowest was special order | T103: Labatt | V103: 60.73 | W103: 69.08 | X103: 55.91 | Y103: 0 | Z103: 0
B104: 99 | D104: CHICKEN POPCORN SMACKERS WG | E104: FULLY COOKED WG POPCORN SMACKERS WG - CN | F104: PILGRIM'S OR APPROVED EQUIVALENT | G104: 110458 | H104: CS | I104: 108 | J104: 4.3 OZ | K104: 800 | L104: 83.98 | M104: 67184 | N104: 0.7775925926 | O104: 3911851 | P104: Pilgrims | Q104: 108/4.3 oz | S104: Lowest was not approved brand | T104: Shamrock | V104: 46.07 | W104: 83.98 | X104: 84.54 | Y104: 0 | Z104: 0
B105: 100 | D105: CHICKEN STRIPS HOMESTYLE WG | E105: FULLY COOKED WG HOMESTYLE CHICKEN STRIPS - CN | F105: PILGRIM'S OR APPROVED EQUIVALENT | G105: 625300 | H105: CS | I105: 156 | J105: 3.06 OZ | K105: 500 | L105: 63.85185185 | M105: 31925.92593 | N105: 0.4093067426 | O105: 4176188C | P105: GLDKIST | Q105: 1/30LB | R105: Y | S105: Will stock if awarded | T105: Sysco | V105: 69.05 | W105: 65.49 | X105: 63.85 | Y105: 0 | Z105: 0
B106: 101 | D106: CHICKEN TENDERLOIN WG | E106: FULLY COOKED, WG BREADED CHICKEN TENDERS - CN | F106: PILGRIM'S OR APPROVED EQUIVALENT | G106: 7572 | H106: CS | I106: 106 | J106: 4.35 OZ | K106: 600 | L106: 81.94708995 | M106: 49168.25397 | N106: 0.7730857542 | O106: 7054931C | P106: GLDKIST | Q106: 110/4.35 OZ | R106: Y | S106: Will stock if awarded | T106: Sysco | V106: 93.83 | W106: 90.74 | X106: 81.95 | Y106: 0 | Z106: 0
B107: 102 | C107: 1452 | D107: CHILE RED HOT | E107: RED CHILE PUREE, HOT FROZEN | F107: M A SONS | H107: CS | I107: 6 | J107: 3.5 LB | K107: 150 | L107: 3.57 | M107: 535.5 | N107: 0.595 | O107: 5660077 | P107: BUENO | Q107: 1 / 1 LB | S107: 0942-2 / RED CHILE, HOT PUREE FRZ Per Pound Price listed | T107: Labatt | V107: 3.57 | W107: 21.03 | X107: 21.03 | Y107: 0 | Z107: 0
B108: 103 | C108: 1000 | D108: CHILE RED MILD | E108: RED CHILE PUREE, MILD FROZEN | F108: M A SONS | H108: CS | I108: 6 | J108: 3.5 LB | K108: 250 | V108: 29.38 | W108: 21.03 | X108: 22.55 | Y108: 0 | Z108: 0
B109: 104 | D109: CHILES GREEN | E109: CHILES, DICED, GREEN, ESTRELLAS MEXICANAS | F109: ESTRELLAS OR APPROVED EQUIVALENT | G109: 5208 | H109: CS | I109: 12 | J109: 26 OZ | K109: 400 | L109: 26.44 | M109: =IF(L109*K109= 0,"",L109*K109) -> 10576 | O109: 2001584 | P109: ESTRELLAS | Q109: 12 / 26 OZ | S109: 05208 / CHILIES, DICED GREEN | T109: Labatt | V109: 26.44 | W109: 30.73 | X109: 54.98 | Y109: 0 | Z109: 0
B110: 105 | D110: CHILI HOT DOG | E110: HOT DOG CHILI. HEARTY CHUNKS OF LEAN BEEF AND PLUMP TENDER BEANS | F110: LIBBY'S OR APPROVED EQUIVALENT | H110: CS | I110: 6 | J110: #10 CANS | K110: 800 | L110: 46.93 | M110: 37544 | O110: 3221231 | P110: LIBBY | Q110: 6 / #10 | S110: 3122 / SAUCE, CHILI HOT DOG | T110: Labatt | V110: 46.93 | W110: 70.09 | X110: 56.3 | Y110: 0 | Z110: 0
B111: 106 | D111: CHIPS COOL RANCH SMART SNACK | E111: CHIPS, IND. PKG., REDUCED FAT; COOL RANCH FLAVORED, CORN: BAKED TRIANGLE SHAPED CORN TORTILLA PIECES; FLAVORED WITH RANCH SEASONING. 72/1 OZ. | F111: DORITOS OR APPROVED EQUIVALENT | G111: 36096 | H111: CS | I111: 72 | J111: 1 OZ | K111: 400 | L111: 21.15343915 | M111: 8461.375661 | O111: 5073130 | P111: DORITOS | Q111: 72/1 OZ | R111: N | T111: Sysco | V111: 25.89 | W111: 23.75 | X111: 21.15 | Y111: 0 | Z111: 0
B112: 107 | C112: 1183 | D112: CHIPS BAKED CHEETOS CRUNCHY | E112: CHIPS, BAKED, CRUNCHY CHEETOS | F112: FRITO LAY OR APPROVED EQUIVALENT | G112: 000-28400-21642-5 | H112: CS | I112: 104 | J112: .875 OZ | K112: 472 | L112: 30.62765957 | M112: 14456.25532 | N112: =IF(L112/I112= 0,"",L112/I112) -> 0.2944967267 | O112: 9978982 | P112: CHEETOS | Q112: 104/.875OZ | R112: Y | S112: Will stock if awarded | T112: Sysco | V112: 35.27 | W112: 31.2 | X112: 30.63 | Y112: 0 | Z112: 0
B113: 108 | C113: 1185 | D113: CHIPS BAKED DORITOS | E113: CHIPS, BAKED, DORITOS, NACHO CHEESE | F113: FRITO LAY OR APPROVED EQUIVALENT | G113: 000-28400-20002-8 | H113: CS | I113: 88 | J113: .75 OZ | K113: 549 | L113: 25.9 | M113: 14219.1 | N113: =IF(L113/I113= 0,"",L113/I113) -> 0.2943181818 | O113: 3777915 | P113: DORITOS | Q113: 72 / 1 OZ | S113: 31748 / CHIPS NACHO CHEESE RF WG | T113: Labatt | V113: 25.9 | X113: 32.45 | Y113: 0 | Z113: 0
B114: 109 | C114: 1358 | D114: CHIPS BAKED LAYS BBQ | E114: CRISPS, BAKED, LAYS, BBQ FLAVOR | F114: FRITO LAY OR APPROVED EQUIVALENT | G114: 000-28400-32078-8 | H114: CS | I114: 60 | J114: .875 OZ | K114: 100 | L114: 22.23 | M114: 2223 | N114: =IF(L114/I114= 0,"",L114/I114) -> 0.3705 | O114: 3778056 | P114: LAYS | Q114: 60 / 0.875 OZ | S114: 32078 / CHIPS BAKED KCM BBQ | T114: Labatt | V114: 22.23 | W114: 28.46 | X114: 27.69 | Y114: 0 | Z114: 0
B115: 110 | C115: 1182 | D115: CHIPS BAKED LAYS SC/ONION | E115: CRISPS, BAKED, LAYS, SOUR CREAM & ONION | F115: FRITO LAY OR APPROVED EQUIVALENT | G115: 00028400-04702-9 | H115: CS | I115: 60 | J115: .875 OZ | K115: 400 | L115: 22.29 | M115: 8916 | N115: =IF(L115/I115= 0,"",L115/I115) -> 0.3715 | O115: 3778139 | P115: LAYS | Q115: 60 / .875 OZ | S115: 33627 / CHIPS BAKED SOUR CRM&ONION | T115: Labatt | V115: 22.29 | W115: 28.46 | X115: 27.69 | Y115: 0 | Z115: 0
B116: 111 | D116: CHIPS BKD FANTASTIX SMART SNACK | E116: CHIPS BKD FANTASTIX HOT WG | F116: CHEETO'S OR APPROVED EQUIVALENT | G116: 43578 | H116: CS | I116: 104 | J116: 1 OZ | K116: 400 | L116: 30.55026455 | M116: 12220.10582 | O116: 6888479 | P116: CHEETOS | Q116: 104/1 OZ | R116: N | T116: Sysco | V116: 35.41 | W116: 31.2 | X116: 30.55 | Y116: 0 | Z116: 0
B117: 112 | D117: CHIPS CHEETO RED HOT SMART SNACK | E117: CHIPS, IND. PKG., RED HOT FRITO LAY, BAKED: ENRICHED CORNMEAL PUFF STICK, FLAVORED WITH RED HOT CHEESE SEASONING. 104/.875 OZ | F117: CHEETO'S OR APPROVED EQUIVALENT | G117: 62984 | H117: CS | I117: 104 | J117: .875 OZ | K117: 400 | L117: 30.55026455 | M117: 12220.10582 | O117: 4360776 | P117: CHEETOS | Q117: 104/.875OZ | R117: N | T117: Sysco | V117: 35.27 | W117: 31.2 | X117: 30.55 | Y117: 0 | Z117: 0
B118: 113 | C118: 1184 | D118: CHIPS CORN BULK | E118: ENRICHED CORN CHIPS | F118: FRITO LAY OR APPROVED EQUIVALENT | G118: 000-28400-12248 | H118: CS | I118: 8 | J118: 1 LB | K118: 1900 | L118: 13.96858639 | M118: 26540.31414 | N118: =IF(L118/I118= 0,"",L118/I118) -> 1.746073298 | O118: 4073847 | P118: FRITOS | Q118: 8/16 OZ | R118: N | T118: Sysco | V118: 18.62 | W118: 14.7 | X118: 13.97 | Y118: 0 | Z118: 0
B119: 114 | D119: CHIPS CORN WHOLE GRAIN BULK | E119: ENRICHED REDUCED FAT CORN CHIPS WHOLE GRAIN | F119: FRITO LAY OR APPROVED EQUIVALENT | G119: 000-28400-57766-3 | H119: CS | I119: 8 | J119: 1 LB | K119: 1900 | L119: 16.62827225 | M119: 31593.71728 | N119: =IF(L119/I119= 0,"",L119/I119) -> 2.078534031 | O119: 3574417 | P119: FRITOS | Q119: 8/16 OZ | R119: N | T119: Sysco | V119: 20.38 | W119: 16.91 | X119: 16.63 | Y119: 0 | Z119: 0
B120: 115 | C120: 1186 | D120: CHIPS NACHO | E120: ROUND SHAPED TORTILLA CHIP WHOLE GRAIN PREPARED FROM ENRICHED YELLOW CORN. TRANSFAT FREE; 1 OZ MUST MEET 1 GR | F120: SPECIFY | H120: CS | I120: 6 | J120: 2 LB | K120: 2500 | L120: 11.39 | M120: 28475 | N120: =IF(L120/I120= 0,"",L120/I120) -> 1.898333333 | O120: 159077 | P120: ISABELLA | Q120: 3/2LB | T120: BEK | U120: 11.39 | V120: 25.9 | W120: 21.78 | X120: 14.08 | Y120: 0 | Z120: 15.6
B121: 116 | D121: CHIPS NACHO CHEESE SMART SNACK | E121: CHIPS , REDUCED FAT, NACHO CHEESE FLAVOR. WGR | F121: DORITOS OR APPROVED EQUIVALENT | G121: 31748 | H121: CS | I121: 72 | J121: 1 OZ | K121: 400 | L121: 21.15343915 | M121: 8461.375661 | O121: 6626774 | P121: DORITOS | Q121: 72/1 OZ | R121: N | T121: Sysco | V121: 25.9 | W121: 21.77 | X121: 21.15 | Y121: 0 | Z121: 0
B122: 117 | D122: CHIPS ONION FLAVORED SMART SNACK | E122: CHIPS, IND. PKG., ONION FLAVORED SNACKS; ENRICHED CORN MEAL SHAPED LIKE AN ONION RING; FLAVORED WITH ONION SEASONING. 104/.75 OZ | F122: FUNYUNS OR APPROVED EQUIVALENT | G122: 3321-003-500 | H122: CS | I122: 104 | J122: .75 OZ | K122: 400 | L122: 14.8994709 | M122: 5959.78836 | O122: 7019343 | P122: FUNYUNS | Q122: 104/.75OZ | R122: N | T122: Sysco | V122: 35.21 | W122: 31.44 | X122: 14.9 | Y122: 0 | Z122: 0
B123: 118 | C123: 1199 | D123: CHIPS PRETZELS | E123: HEARTZELS, WHOLE GRAIN WHEAT FLOUR/ENRICHED WHEAT FLOUR, RED GOLD, MEET 1 OZ GRAIN | F123: ROLD GOLD OR APPROVED EQUIVALENT | G123: 000-28400-15940-1 | H123: CS | I123: 104 | J123: .7 OZ | K123: 50 | L123: 28.95789474 | M123: 1447.894737 | N123: =IF(L123/I123= 0,"",L123/I123) -> 0.2784412955 | O123: 1746093 | P123: ROLGOLD | Q123: 104/.7 OZ | R123: Y | T123: Sysco | V123: 34.26 | W123: 31.44 | X123: 28.96 | Y123: 0 | Z123: 0
B124: 119 | D124: CHIPS PUFFED SMART SNACK | E124: CHIPS PUFFS RF WG | F124: CHEETO'S OR APPROVED EQUIVALENT | G124: 21910 | H124: CS | I124: 72 | J124: .7 OZ | K124: 300 | L124: 20.14814815 | M124: 6044.444444 | O124: 2255848 | P124: CHEETOS | Q124: 72/0.7 OZ | R124: Y | S124: Will stock if awarded | T124: Sysco | V124: 25.93 | W124: 21.77 | X124: 20.15 | Y124: 0 | Z124: 0
B125: 120 | D125: CHIPS REGULAR SMART SNACK | E125: CHIPS, IND. PKG. BAKED REG. FLAVORED: BAKED POTATO PIECES; SALTED; PLAIN. NO MORE THAN 7.5 GRAMS OF FAT PER BAG. | F125: LAYS OR APPROVED EQUIVALENT | G125: 33625 | H125: CS | I125: 60 | J125: .875 OZ | K125: 300 | L125: 17.3015873 | M125: 5190.47619 | O125: 3232527 | P125: BKDLAYS | Q125: 60/.875OZ | R125: Y | S125: Will stock if awarded | T125: Sysco | V125: 22.23 | W125: 28.46 | X125: 17.3 | Y125: 0 | Z125: 0
B126: 121 | D126: CHIPS SOUR CREAM & ONION SMART SNACK | E126: CHIPS, IND. PKG., BAKED SOUR CRM. & ONION FLAVORED: BAKED POTATO PIECES; FLAVORED WITH SOUR CREAM AND ONION SEASONING. 60/.875 OZ. | F126: LAYS OR APPROVED EQUIVALENT | G126: 33627 | H126: CS | I126: 60 | J126: .875 OZ | K126: 300 | L126: 22.29 | M126: 6687 | N126: =IF(L126/I126= 0,"",L126/I126) -> 0.3715 | O126: 3778139 | P126: LAYS | Q126: 60 / .875 OZ | S126: Lowest was special order | T126: Labatt | V126: 22.29 | W126: 18.26 | Y126: 0 | Z126: 0
B127: 122 | C127: 1451 | D127: CHIPS SUNCHIPS | E127: CHIPS, SUNCHIPS, GARDEN SALSA FLAVORED , MULTIGRAIN SNACKS | F127: FRITO LAY OR APPROVED EQUIVALENT | G127: 000-28400-36445-4 | H127: CS | I127: 104 | J127: 1 OZ | K127: 200 | L127: 27.29473684 | M127: 5458.947368 | N127: =IF(L127/I127= 0,"",L127/I127) -> 0.2624493927 | O127: 5073163 | P127: SUNCHIP | Q127: 104/1 OZ | R127: Y | S127: Will stock if awarded | T127: Sysco | V127: 35.2 | W127: 31.45 | X127: 27.29 | Y127: 0 | Z127: 0
B128: 123 | D128: CHIPS SUNCHIPS | E128: CHIPS, MULTGRAIN SNACKS, HARVEST CHEDDAR FLAVORED | F128: FRITO LAY OR APPROVED EQUIVALENT | G128: 000-28400-11152-2 | H128: CS | I128: 104 | J128: 1 OZ | K128: 200 | L128: 27.29473684 | M128: 5458.947368 | N128: =IF(L128/I128= 0,"",L128/I128) -> 0.2624493927 | O128: 5073163 | P128: SUNCHIP | Q128: 104/1 OZ | R128: Y | S128: Will stock if awarded | T128: Sysco | V128: 35.2 | W128: 31.45 | X128: 27.29 | Y128: 0 | Z128: 0
B129: 124 | D129: CHIPS SUNCHIPS | E129: CHIPS MULITGRAIN SNACKS, FRENCH ONION | F129: FRITO LAY OR APPROVED EQUIVALENT | G129: 000-28400-11153-9 | H129: CS | I129: 104 | J129: 1 OZ | K129: 200 | L129: 27.29473684 | M129: 5458.947368 | N129: =IF(L129/I129= 0,"",L129/I129) -> 0.2624493927 | O129: 5073163 | P129: SUNCHIP | Q129: 104/1 OZ | R129: Y | S129: Will stock if awarded | T129: Sysco | V129: 35.2 | X129: 27.29 | Y129: 0 | Z129: 0
B130: 125 | D130: CHIPS SUNCHIPS NOT SMART SNACK APPROVED | E130: CHIPS, IND. PKG., SUN CHIPS: MULTIGRAIN REDUCED FAT SNACK CHIP. 104/1 OZ | F130: SUNCHIPS OR APPROVED EQUIVALENT | G130: 11151 | H130: CS | I130: 104 | J130: 1 OZ | K130: 200 | L130: 30.55026455 | M130: 6110.05291 | O130: 5512033 | P130: SUNCHIP | Q130: 104/1 OZ | R130: N | T130: Sysco | V130: 35.22 | W130: 31.45 | X130: 30.55 | Y130: 0 | Z130: 0
B131: 126 | C131: 1359 | D131: CHOCOLATE ENROBER | E131: CHOCOLATE FLAVORED ENROBER COATING IS A RICH CHOCOLATE COATING THAT HARDENS AT ROOM TEMPERATURE. THE PRODUCT IS IN A HARDENED CANDY STATE IN THE UNHEATED CAN. CATERING | F131: SPECIFY | H131: CS | I131: 6 | J131: 10 CN | K131: 15 | L131: 60.43 | M131: 906.45 | N131: =IF(L131/I131= 0,"",L131/I131) -> 10.07166667 | O131: 112278 | P131: CONAGRA | Q131: 3/#10 | R131: NO | T131: BEK | U131: 60.43 | V131: 61.69 | W131: 66.74 | Y131: 0 | Z131: 0
B132: 127 | C132: 1148 | D132: CHORIZO BULK | E132: SAUSAGE, CHORIZO BULK, MILD SEASONING, LIGHT COLORED, BULK | F132: SPECIFY | H132: CS | I132: 10 | J132: LB | K132: 450 | L132: 2.55 | M132: 1147.5 | N132: =IF(L132/I132= 0,"",L132/I132) -> 0.255 | O132: 5108100 | P132: DSM PORK | Q132: 3 / 5LB | S132: 08100 / FZ CHORIZO SA Per Pound Price listed | T132: Labatt | V132: 2.55 | W132: 32.75 | X132: 23.71 | Y132: 0 | Z132: 0
B133: 128 | D133: CHOW MEIN | E133: CHOW MEIN WITH VEGETABLES, WHOLE GRAIN, A 4.8oz SERVING PROVIDES 1.0 OZ GRAIN EQUIVALENTS. | F133: ASIAN FOODS OR APPROVED EQUIVALENT | G133: 22101WG | H133: CS | I133: 6 | J133: 5.6 LB | K133: 250 | L133: 21.68253968 | M133: 5420.634921 | O133: 1754607 | P133: YANGS | Q133: 4/2.5LB | R133: N | T133: Sysco | V133: 87.5 | W133: 22.15 | X133: 21.68 | Y133: 0 | Z133: 0
B134: 129 | C134: 1001 | D134: COCOA | E134: UNSWEETENED COCOA 22/24% BUTTER FAT, CATERING | F134: SPECIFY | H134: CS | I134: 6 | J134: 5 LB | K134: 20 | L134: 72.78 | M134: 1455.6 | N134: =IF(L134/I134= 0,"",L134/I134) -> 12.13 | O134: 3970291 | P134: Callebaut | Q134: 6/2.2# | R134: NO | S134: MFG DCP-22SP-760 | T134: Shamrock | V134: 166.29 | W134: 72.78 | X134: 166.84 | Y134: 0 | Z134: 0
B135: 130 | C135: 1002 | D135: COCONUT | E135: UNSWEETENED MEDIUM SHREDDED COCONUT, CATERING | F135: SPECIFY | H135: CS | I135: 10 | J135: 1 LBS | K135: 5 | L135: 10.08 | M135: 50.4 | N135: =IF(L135/I135= 0,"",L135/I135) -> 1.008 | O135: 140538 | P135: BOB'S RED MILL | Q135: 4/10OZ | R135: NO | T135: BEK | U135: 10.08 | V135: 22.65 | W135: 26.7 | X135: 90 | Y135: 0 | Z135: 0
B136: 131 | C136: 1337 | D136: COFFEE DECAF | E136: FOLGERS FILTER PACK, COFFEE, ULTRA DRY ROAST, CATERING | F136: FOLGERS OR APPROVED EQUIVALENT | H136: CS | I136: 80 | J136: .9 OZ | K136: 20 | L136: 47.97 | M136: 959.4 | N136: =IF(L136/I136= 0,"",L136/I136) -> 0.599625 | O136: 8245680 | P136: FOLGERS | Q136: 80 / 0.90 OZ | S136: 2550006136 / COFFEE, DECAFFINATED FP | T136: Labatt | V136: 47.97 | W136: 49 | X136: 48.32 | Y136: 0 | Z136: 0
B137: 132 | C137: 1160 | D137: COFFEE REGULAR | E137: FOLGERS FILTER PACK, COFFEE, ULTRA DRY ROAST, CATERING | F137: FOLGERS OR APPROVED EQUIVALENT | H137: CS | I137: 160 | J137: .9 OZ | K137: 50 | L137: 82.29 | M137: 4114.5 | N137: =IF(L137/I137= 0,"",L137/I137) -> 0.5143125 | O137: 8245656 | P137: FOLGERS | Q137: 160 / .9 OZ | S137: 2550006114 / COFFEE, REGULAR FPG | T137: Labatt | V137: 82.29 | W137: 82.51 | X137: 85.87 | Y137: 0 | Z137: 0
B138: 133 | D138: COOKIE DOUGH FROZEN CARNIVAL WG | E138: COOKIE DOUGH, CARNIVAL: 1.85OZ; FROZEN; WGR; MADE WITH A MIXTURE OF CHOCOLATE CHIPS AND COLORFUL COATED CANDIES; PRE-PORTIONED; READY TO BAKE; FAT GRAMS TO NOT EXCEED 6G; SODIUM MG NOT TO EXCEED 120 MG; CASE PACK 180 1.85OZ | F138: OTIS SPUNKMEYER OR APPROVED EQUIVALENT | G138: 21653 | H138: CS | I138: 180 | J138: 1.85 OZ | K138: 75 | L138: 47.58 | M138: 3568.5 | O138: 3007451 | P138: Otis Spunkmeyer | Q138: 240/1.5z | R138: NO | S138: MFG 55688 | T138: Shamrock | U138: 48.49 | V138: 48.45 | W138: 47.58 | Y138: 0 | Z138: 0
B139: 134 | C139: 1062 | D139: COOKIE DOUGH FROZEN CHOCOLATE CHIP | E139: COOKIE DOUGH, CHOCOLATE CHIP, CATERING | F139: BRICKFIRE OR APPROVED EQUIVALENT | G139: 2340091 | H139: CS | I139: 240 | J139: 1.5 OZ | K139: 75 | L139: 26.09 | M139: 1956.75 | N139: =IF(L139/I139= 0,"",L139/I139) -> 0.1087083333 | O139: 2340091 | P139: Brickfire | Q139: 170/1.5oz | R139: NO | T139: Shamrock | V139: 45.75 | W139: 26.09 | X139: 43.51 | Y139: 0 | Z139: 0
B140: 135 | C140: 1067 | D140: COOKIE DOUGH FROZEN OATMEAL RAISIN | E140: COOKIE DOUGH, OATMEAL RAISIN, CATERING | F140: BRICKFIRE OR APPROVED EQUIVALENT | G140: 2340101 | H140: CS | I140: 240 | J140: 1.5 OZ | K140: 60 | L140: 24.62 | M140: 1477.2 | N140: 0.1025833333 | O140: 2340101 | P140: Brickfire | Q140: 170/1.5oz | R140: NO | T140: Shamrock | V140: 45.28 | W140: 24.62 | X140: 43.51 | Y140: 0 | Z140: 0
B141: 136 | C141: 1065 | D141: COOKIE DOUGH FROZEN REDUCED FAT CHOCOLATE BROWNIE | E141: COOKIE DOUGH, REDUCED FAT, CHOCOLATE BROWNIE, DECA | F141: OTIS SPUNKMEYER OR APPROVED EQUIVALENT | G141: 55689 | H141: CS | I141: 240 | J141: 1.5 OZ | K141: 100 | L141: 43.27748691 | M141: =IF(L141*K141= 0,"",L141*K141) -> 4327.748691 | N141: 0.1803228621 | O141: 7733340 | P141: OTSPKMY | Q141: 240/1.5 OZ | R141: N | T141: Sysco | U141: 43.5 | V141: 44.12 | W141: 44.22 | X141: 43.28 | Y141: 0 | Z141: 0
B142: 137 | C142: 1068 | D142: COOKIE DOUGH FROZEN REDUCED FAT OATMEAL RAISIN | E142: COOKIE DOUGH, REDUCED FAT, OATMEAL RAISIN, DECA | F142: OTIS SPUNKMEYER OR APPROVED EQUIVALENT | G142: 55683 | H142: CS | I142: 240 | J142: 1.5 OZ | K142: 50 | L142: 44.21 | M142: 2210.5 | N142: 0.1842083333 | O142: 4550019 | P142: OTIS | Q142: 240 / 1.5 OZ | S142: Lowest was special order | T142: Labatt | U142: 43.5 | V142: 44.21 | W142: 47.58 | X142: 46.07 | Y142: 0 | Z142: 0
B143: 138 | C143: 1071 | D143: COOKIE DOUGH FROZEN REDUCED FAT SUGAR | E143: COOKIE DOUGH, SUGAR, REDUCED FAT, DECA | F143: OTIS SPUNKMEYER OR APPROVED EQUIVALENT | G143: 55684 | H143: CS | I143: 240 | J143: 1.5 OZ | K143: 45 | L143: 44.25 | M143: 1991.25 | N143: 0.184375 | O143: 4550017 | P143: OTIS | Q143: 240 / 1.5 OZ | S143: Lowest was special order | T143: Labatt | U143: 43.5 | V143: 44.25 | W143: 44.22 | X143: 46.85 | Y143: 0 | Z143: 0
B144: 139 | C144: 1063 | D144: COOKIE DOUGH FROZEN REDUCED FATCHOCOLATE CHIP | E144: COOKIE DOUGH, REDUCED FAT CHOCOLATE CHIP, DECA | F144: OTIS SPUNKMEYER OR APPROVED EQUIVALENT | G144: 55680 | H144: CS | I144: 240 | J144: 1.5 OZ | K144: 300 | L144: 44.22 | M144: 13266 | N144: 0.18425 | O144: 4555555 | P144: OTIS SPUN | Q144: 240 / 1.5 OZ | S144: Lowest was special order | T144: Labatt | U144: 43.5 | V144: 44.22 | W144: 44.22 | Y144: 0 | Z144: 0
B145: 140 | C145: 1070 | D145: COOKIE DOUGH FROZEN SUGAR | E145: COOKIE DOUGH, SUGAR, CATERING | F145: BRICKFIRE OR APPROVED EQUIVALENT | G145: 2340111 | H145: CS | I145: 240 | J145: 1.5 OZ | K145: 60 | L145: 22.47 | M145: 1348.2 | N145: 0.093625 | O145: 2340111 | P145: Brickfire | Q145: 170/1.5oz | R145: NO | T145: Shamrock | V145: 34.23 | W145: 22.47 | X145: 67.56 | Y145: 0 | Z145: 0
B146: 141 | C146: 1073 | D146: COOKIE DOUGH FROZEN WHITE MACADAMIA NUT | E146: COOKIE DOUGH, WHITE MACADAMIA NUT, CATERING | F146: BRICKFIRE OR APPROVED EQUIVALENT | G146: 2340361 | H146: CS | I146: 240 | J146: 1.5 OZ | K146: 60 | L146: 35.52 | M146: 2131.2 | N146: 0.148 | O146: 2340361 | P146: Brickfire | Q146: 170/1.5oz | R146: NO | T146: Shamrock | V146: 61.11 | W146: 35.52 | X146: 82.26 | Y146: 0 | Z146: 0
B147: 142 | C147: 1066 | D147: COOKIE FORTUNE | E147: COOKIE, FORTUNE, INDIVIDUALLY WRAPPED | F147: SPECIFY | H147: CS | I147: 350 | J147: CT | K147: 550 | L147: 8.39 | M147: 4614.5 | N147: 0.02397142857 | O147: 1923991 | P147: Suprk | Q147: 350pk | R147: NO | T147: Shamrock | U147: 0 | V147: 26.7 | W147: 8.39 | X147: 10.09 | Y147: 0 | Z147: 0
B148: 143 | C148: 1399 | D148: COOKIE GINGER BREAD | E148: COOKIE GINGER BREAD, IW, | F148: TASTY BRAND OR APPROVED EQUIVALENT | G148: 22010 | H148: CS | I148: 140 | J148: 2 OZ | K148: 500 | L148: 46.04 | M148: 23020 | N148: 0.3288571429 | O148: 9391659 | P148: LUX BAKE | Q148: 100 / 2.25 OZ | S148: G3081-IW / GINGERBREAD PEOPLE WG IW | T148: Labatt | V148: 46.04 | W148: 61.15 | Y148: 0 | Z148: 0
B149: 144 | C149: 1137 | D149: CORN DOG MINI BULK | E149: WG, CHICKEN POP DOGS, LOW SODIUM, SIX MEET 2 M/MA AND 2 GRAIN, BULK 40 (4 OZ SERVINGS) | F149: FOSTER FARMS OR APPROVED EQUIVALENT | G149: 96086 | H149: CS | I149: 40 | J149: 2 OZ | K149: 1000 | L149: 22.49 | M149: 22490 | N149: 0.56225 | O149: 370002 | P149: FOSTER FARMS | Q149: 2/5LB | R149: NO | T149: BEK | U149: 22.49 | V149: 23.68 | W149: 23.66 | X149: 25.89 | Y149: 0 | Z149: 0
B150: 145 | C150: 1136 | D150: CORNDOG | E150: CORNDOG, CHICKEN FRANK, WHOLE GRAIN P/C, 8/1, 60 CT, CN LABELED TO MEET 2 OZ MEAT REQUIREMENT | F150: FOSTER FARMS OR APPROVED EQUIVALENT | G150: 95150 | H150: CS | I150: 72 | J150: 4 OZ | K150: 2000 | L150: 22.98 | M150: 45960 | N150: 0.3191666667 | O150: 370119 | P150: FOSTER FARMS | Q150: 72/4OZ | R150: NO | T150: BEK | U150: 22.98 | V150: 30.98 | W150: 30.57 | X150: 27.09 | Y150: 0 | Z150: 0
B151: 146 | C151: 1020 | D151: CORNSTARCH | E151: CORNSTARCH | F151: SPECIFY | H151: CS | I151: 24 | J151: 1 LB | K151: 45 | L151: 16.73382821 | M151: 753.0222694 | N151: 0.697242842 | O151: 4032991 | P151: ARGO | Q151: 24/1LB | R151: N | T151: Sysco | U151: 18.81 | V151: 19.25 | W151: 17.15 | X151: 16.73 | Y151: 0 | Z151: 0
B152: 147 | C152: 1192 | D152: CRACKER GOLDFISH GIANT CINNAMON | E152: CRACKERS GIANT GOLDFISH CINNAMON | F152: PEPPERIDGE FARMS OR APPROVED EQUIVALENT | G152: 15094 | H152: CS | I152: 300 | J152: .9 OZ | K152: 100 | L152: 41.03157895 | M152: 4103.157895 | N152: 0.1367719298 | O152: 5228774 | P152: PEPFARM | Q152: 300/0.9 OZ | R152: N | T152: Sysco | V152: 42.08 | W152: 45.39 | X152: 41.03 | Y152: 0 | Z152: 0
B153: 148 | C153: 1194 | D153: CRACKER GOLDFISH GIANT HONEY OAT | E153: CRACKER WHOLE GRAIN GIANT HONEY OAT GRAHAM 2 EA | F153: PEPPERIDGE FARMS OR APPROVED EQUIVALENT | G153: 18432 | H153: CS | I153: 300 | J153: .9 OZ | K153: 200 | L153: 41.69 | M153: 8338 | N153: 0.1389666667 | O153: 9402365 | P153: PEPPERIDGE | Q153: 300 / .9 OZ | S153: Lowest was a special order | T153: Labatt | V153: 41.69 | W153: 44.09 | X153: 39.82 | Y153: 0 | Z153: 0
B154: 149 | C154: 1189 | D154: CRACKERS ANIMAL | E154: CRACKERS, ANIMAL SHAPED, 0 TRANSFAT | F154: SPECIFY | H154: CS | I154: 100 | J154: 1 OZ | K154: 25 | L154: 16.72 | M154: 418 | N154: 0.1672 | O154: 771828 | P154: KELLOGGS | Q154: 100/1OZ | R154: NO | S154: Lowest was special order | T154: BEK | U154: 16.72 | V154: 22.54 | W154: 15.87 | X154: 22.84 | Y154: 0 | Z154: 0
B155: 150 | C155: 1191 | D155: CRACKERS GRAHAM 3-PK | E155: CRACKERS: GRAHAM 3-PK | F155: SPECIFY | H155: CS | I155: 150 | J155: 3 PK | K155: 1800 | L155: 17.93 | M155: 32274 | N155: 0.1195333333 | O155: 3730052 | P155: KEEBLER | Q155: 150 / 3 CT | S155: 91822 / GRAHAM CRACKER W/CALC WG | T155: Labatt | U155: 20.24 | V155: 17.93 | W155: 19.52 | X155: 18.3 | Y155: 0 | Z155: 0
B156: 151 | C156: 1193 | D156: CRACKERS GRAHAM CINNAMON BUG BITES | E156: CRACKERS: BUG BITES, CINNAMON | F156: KEEBLER OR APPROVED EQUIVALENT | G156: 30100-55644 | H156: CS | I156: 210 | J156: 1 OZ | K156: 500 | L156: 40.48 | M156: 20240 | N156: 0.1927619048 | O156: 3738935 | P156: KEEBLER | Q156: 210 / 1 OZ | S156: 55644 / BUG BITES CINN GRAHAMS WG | T156: Labatt | U156: 46.09 | V156: 40.48 | W156: 44.14 | X156: 41.17 | Y156: 0 | Z156: 0
B157: 152 | C157: 1361 | D157: CRACKERS MEDLEY MIX | E157: CRACKER MEDLEY - TOASTEDS® WHEAT, SESAME AND BUTTER CRISP, CLUB®, TOWN HOUSE®, AND KEEBLER® WHOLE GRAIN WHEAT, 25 SLEEVES, CATERING | F157: KEEBLER OR APPROVED EQUIVALENT | G157: 30100 37739 | H157: CS | I157: 8 | J157: LBS | K157: 5 | L157: 30.68 | M157: 153.4 | N157: 3.835 | O157: 3765112 | P157: KEEBLER | Q157: 25 / 980 CT | S157: 37739 / CRACKER MEDLEY VARIETY PACK | T157: Labatt | U157: 33.72 | V157: 30.68 | W157: 32.96 | X157: 31.32 | Y157: 0 | Z157: 0
B158: 153 | C158: 1195 | D158: CRACKERS SALTINE IW | E158: SALTINE CRACKERS, PC, WHOLE GRAIN OR ENRICHED FLOUR TO MEET BREAD REQ. FOR NSLP 500/2 CT | F158: NABISCO OR APPROVED EQUIVALENT | H158: CS | I158: 500 | J158: 2 CT | K158: 200 | L158: 12.43 | M158: 2486 | N158: 0.02486 | O158: 2546151 | P158: Brickfire | Q158: 500 ct | R158: NO | T158: Shamrock | U158: 16.05 | V158: 17.26 | W158: 12.43 | X158: 17.69 | Y158: 0 | Z158: 0
B159: 154 | C159: 1190 | D159: CRACKERS WHOLE GRAIN GOLDFISH CHEDDAR | E159: CHEDDAR GOLDFISH, WHOLE GRAIN: A 3/4 OUNCE SERVING CONTRIBUTES 1 SERVING OF GRAINS/BREADS TO THE USDA CHILD NUTRITION PROGRAMS | F159: PEPPERIDGE FARMS OR APPROVED EQUIVALENT | G159: 18105 | H159: CS | I159: 300 | J159: 0.75 OZ | K159: 150 | L159: 49.21052632 | M159: 7381.578947 | N159: 0.1640350877 | O159: 6599405 | P159: PEPFARM | Q159: 300/.75 OZ | R159: N | T159: Sysco | V159: 50.53 | W159: 51.91 | X159: 49.21 | Y159: 0 | Z159: 0
B160: 155 | C160: 1090 | D160: CREAMER NON-DAIRY | E160: NON-DAIRY CREAMER , INIVIDUAL PACK, LIQUID | F160: SPECIFY | H160: CS | I160: 400 | J160: 15 GR | K160: 45 | L160: 4.48 | M160: 201.6 | N160: 0.0112 | O160: 898471 | P160: Shamrock Farms | Q160: 400/.38oz | R160: NO | T160: Shamrock | U160: 19.87 | V160: 10.84 | W160: 4.48 | X160: 8.55 | Y160: 0 | Z160: 0
B161: 156 | C161: 1084 | D161: CREAMER NON-DAIRY CARAMEL MACCHIATO | E161: NON-DAIRY CREAMER, CARAMEL MACCHIATO, INIVIDUAL PACK, LIQUID | F161: SPECIFY | H161: CS | I161: 400 | J161: 15 GR | K161: 35 | L161: 14.74 | M161: 515.9 | N161: 0.03685 | O161: 2529371 | P161: International delight | Q161: 288 ct | R161: NO | T161: Shamrock | U161: 18.95 | V161: 15.26 | W161: 14.74 | Y161: 0 | Z161: 0
B162: 157 | C162: 1085 | D162: CREAMER NON-DAIRY FRENCH VANILLA | E162: NON-DAIRY CREAMER, FRENCH VANILLA , INIVIDUAL PACK, LIQUID | F162: SPECIFY | H162: CS | I162: 400 | J162: 15 GR | K162: 35 | L162: 14.10526316 | M162: 493.6842105 | N162: 0.03526315789 | O162: 7440837 | P162: INT DEL | Q162: 288/13 ML | R162: N | T162: Sysco | U162: 18.95 | V162: 15.26 | W162: 14.74 | X162: 14.11 | Y162: 0 | Z162: 0
B163: 158 | C163: 1086 | D163: CREAMER NON-DAIRY HAZEL NUT | E163: NON-DAIRY CREAMER, HAZEL NUT, INIVIDUAL PACK, LIQUID | F163: SPECIFY | H163: CS | I163: 400 | J163: 15 GR | K163: 35 | L163: 12.55 | M163: 439.25 | N163: 0.031375 | O163: 639066 | P163: COFFEEMATE | Q163: 180/3/8OZ | R163: NO | T163: BEK | U163: 12.55 | V163: 15.26 | W163: 14.74 | X163: 14.26 | Y163: 0 | Z163: 0
B164: 159 | D164: CROISSANT | E164: CROISSANTS, WG, MARGARINE, RF, ROUND, FULLY SLICED MUST PROVIDE 2.0 OZ GRAIN EQUIVALENTS. PORTION TO PROVIDE AT LEAST 145.0 CALORIES, WITH NO MORE THAN 6 GRAMS OF FAT. | F164: BAKE CRAFTERS OR APPROVED EQUIVALENT | H164: CS | I164: 80 | J164: 2.2 OZ | K164: 800 | L164: 27.46 | O164: 9236050 | P164: BAKE CRAFT | Q164: 80 / 2.2 OZ | S164: 3285 / CROISSANT, MARG ROUND SL | T164: Labatt | V164: 27.46 | W164: 28.9 | X164: 38.35 | Y164: 0 | Z164: 0
B165: 160 | D165: CROISSANT HAM & CHEESE | E165: WHOLE GRAIN TURKEY HAM & CHEESE CROISSANT SANDWICH AT LEAST 51% WHOLE GRAINS. 2.52OZ UNIT MUST MEET 1OZ MEAT/MA; 1OZ GRAIN EQUIVALENT FROZEN 120/2.52OZ | F165: TASTY BRAND OR APPROVED EQUIVALENT | G165: 70073 | H165: CS | I165: 120 | J165: 2.52 OZ | K165: 850 | L165: 86.59 | M165: =IF(L165*K165= 0,"",L165*K165) -> 73601.5 | N165: =IF(L165/I165= 0,"",L165/I165) -> 0.7215833333 | O165: 8914038 | P165: TASTY BRAN | Q165: 120 / 2.52 OZ | S165: Lowest was special order | T165: Labatt | V165: 86.59 | W165: 82.39 | Y165: 0 | Z165: 0
B166: 161 | D166: CROISSANT SANDWICH CHICKEN SAUSAGE EGG CHEESE IW | E166: WHOLE WHEAT CROISSANT WITH CHICKEN SAUSAGE, EGG, CHEESE IW. PORTION SIZE 4.52OZ. CN LABEL OR PRODUCT ANALYSIS SHEET TO PROVIDE 2OZ M/MA AND 2OZ GRAIN EQ. CASE PACK 48 | F166: BAKE CRAFTERS OR APPROVED EQUIVALENT | H166: CS | I166: 48 | J166: 4.52 OZ | K166: 1500 | L166: 52.03 | O166: 4382061 | P166: Bake Crafter | Q166: 48/4.52 oz | R166: YES | S166: Lowest had wrong item | T166: Shamrock | V166: 34.74 | W166: 52.03 | Y166: 0 | Z166: 0
B167: 162 | C167: 1196 | D167: CROUTONS | E167: CROUTONS/ HERB SEASONED, ENRICHED, SMALL CUBE, CATERING | F167: SPECIFY | H167: CS | I167: 10 | J167: LB | K167: 150 | L167: 19.02 | M167: =IF(L167*K167= 0,"",L167*K167) -> 2853 | N167: =IF(L167/I167= 0,"",L167/I167) -> 1.902 | O167: 3772323 | P167: FRESH GOUR | Q167: 1 / 10 LB | S167: 74465 / CROUTONS,SEA.CUBE T/FAT FREE | T167: Labatt | U167: 21.5 | V167: 19.02 | W167: 21.24 | X167: 36.59 | Y167: 0 | Z167: 0
B168: 163 | C168: 1486 | D168: DANISH ASSORTED | E168: DANISH, ASSORTED, CATERING | F168: SPECIFY | H168: CS | I168: 48 | J168: 4 OZ | K168: 50 | L168: 48.13 | M168: =IF(L168*K168= 0,"",L168*K168) -> 2406.5 | N168: =IF(L168/I168= 0,"",L168/I168) -> 1.002708333 | O168: 418016 | P168: SARA LEE | Q168: 48/4OZ | R168: NO | S168: Lowest wasn't correct size | T168: BEK | U168: 48.13 | V168: 16.71 | W168: 27.58 | X168: 13.62 | Y168: 0 | Z168: 0
B169: 164 | D169: DONUT CHOCOLATE MINI WG | E169: 51% WG MINI DONUTS - CHOCOLATE. 72 - 3.3OZ FROZEN INDIVIDUALLY WRAPPED THAW & SERVE, NICKEL STACK SIX PACKS OF 1/2 OZ CHOCOLATE ENROBED WHOLE GRAIN DONUTS. MUST CONFORM TO USDA CHILD NUTRITION PROGRAM SPECIFICATIONS AND MEET 2OZ GRAIN EQUIVALENT. | F169: SUPER BAKERY OR APPROVED EQUIVALENT | G169: 7786 | H169: CS | I169: 72 | J169: 3.3 OZ | K169: 1700 | L169: 47.42857143 | O169: 7014005 | P169: SUPBKRY | Q169: 72/3.3 OZ | R169: Y | S169: Will stock if awarded | T169: Sysco | U169: 47.48 | V169: 52.35 | W169: 48.56 | X169: 47.43 | Y169: 0 | Z169: 0
B170: 165 | C170: 1523 | D170: DRESSING ASIAN PC | E170: DRESSING, ASIAN, LIGHT, PC | F170: SPECIFY | H170: CS | I170: 60 | J170: 1.5 OZ | K170: 15 | L170: 14.2 | M170: =IF(L170*K170= 0,"",L170*K170) -> 213 | N170: =IF(L170/I170= 0,"",L170/I170) -> 0.2366666667 | O170: 9404040 | P170: KEN'S | Q170: 60 / 1.5 OZ | S170: KE1145B3 / PAN ASIAN ORIENTAL DRESSING | T170: Labatt | V170: 14.2 | W170: 15.04 | X170: 14.62 | Y170: 0 | Z170: 0
B171: 166 | D171: DRESSING BALSAMIC VINAIGRETTE | E171: DRESSING, BALSAMIC VINAIGRETTE, LIGHT | F171: SPECIFY | H171: CS | I171: 60 | J171: 1.5 OZ | K171: 15 | L171: 12.31 | M171: 184.65 | N171: 0.2051666667 | O171: 6503090 | P171: KEN'S | Q171: 60 / 1.5 OZ | S171: KE1057B3 / DRESSING, METRO BALSAMIC VIN | T171: Labatt | V171: 12.31 | W171: 13.22 | X171: 15.09 | Y171: 0 | Z171: 0
B172: 167 | C172: 1132 | D172: DRESSING COLESLAW | E172: DRESSING, COLESLAW, REDUCED FAT | F172: SPECIFY | H172: CS | I172: 4 | J172: GAL | K172: 25 | L172: 9.85 | M172: 246.25 | N172: 2.4625 | O172: 3432261 | P172: KRAFT | Q172: 1 / 1 GAL. | S172: 64382 / DRESSING, COLESLAW | T172: Labatt | V172: 9.85 | W172: 40.42 | X172: 31.65 | Y172: 0 | Z172: 0
B173: 168 | C173: 1293 | D173: DRESSING ITALIAN GOLDEN GALLON | E173: ITALIAN DRESSING, GOLDEN, CATERING | F173: SPECIFY | H173: CS | I173: 4 | J173: GAL | K173: 10 | L173: 19.52631579 | M173: 195.2631579 | N173: 4.881578947 | O173: 5465695 | P173: SYS REL | Q173: 4/1 GAL | R173: N | T173: Sysco | V173: 32.19 | W173: 33.26 | X173: 19.53 | Y173: 0 | Z173: 0
B174: 169 | C174: 1096 | D174: DRESSING PC FRENCH | E174: DRESSING, SALAD, REDUCED FAT, FRENCH | F174: SPECIFY | H174: CS | I174: 60 | J174: 1.5 OZ | K174: 5 | L174: 14.24 | M174: 71.2 | N174: 0.2373333333 | O174: 3471004 | P174: KRAFT | Q174: 60 / 1.5 OZ | S174: 66751 / DRESSING, FRENCH FF PC | T174: Labatt | V174: 14.24 | X174: 18.27 | Y174: 0 | Z174: 0
B175: 170 | C175: 1487 | D175: DRESSING PC GREEK | E175: DRESSING, SALAD, GREEK | F175: SPECIFY | H175: CS | I175: 60 | J175: 1.5 OZ | K175: 5 | L175: 12.2 | M175: 61 | N175: 0.2033333333 | O175: 6503086 | P175: KENS | Q175: 60 / 1.5 OZ | S175: KE0788B3 / DRESSING, GREEK PC | T175: Labatt | V175: 12.2 | X175: 12.36 | Y175: 0 | Z175: 0
B176: 171 | C176: 1097 | D176: DRESSING PC ITALIAN | E176: DRESSING, SALAD, REDUCED FAT, ITALIAN | F176: SPECIFY | H176: CS | I176: 60 | J176: 1.5 OZ | K176: 5 | L176: 10.52631579 | M176: 52.63157895 | N176: 0.1754385965 | O176: 5954250 | P176: KENS | Q176: 60/1.5 OZ | R176: N | T176: Sysco | V176: 10.7 | W176: 14.53 | X176: 10.53 | Y176: 0 | Z176: 0
B177: 172 | C177: 1257 | D177: DRESSING PC RASPBERRY VINAIGRETTE | E177: KRAFT RASPBERRY VINAIGRETTE FAT FREE DRESSING HAS THE SWEET, TART FLAVOR OF RASPBERRIES IN A FAT FREE VINAIGRETTE. | F177: KRAFT | G177: 002-10006714400 | H177: CS | I177: 60 | J177: 1.5 OZ | K177: 50 | L177: 11.40425532 | M177: 570.212766 | N177: 0.190070922 | O177: 8919045 | P177: MARZETI | Q177: 60/1.5 OZ | R177: N | T177: Sysco | V177: 16.03 | W177: 16.33 | X177: 11.4 | Y177: 0 | Z177: 0
B178: 173 | C178: 1297 | D178: DRESSING RANCH REDUCED FAT | E178: DRESSING, SALAD, REDUCED FAT | F178: KEN'S OR APPROVED EQUIVALENT | G178: 100-413350-60816 | H178: CS | I178: 4 | J178: 1 GAL | K178: 600 | L178: 36 | M178: 21600 | N178: 9 | O178: 332-5693 | P178: KEN'S | Q178: 4 / 1 GAL. | T178: Labatt | V178: 34.95 | W178: 39.45 | X178: 36.53 | Y178: 0 | Z178: 0
B179: 174 | C179: 1098 | D179: DRESSING RANCH REDUCED FAT PC | E179: DRESSING, SALAD, REDUCED FAT, PC, RANCH | F179: SPECIFY | H179: CS | I179: 60 | J179: 1.5 OZ | K179: 100 | L179: 13.22 | M179: 1322 | N179: 0.2203333333 | O179: 1591261 | P179: Kraft | Q179: 60/1.5oz | R179: NO | T179: Shamrock | V179: 14.55 | W179: 13.22 | X179: 16.16 | Y179: 0 | Z179: 0
B180: 175 | C180: 1099 | D180: DRESSING RASPBERRY VINAIGRETTE GALLON | E180: KRAFT RASPBERRY VINAIGRETTE FAT FREE DRESSING HAS THE SWEET, TART FLAVOR OF RASPBERRIES IN A FAT FREE VINAIGRETTE. | F180: KRAFT OR APPROVED EQUIVALENT | G180: 002-10006474200 | H180: CS | I180: 4 | J180: 1 GAL | K180: 5 | L180: 16.76595745 | M180: 83.82978723 | N180: 4.191489362 | O180: 6475321 | P180: SYS IMP | Q180: 2/1 GAL | R180: N | T180: Sysco | V180: 37.01 | W180: 40.36 | X180: 16.77 | Y180: 0 | Z180: 0
B181: 176 | C181: 1101 | D181: DRESSING SALAD/MAYO PC | E181: SALAD DRESSING, 31% VEG OIL/EGGS, INDIVIDUALLY PACKED, REDUCED FAT | F181: MIRACLE WHIP OR APPROVED EQUIVALENT | G181: 002-10006636600 | H181: CS | I181: 200 | J181: 12 GR | K181: 100 | L181: 10.52 | M181: 1052 | N181: 0.0526 | O181: 3321130 | P181: PPI | Q181: 200 / 12 GM | S181: 97810 / MAYONNAISE RCAL 12GM | T181: Labatt | V181: 10.52 | W181: 17.16 | X181: 16.24 | Y181: 0 | Z181: 0
B182: 177 | C182: 1161 | D182: DRINK FRUIT PUNCH | E182: FRUIT FLAVORED DRY CRYSTALS DRINK MIX, SWEETENED, CATERING | F182: SPECIFY | H182: CS | I182: 12 | J182: 24 OZ | K182: 20 | L182: 20.46 | M182: 409.2 | N182: 1.705 | O182: 2204421 | P182: Rejuv | Q182: 12/24oz | R182: NO | T182: Shamrock | U182: 30.9 | V182: 35.56 | W182: 20.46 | X182: 23.67 | Y182: 0 | Z182: 0
B183: 178 | C183: 1326 | D183: DRINK HOT CHOCOLATE | E183: HOT CHOCOLATE MIX, POWDERED, INDIVIDUAL PACKS, CATERING | F183: SPECIFY | H183: CS | I183: 300 | J183: PKG | K183: 20 | L183: 31.99 | M183: 639.8 | N183: 0.1066333333 | O183: 2585041 | P183: Hospitality | Q183: 300 ct | R183: NO | T183: Shamrock | U183: 54.1 | V183: 52.35 | W183: 31.99 | X183: 46.33 | Y183: 0 | Z183: 0
B184: 179 | C184: 1533 | D184: DRINK HOT CHOCOLATE SUGAR FREE | E184: HOT CHOCOLATE MIX, POWDERED, INDIVIDUAL PACKS, SUGAR FREE COFFEE BAR | F184: NESTLE OR APPROVED EQUIVALENT | G184: 61411-00 | H184: CS | I184: 300 | J184: PKG | K184: 100 | L184: 35.79 | M184: 3579 | N184: 0.1193 | O184: 641077 | P184: SWISS MISS | Q184: 6/24PK | R184: NO | S184: MFG 1570005584 | T184: BEK | U184: 35.79 | V184: 49.03 | W184: 42.78 | X184: 48.44 | Y184: 0 | Z184: 0
B185: 180 | C185: 1163 | D185: DRINK ICE TEA | E185: MIX, UNSWEETENED TEA, HIGH YIELD, DILUTION RATIO 1:96, CATERING | F185: THIRS-TEA OR APPROVED EQUIVALENT | G185: 662 | H185: CS | I185: 24 | J185: 4 OZ | K185: 20 | L185: 40.52 | M185: 810.4 | N185: 1.688333333 | O185: 8332520 | P185: THIRS-TEA | Q185: 24 / 4 OZ. | S185: Lowest wasn't approved brand | T185: Labatt | V185: 40.52 | W185: 42.54 | X185: 10.76 | Y185: 0 | Z185: 0
B186: 181 | C186: 1162 | D186: DRINK LEMONAIDE PINK | E186: PINK LEMONAIDE FLAVORED DRY CRYSTALS SWEETENED CATERING | F186: SPECIFY | H186: CS | I186: 12 | J186: 24 OZ | K186: 30 | L186: 13.38 | M186: 401.4 | N186: 1.115 | O186: 1284577 | P186: TWIST | Q186: 12 / 2 GAL | S186: 85472 / DRINK MIX, PINK LEMONADE | T186: Labatt | V186: 13.38 | W186: 20.46 | X186: 22.71 | Y186: 0 | Z186: 0
B187: 182 | C187: 1298 | D187: DRINK LEMONAIDE YELLOW | E187: YELLOW LEMONAIDE FLAVORED DRY CRYSTALS DRINK MIX, SWEETENED, CATERING | F187: SPECIFY | H187: CS | I187: 12 | J187: 24 OZ | K187: 30 | L187: 13.33 | M187: 399.9 | N187: 1.110833333 | O187: 1284578 | P187: TWIST | Q187: 12 / 2 GAL | S187: 85476 / DRINK MIX, LEMONADE | T187: Labatt | V187: 13.33 | W187: 20.51 | X187: 22.59 | Y187: 0 | Z187: 0
B188: 183 | C188: 1155 | D188: EGG BOIL N BAG | E188: EGGS, RAW, LIQUID WHOLE EGGS, BOIL N BAG, PASTURIZED | F188: SPECIFY | H188: CS | I188: 6 | J188: 5 LB | K188: 600 | L188: 28.52631579 | M188: 17115.78947 | N188: 4.754385965 | O188: 2366607 | P188: WHLFCLS | Q188: 15/2 LB | R188: N | T188: Sysco | U188: 36.68 | V188: 37.3 | W188: 43.45 | X188: 28.53 | Y188: 0 | Z188: 0
B189: 184 | C189: 1156 | D189: EGG PREBOILED | E189: HARD COOKED PEELED EGGS | F189: SPECIFY | H189: CS | I189: 8 | J189: 12 CT | K189: 375 | L189: 17.90526316 | M189: 6714.473684 | N189: 2.238157895 | O189: 3115532 | P189: WHLFCLS | Q189: 8/12 CT | R189: N | T189: Sysco | U189: 27.2 | V189: 29.34 | W189: 27.94 | X189: 17.91 | Y189: 0 | Z189: 0
B190: 185 | C190: 1158 | D190: EGG SRAMBLED | E190: EGGSTRAVAGANZA-BACON AND CHEESE CODE 40828 SUB FOR COMMODITY | F190: SUNNY FRESH OR APPROVED EQUIVALENT | G190: 40828 | H190: CS | I190: 4 | J190: 5 LB | K190: 735 | L190: 53.75 | M190: 39506.25 | N190: 13.4375 | O190: 8850055 | P190: SUNNY F. | Q190: 4 / 5 LB | S190: 40928 / EGGSTRAVAGANZA, BACON & CHS | T190: Labatt | V190: 53.75 | W190: 54.95 | X190: 54.08 | Y190: 0 | Z190: 0
B191: 186 | D191: ENCHILADA 3 CHEESE | E191: 3 CHEESE, CHEDDAR, MONTERREY JACK, MOTZ 6"CORN TORTILLA CN BULK PACKED | F191: LOS CABOS MEXICAN FOODS OR APPROVED EQUIVALENT | G191: 67777 | H191: CS | I191: 2 | J191: 40 CT | K191: 1000 | L191: 42.11 | M191: 42110 | O191: 8974654 | P191: LOS CABOS | Q191: 2 / 40 CT | S191: 67777 / ENCHILADA, CHED, JACK, MOTZ | T191: Labatt | V191: 42.11 | W191: 42.61 | Y191: 0 | Z191: 0
B192: 187 | C192: 1390 | D192: FILLING PIE | E192: CHERRY | F192: SPECIFY | H192: CS | I192: 6 | J192: #10 | K192: 15 | L192: 15.7 | M192: 235.5 | N192: =IF(L192/I192= 0,"",L192/I192) -> 2.616666667 | O192: 591024 | P192: LUCKY LF | Q192: 1 / #10 | S192: 30030 / PIE FILLING, CHERRY | T192: Labatt | V192: 15.7 | W192: 53.05 | X192: 51.54 | Y192: 0 | Z192: 0
B193: 188 | D193: FILLING PIE | E193: PEACH | F193: SPECIFY | H193: CS | I193: 6 | J193: #10 | K193: 15 | L193: 34.39 | M193: 515.85 | N193: 5.731666667 | O193: 589540 | P193: LUCKY LF | Q193: 3 / #10 | S193: FFPEP4042 / PIE FILLING PEACH CLEAN LABL | T193: Labatt | V193: 34.39 | W193: 52.11 | X193: 51.54 | Y193: 0 | Z193: 0
B194: 189 | C194: 1021 | D194: FLOUR | E194: FLOUR, ALL PURPOSE, ENRICHED, 50#, U.S. NO. 2 GRADE OR BETTER BLEACHED WHEAT FLOUR ENRICHED WITH THIAMIN, RIBOFLAVIN, NIACIN, FOLIC ACID, IRON AND MAY HAVE ADDED CALCIUM | F194: SPECIFY | H194: BAG | I194: 50 | J194: LB | K194: 30 | L194: 12.84210526 | M194: 385.2631579 | N194: 0.2568421053 | O194: 8378111 | P194: SYS CLS | Q194: 1/50 LB | R194: N | T194: Sysco | V194: 15.67 | W194: 15.75 | X194: 12.84 | Y194: 0 | Z194: 0
B195: 190 | C195: 1345 | D195: FOOD RELEASE | E195: RELEASE, FOOD/PAN, CONTAINS NO WATER, ALCOHOL OR ARTIFICIAL FLAVORS, HIGH SMOKE POINT >450° F | F195: SPECIFY | H195: CS | I195: 6 | J195: 17 OZ | K195: 75 | L195: 13.25263158 | M195: 993.9473684 | N195: 2.20877193 | O195: 4583290 | P195: PAM | Q195: 6/17 OZ | R195: N | T195: Sysco | V195: 14.12 | W195: 20.66 | X195: 13.25 | Y195: 0 | Z195: 0
B196: 191 | C196: 1214 | D196: FRENCH TOAST STICKS IW | E196: FRENCH TOAST STICKS, WHOLE GRAIN, CINNAMON GLAZED, IW, EACH SERVING 3 STICKS/2.90 OZ EQUALS 1 M/MA, 1 GR. COMMODITY SUB | F196: SUNNY FRESH OR APPROVED EQUIVALENT | G196: 40094 | H196: CS | I196: 110 | J196: 2.9 oz | K196: 1200 | L196: 54.61 | M196: 65532 | N196: 0.4964545455 | O196: 8850053 | P196: SUNNY F. | Q196: 110 / 2.9 OZ | S196: 40094 / F.T. STICKS, WG CINN. GL IW | T196: Labatt | U196: 68.5 | V196: 54.61 | W196: 55.78 | X196: 65.17 | Y196: 0 | Z196: 0
B197: 192 | C197: 1295 | D197: FROSTING CHOCOLATE | E197: READY TO SPREAD CHOCOLATE CREAM ICING | F197: GOLD MEDAL OR APPROVED EQUIVALENT | H197: TUB | I197: 11 | J197: LB | K197: 15 | L197: 46.13 | M197: 691.95 | N197: 4.193636364 | O197: 4083002 | P197: GEN MILLS | Q197: 2 / 11 LB | S197: Lowest was special order | T197: Labatt | U197: 40.54 | V197: 46.13 | W197: 49.85 | X197: 47.59 | Y197: 0 | Z197: 0
B198: 193 | C198: 1445 | D198: FROSTING VANILLA | E198: READY TO SPREAD VANILLA CREAM ICING | F198: GOLD MEDAL OR APPROVED EQUIVALENT | G198: 0-16000-11216-2 | H198: TUB | I198: 11 | J198: LB | K198: 25 | L198: 37.76842105 | M198: 944.2105263 | N198: 3.433492823 | O198: 1211465 | P198: RICHS | Q198: 1/15 LB | R198: N | T198: Sysco | U198: 38.19 | V198: 42.21 | W198: 38.74 | X198: 37.77 | Y198: 0 | Z198: 0
B199: 194 | C199: 1303 | D199: FRUDEL APPLE | E199: PASTRY, APPLE FILLING, INDIVIDUALLY WRAPPED, HEAT N SERVE, MEETS 2 GRAIN REQUIREMENTS | F199: PILLSBURY | G199: 127852000 | H199: CS | I199: 72 | J199: 2.29 OZ | K199: 200 | L199: 29.31937173 | M199: 5863.874346 | N199: 0.4072134962 | O199: 8162673 | P199: PILLSBY | Q199: 72/2.29OZ | R199: N | T199: Sysco | U199: 33.06 | V199: 31.52 | W199: 30.98 | X199: 29.32 | Y199: 0 | Z199: 0
B200: 195 | C200: 1341 | D200: FRUDEL CHERRY | E200: PASTRY, CHERRY FILLING, INDIVIDUALLY WRAPPED, HEAT N SERVE, MEETS 2 GRAIN REQUIREMENTS | F200: PILLSBURY | G200: 127851000 | H200: CS | I200: 72 | J200: 2.29 OZ | K200: 200 | L200: 29.31937173 | M200: 5863.874346 | N200: 0.4072134962 | O200: 8162665 | P200: PILLSBY | Q200: 72/2.29OZ | R200: N | T200: Sysco | U200: 33.06 | V200: 31.54 | W200: 30.98 | X200: 29.32 | Y200: 0 | Z200: 0
... 3807 more rows

Sheet MILK MASTER
B1: ROSWELL INDEPENDENT SCHOOL DISTRICT | I1: Vendor Name: | L1: RISD
B2: CAFETERIA MILK BID 20-13 FOR SCHOOL YEAR 2020-21 | I2: Vendor Contact
B3: MUST BE RECEIVED BY MAY 7, 2020 ON CD-R or FLASHDRIVE SEALED WITH SUPPORTING DOCUMENTS | I3: Date | L3: 2020-05-20
I4: IN STATE PREFERENCE YES OR NO
A5: LOCATION | B5: ITEM | C5: STOCK ID | D5: ITEM | E5: DESCRIPTION | F5: Approved Brand | G5: Product Code or UPC | H5: BID UNIT | I5: CASE PACK | K5: EST USAGE | L5: BID UNIT PRICE | M5: Extended Total | N5: per UNIT price | O5: VENDOR STOCK NO | P5: BRAND NAME | Q5: Bid unit if Different | R5: BIDDERS NOTES | T5: Awarded To | U5: GH Dairy | V5: Price's
B7: 1 | D7: MILK, 1% | E7: 1% LOW FAT WHITE | H7: 1 | I7: CARTON | J7: 50 | K7: 11000 | L7: 0.01754 | M7: =(J7*K7)*L7 -> 9647 | N7: =L7/J7 -> 0.0003508 | O7: 5189 | T7: Price's | U7: 0.2 | V7: 0.02
B8: 2 | D8: MILK, 2% | E8: 2% LOW FAT WHITE | H8: 1 | I8: CARTON | J8: 50 | K8: 2500 | L8: 0.01821 | M8: =(J8*K8)*L8 -> 2276.25 | N8: 0.0003642 | O8: 51987 | T8: Price's | U8: 0.2 | V8: 0.02
B9: 3 | D9: MILK, CHOCOLATE, 1% | E9: 1% LOW FAT CHOCOLATE | H9: 1 | I9: CARTON | J9: 50 | K9: 11000 | L9: 0.1745 | M9: 95975 | N9: 0.00349 | R9: Fat Free | T9: Price's | U9: 0.2 | V9: 0.17
B10: 4 | D10: MILK, STRAWBERRY, 1% | E10: 1% LOW FAT STRAWBERRY | H10: 1 | I10: CARTON | J10: 50 | K10: 11000 | L10: 0.183 | M10: 100650 | N10: 0.00366 | R10: Fat Free | T10: Price's | U10: 0.2 | V10: 0.18
B11: 5 | D11: MILK, WHOLE | E11: WHOLE MILK | H11: 1 | I11: CARTON | J11: 50 | K11: 11000 | L11: 0.01902 | M11: 10461 | N11: 0.0003804 | O11: 51989 | T11: Price's | U11: 0.2 | V11: 0.02
B12: 6 | D12: MILK, WHOLE | E12: WHOLE MILK | H12: 1 | I12: GALLON | J12: 1 | K12: 100 | L12: 2.7 | M12: 270 | N12: 2.7 | P12: Sarah Farms | R12: Lowest only had this one awarded and we do not order enough | T12: Price's | U12: 2.7 | V12: 2.89

Sheet NON-FOOD MASTER
C1: ROSWELL INDEPENDENT SCHOOL DISTRICT | I1: Vendor Name: | L1: RISD
C2: CAFETERIA NON-FOOD BID 20-11 FOR 2020-21 | I2: Vendor Contact
C3: MUST BE RECEIVED BY MAY 7, 2020 ON CD-R OR FLASH DRIVE SEALED WITH SUPPORTING DOCUMENTS | I3: Date | L3: 2020-05-22
A4: LOCATION | B4: ITEM | C4: STOCK ID | D4: ITEM | E4: DESCRIPTION | F4: Approved Brand | G4: Product Code or UPC | H4: BID UNIT | I4: CASE PACK | K4: EST USAGE | L4: BID UNIT PRICE | M4: Extended Total | N4: per UNIT price | O4: VENDOR STOCK NO | P4: BRAND NAME | Q4: PACK SIZE | R4: SPECIAL ORDER YES NO | S4: BIDDERS NOTES | T4: Awarded To | U4: BEK | V4: Labatt | W4: Shamrock | X4: Starr | Y4: Sysco | Z4: Interboro | AA4: Unipak
U5: BEK
B6: 1 | C6: 5142 | D6: APRON BLACK CLOTH | E6: APRON, BLACK, POLY/COTTON BLEND, 1 EXTRA DEEP PATCH POCKET, ADJUSTABLE NECK STRAP, ONE SIZE FITS ALL, 24” L X 28” W | F6: SPECIFY | H6: EA | I6: 1 | J6: EA | K6: 350 | L6: 6.2 | M6: =SUM(L6*K6) -> 2170 | N6: =IFERROR(SUM(L6/I6),0) -> 6.2 | O6: 9300026 | P6: INTEDGE | Q6: 1 / 1 EA | S6: INT339BLK / BIB APRON, BLACK, NO POCKET | T6: Labatt | V6: 6.2 | X6: 0 | Y6: 28.02 | Z6: 0 | AA6: 0
B7: 2 | C7: 5043 | D7: APRON DISPOSABLE | E7: APRON, DISPOSABLE BIB, WHITE PLASTIC | F7: SPECIFY | H7: CS | I7: 100 | J7: CT | K7: 175 | L7: 3.74 | M7: 654.5 | N7: 0.0374 | O7: 6780050 | P7: ROYAL | Q7: 1 / 100 CT | S7: DA2442 / APRON,FULL LENGTH MEDWT24X42 | T7: Labatt | U7: 9.84 | V7: 3.74 | W7: 87.93 | X7: 3.83 | Y7: 43.53 | Z7: 19.8 | AA7: 0
B8: 3 | C8: 5016 | D8: BAG BUN 27X37 | E8: BAG, BUN, 27X37 | F8: SPECIFY | H8: CS | I8: 225 | J8: CT | K8: 200 | L8: 9.957894737 | M8: 1991.578947 | N8: 0.04425730994 | O8: 4358958 | P8: SYS CLS | Q8: 200/27X37" | R8: N | T8: Sysco | U8: 11.68 | V8: 13.78 | W8: 31.1 | X8: 0 | Y8: 9.96 | Z8: 0 | AA8: 0
B9: 4 | C9: 5017 | D9: BAG BUN RACK COVER | E9: BAG, BUN RACK COVER | F9: SPECIFY | H9: CS | I9: 50 | J9: CT | K9: 150 | L9: 9.9 | M9: 1485 | N9: 0.198 | O9: A4990013 | P9: Bunzl | Q9: 50 | S9: HDR5286C50 BUN RACK COVER / HMWHDPE 52X86 TRANSLUCENT | T9: Starr | U9: 11.25 | V9: 11.48 | W9: 25.09 | X9: 9.9 | Y9: 10.89 | Z9: 10.92 | AA9: 0
B10: 5 | C10: 5096 | D10: BAG HOT DOG | E10: BAG, HOT DOG, 3x2x9, PLAIN WHITE PAPER | F10: SPECIALITY PACKING OR ELKAY OR APPROVED EQUIVALENT | G10: 875010 | H10: CS | I10: 1000 | J10: CT | K10: 450 | L10: 11.16 | M10: 5022 | N10: 0.01116 | O10: 875010 | P10: Specialty Packing | Q10: 1000 | R10: No | T10: BEK | U10: 11.16 | V10: 40.04 | W10: 30.87 | X10: 125.4 | Y10: 30.03 | Z10: 0 | AA10: 0
B11: 6 | C11: 5062 | D11: BAG LUNCH SACK PAPER | E11: BAG, LUNCH SACK, BROWN, 6LB CRAFT | F11: SPECIFY | H11: CS | I11: 500 | J11: CT | K11: 50 | L11: 8.357894737 | M11: 417.8947368 | N11: 0.01671578947 | O11: 1594060 | P11: ERTHPLS | Q11: 1/500 CT | R11: N | T11: Sysco | U11: 12.9 | V11: 12.18 | W11: 12.09 | X11: 10.61 | Y11: 8.36 | Z11: 0 | AA11: 0
B12: 7 | C12: 5099 | D12: BAG SADDLE 10.5X8.5 | E12: BAG, SADDLE DELI FRESH, 10.5X8.5 | F12: HANDGUARDS OR APPROVED EQUIVALENT | G12: 303679606 | H12: CS | I12: 2000 | J12: CT | K12: 100 | L12: 13.26 | M12: 1326 | N12: 0.00663 | O12: 875049 | P12: Handgards | Q12: 2000 | R12: No | T12: BEK | U12: 13.26 | V12: 8.76 | W12: 40.24 | X12: 0 | Y12: 18.68 | Z12: 0 | AA12: 0
B13: 8 | C13: 5098 | D13: BAG SADDLE 6.5X7 | E13: CLEAR POLYETHYLENE, FOOD GRADE, 6.5X7 | F13: SPECIFY | H13: CS | I13: 2000 | J13: CT | K13: 100 | L13: 6.21 | M13: 621 | N13: 0.003105 | O13: 7035629 | P13: FOODHANDLR | Q13: 2000 / 6.5" X 7" | S13: 21-6709 / PORTION BAGCLR FLIPLOCK SDLE | T13: Labatt | U13: 8.97 | V13: 6.21 | W13: 20.29 | X13: 0 | Y13: 11.89 | Z13: 0 | AA13: 0
B14: 9 | C14: 5046 | D14: BAG T-SAK | E14: PLAIN WHITE T-SHIRT BAG 12X7X23 | F14: SPECIFY | H14: CS | I14: 1000 | J14: CT | K14: 75 | L14: 15.97 | M14: 1197.75 | N14: 0.01597 | O14: 75001311 | P14: Bunzl | Q14: 1000 | T14: Starr | U14: 26.17 | V14: 17.19 | W14: 34.57 | X14: 15.97 | Y14: 20.68 | Z14: 0 | AA14: 0
B15: 10 | C15: 5047 | D15: BAG ZIPPER STYLE FREEZER GAL | E15: RECLOSABLE, DOUBLE-ZIPPER FOOD STORAGE BAG WITH TWO LAYER SEAL, WRITE ON LABEL, SELF DISPENSING COMMERCIAL BULK PACK, 10.5X11 | F15: SPECIFY | H15: CS | I15: 250 | J15: CT | K15: 120 | L15: 12.07 | M15: 1448.4 | N15: 0.04828 | O15: 129394 | P15: Handgards | Q15: 200 | R15: No | T15: BEK | U15: 12.07 | V15: 12.3 | W15: 34.36 | X15: 0 | Y15: 53.44 | Z15: 0 | AA15: 0
B16: 11 | C16: 5048 | D16: BAG ZIPPER STYLE FREEZER QT | E16: RECLOSABLE, DOUBLE-ZIPPER FOOD STORAGE BAG WITH TWO LAYER SEAL, WRITE ON LABEL, SELF DISPENSING COMMERCIAL BULK PACK | F16: SPECIFY | H16: CS | I16: 500 | J16: CT | K16: 75 | L16: 10.93684211 | M16: 820.2631579 | N16: 0.02187368421 | O16: 7863540 | P16: SYS CLS | Q16: 1/500CT | R16: N | T16: Sysco | U16: 16.3 | V16: 12.29 | X16: 0 | Y16: 10.94 | Z16: 0 | AA16: 0
B17: 12 | D17: BAGGING SYSTEM | E17: BAG, MICRO-PERF OVEN ABLE, 7X9 | F17: Ekon-O-Pac OR APPROVED EQUIVALENT | H17: CS | I17: 5000 | J17: CT | K17: 35 | M17: 0 | N17: 0 | V17: 0 | X17: 0 | Y17: 0 | Z17: 0 | AA17: 0
B18: 13 | D18: BAGGING SYSTEM | E18: BAG, NON VENT COLD, 4595, 4.5X9.5 | F18: Ekon-O-Pac OR APPROVED EQUIVALENT | H18: CS | I18: 5000 | J18: CT | K18: 5 | M18: 0 | N18: 0 | V18: 0 | X18: 0 | Y18: 0 | Z18: 0 | AA18: 0
B19: 14 | D19: BAGGING SYSTEM | E19: BAG, NON VENT LUNCH, 1015, 10X15 | F19: Ekon-O-Pac OR APPROVED EQUIVALENT | H19: CS | I19: 3000 | J19: CT | K19: 5 | M19: 0 | N19: 0 | V19: 0 | X19: 0 | Y19: 0 | Z19: 0 | AA19: 0
B20: 15 | D20: BAGGING SYSTEM | E20: BAG, VENT OVEN ABLE HOT, 49, 4.25X9 | F20: Ekon-O-Pac OR APPROVED EQUIVALENT | H20: CS | I20: 5000 | J20: CT | K20: 10 | M20: 0 | N20: 0 | V20: 0 | X20: 0 | Y20: 0 | Z20: 0 | AA20: 0
B21: 16 | D21: BAGGING SYSTEM | E21: BAG, VENT OVEN ABLE HOT, 68, 6X9 | F21: Ekon-O-Pac OR APPROVED EQUIVALENT | H21: CS | I21: 5000 | J21: CT | K21: 10 | M21: 0 | N21: 0 | V21: 0 | X21: 0 | Y21: 0 | Z21: 0 | AA21: 0
B22: 17 | D22: BAGGING SYSTEM | E22: TAPE, HOT, SEALING FOR BAGGING SYSTEM (EPAC 4 SYSTEM), .375X180 YD | F22: Ekon-O-Pac OR APPROVED EQUIVALENT | H22: CS | I22: 96 | J22: CT | K22: 15 | M22: 0 | N22: 0 | V22: 0 | X22: 0 | Y22: 0 | Z22: 0 | AA22: 0
B23: 18 | D23: BAGGING SYSTEM | E23: TAPE, SEALING FOR BAGGING SYSTEM (EPAC 4 SYSTEM), .375X180 YD | F23: Ekon-O-Pac OR APPROVED EQUIVALENT | H23: CS | I23: 96 | J23: CT | K23: 15 | M23: 0 | N23: 0 | V23: 0 | X23: 0 | Y23: 0 | Z23: 0 | AA23: 0
B24: 19 | D24: BAKING PROCECTION SLEEVE | E24: ARM PROTECTION SLEEVE IS KNIT CUT AT THE WRIST. WHITE. 100% COTTON LOOP TERRY FABRIC. PROTECTS UP TO 350°F. 17"L. MACHINE WASHABLE | F24: SPECIFY | H24: CS | I24: 12 | J24: EA | K24: 5 | L24: 5.84 | M24: 29.2 | N24: 0.4866666667 | O24: 3568541 | P24: San Jamar | Q24: 1 Each | R24: Yes S/O | T24: Shamrock | V24: 0 | W24: 5.84 | X24: 0 | Y24: 0 | Z24: 0 | AA24: 0
B25: 20 | C25: 5003 | D25: BLEACH | E25: CLEANERS, BLEACH | F25: SPECIFY | H25: CS | I25: 6 | J25: BTL | K25: 125 | L25: 10.35789474 | M25: 1294.736842 | N25: 1.726315789 | O25: 1933074 | P25: SYS CLS | Q25: 6/128OZ | R25: N | T25: Sysco | U25: 14.68 | V25: 14.59 | W25: 13.5 | X25: 15.02 | Y25: 10.36 | Z25: 0 | AA25: 0
B26: 21 | C26: 5063 | D26: BOAT FOOD 1 LB | E26: 1 LB VINTAGE VFT100 6 1/4 X 4 11/6 X 1 19/32 RED PLAID NO.100 FOOD TRAY 250 PER BOX -- 4 BOXES PER CASE. (PRODUCT ID: UFVFT100) | F26: SPECIFY | H26: CS | I26: 1000 | J26: EA | K26: 75 | L26: 18.48 | M26: 1386 | N26: 0.01848 | O26: 872438 | P26: GP | Q26: 1000 | R26: No | T26: BEK | U26: 18.48 | V26: 19.64 | W26: 19.51 | X26: 19.17 | Y26: 27.6 | Z26: 0 | AA26: 0
B27: 22 | C27: 5018 | D27: BOAT FOOD 1/2 LB | E27: 8 OZ VINTAGE VFT50 5 9/32 X 3 3/4 X 1 3/8 RED PLAID NO.50 FOOD TRAY 250 PER BOX -- 4 BOXES PER CASE. | F27: SPECIFY | H27: CS | I27: 1000 | J27: EA | K27: 20 | L27: 15.59 | M27: 311.8 | N27: 0.01559 | O27: 64728708 | P27: SQP | Q27: 1000 | T27: Starr | U27: 17.99 | V27: 16.18 | W27: 17.59 | X27: 15.59 | Y27: 24.58 | Z27: 0 | AA27: 0
B28: 23 | C28: 5064 | D28: BOAT FOOD 2 LB | E28: 2 LB VINTAGE VFT200 6 11/16 X 5 X1 3/5 RED PLAID NO.200 FOOD TRAY 250 PER BOX -- 4 BOXES PER CASE. (PRODUCT ID: UFVFT200) | F28: SPECIFY | H28: CS | I28: 1000 | J28: EA | K28: 110 | L28: 20.38 | M28: 2241.8 | N28: 0.02038 | O28: 872442 | P28: GP | Q28: 1000 | R28: No | T28: BEK | U28: 20.38 | V28: 21.9 | W28: 23.43 | X28: 21.5 | Y28: 27.42 | Z28: 0 | AA28: 0
B29: 24 | C29: 5065 | D29: BOAT PAPER 3 LB | E29: VINTAGE VFT300 8 1/8 X 5 7/8 X 2 1/8 RED PLAID NO300 FOOD TRAY 125 PER BOX -- 4 BOXES PER CASE. | F29: SPECIFY | H29: CS | I29: 1000 | J29: EA | K29: 25 | L29: 16.52 | M29: 413 | N29: 0.01652 | O29: 64728702 | P29: SQP | Q29: 500 | S29: Pleae Note 500 Per Case | T29: Starr | U29: 16.96 | V29: 17.33 | W29: 18.16 | X29: 16.52 | Y29: 24.42 | Z29: 0 | AA29: 0
B30: 25 | C30: 5004 | D30: BROOM ANGLE | E30: BROOM, ANGLE, DELUXE 5.5" BRISTLES, 55.37" METAL HANDLE | F30: SPECIFY | H30: EA | I30: 1 | J30: EA | K30: 40 | L30: 3.76 | M30: 150.4 | N30: 3.76 | O30: 8524100 | P30: ACS | Q30: 1 / 1 CT | S30: B410A / BROOM LOBBY SYNTH ANGLE 55" | T30: Labatt | U30: 17.17 | V30: 3.76 | W30: 5.16 | X30: 4.26 | Y30: 22 | Z30: 0 | AA30: 0
B31: 26 | C31: 5112 | D31: BROOM BRUSH DUAL SURFACE | E31: DUAL SURFACE SCRUB BROOM, SIDE AND BOTTOM BRISTLES FOR FLOOR AND BASEBOARD SCRUBBING. CRIMPED YELLOW POLYPROPYLENE BRISTLES, 10 IN FOAM PLASTIC BLOCK WITH THREADED HANDLE HOLE. | F31: BROADWALK OR APPROVED EQUIVALENT | G31: BWK3410 | H31: CS | I31: 1 | J31: EA | K31: 10 | L31: 3.19 | M31: 31.9 | N31: 3.19 | O31: 8804271 | P31: Carlisle | Q31: 1 each | S31: Stocked Item | T31: Shamrock | V31: 6.2 | W31: 3.19 | X31: 8.05 | Y31: 13.53 | Z31: 0 | AA31: 0
B32: 27 | C32: 5005 | D32: BRUSH 3IN PASTRY | E32: BRUSH, 3 IN PASTRY | F32: SPECIFY | H32: CS | I32: 1 | J32: EA | K32: 11 | L32: 8.05 | M32: 88.55 | N32: 8.05 | O32: 2632921 | P32: Carlisle | Q32: 1 Each | S32: Stocked Item | T32: Shamrock | U32: 11.94 | V32: 12.04 | W32: 8.05 | X32: 0 | Y32: 29.47 | Z32: 0 | AA32: 0
B33: 28 | C33: 5006 | D33: BRUSH POT CLEANER | E33: BRUSH, POT CLEANER | F33: SPECIFY | H33: CS | I33: 1 | J33: EA | K33: 5 | L33: 1 | M33: 5 | N33: 1 | O33: 300 | P33: Magnolia Brush | Q33: 1 | T33: Starr | V33: 4.44 | W33: 6.62 | X33: 1 | Y33: 13.16 | Z33: 0 | AA33: 0
B34: 29 | C34: 5147 | D34: BUCKET COMBO | E34: BUCKET, 26 QT, MOP/WRINGER SP | F34: SPECIFY | H34: EA | I34: 1 | J34: CT | K34: 10 | L34: 35.91 | M34: 359.1 | N34: 35.91 | O34: 5663031 | P34: ACS | Q34: 1 / 1 EA | S34: M8000 / BUCKET, MOP W/ WRINGER 26QT | T34: Labatt | U34: 97.75 | V34: 35.91 | W34: 62.53 | X34: 37.76 | Y34: 80.05 | Z34: 0 | AA34: 0
B35: 30 | D35: CLEANER GLASS | F35: SPRAYWAY OR APPROVED EQUIVALENT | H35: CS | I35: 12 | J35: 19 OZ | K35: 10 | L35: 30.69 | M35: 306.9 | N35: 2.5575 | O35: 2603541 | P35: Sprayway | Q35: 12/19oz | S35: Lowest bid wrong product | T35: Sysco | U35: 42.88 | V35: 37.11 | W35: 30.69 | X35: 23.65 | Y35: 17.44 | Z35: 0 | AA35: 0
B36: 31 | D36: CLEANER TOILET | F36: CLOROX OR APPROVED EQUIVALENT | H36: CS | I36: 12 | J36: 24 CT | K36: 50 | L36: 23.41 | M36: 1170.5 | N36: 1.950833333 | O36: CLO00031CT | P36: Clorox | Q36: 12 | T36: Starr | V36: 23.8 | X36: 23.41 | Y36: 137.64 | Z36: 0 | AA36: 0
B37: 32 | C37: 5066 | D37: CNTNR BOWL 12 OZ FOAM LAM BLK | E37: BOWL, 12 OZ, FOAM LAM BLK | F37: SPECIFY | H37: CS | I37: 1000 | J37: CT | K37: 35 | L37: 6.8 | M37: 238 | N37: 0.0068 | O37: 7932785 | P37: SYS REL | Q37: 8/125 CT | R37: N | T37: Sysco | U37: 45.27 | V37: 23.54 | W37: 46.51 | X37: 30.43 | Y37: 6.8 | Z37: 0 | AA37: 0
B38: 33 | C38: 5110 | D38: CNTNR HINGED 3 CMPT W/LID FOAM | E38: CONTAINER, FOAM, HINGED 3 COMPARTMENT, 9.25X9.25X3 | F38: SPECIFY | H38: CS | I38: 200 | J38: CT | K38: 35 | L38: 15.92 | M38: =SUM(L38*K38) -> 557.2 | N38: =IFERROR(SUM(L38/I38),0) -> 0.0796 | P38: Dart | Q38: 200 | R38: No | S38: We stock this brand, but not this item. We will bring into stock if awarded. | T38: BEK | U38: 15.92 | V38: 21.04 | W38: 20.11 | X38: 20.7 | Y38: 16.22 | Z38: 0 | AA38: 0
B39: 34 | C39: 5113 | D39: CNTNR HINGED 3 CMPT W/LID PLASTIC | E39: CULINARY CLASSIC 9.5X10.5X1.5 3-CMP. BASE/3-CMP. LID, HINGED CLAMSHELL CODE CC91033B | F39: ANCHOR PKG OR APPROVED EQUIVALENT | G39: 4659633 | H39: CS | I39: 100 | J39: CT | K39: 34 | L39: 9.547368421 | M39: 324.6105263 | N39: 0.09547368421 | O39: 7551324 | P39: SYS CLS | Q39: 150/9X9X3 | R39: N | T39: Sysco | V39: 69.07 | X39: 85.21 | Y39: 9.55 | Z39: 0 | AA39: 0
B40: 35 | C40: 5107 | D40: CNTNR HINGED 7.5x3" OCTOGANAL | E40: 7.5X3 OCTOGANAL CONTAINER BLACK BASE WITH HINGED CLEAR DOME. | F40: ANCHOR PKG OR APPROVED EQUIVALENT | G40: 4777502 | H40: CS | I40: 100 | J40: CT | K40: 1200 | L40: 40.92 | M40: 49104 | N40: 0.4092 | O40: 10800162 | P40: Anchor | Q40: 100 | T40: Starr | V40: 0 | W40: 83.05 | X40: 40.92 | Y40: 78.16 | Z40: 0 | AA40: 0
B41: 36 | C41: 5081 | D41: CNTNR HINGED 8x3 SQUARE CLEAR | E41: 8x3 INCH SQUARE CONTAINER CLEAR BASE AND BOTTOM, HINGED | F41: SPECIFY | H41: CS | I41: 200 | J41: CT | K41: 10 | L41: 26.58 | M41: 265.8 | N41: 0.1329 | O41: 9659533 | P41: CLEARVIEW | Q41: 1 / 200 CT | S41: YCI811200000 / CONT, 1COMP HNG CLR 8x8x2.9 | T41: Labatt | U41: 28.32 | V41: 26.58 | X41: 38.04 | Y41: 31.02 | Z41: 0 | AA41: 0
B42: 37 | C42: 5109 | D42: CUP CLEAR PLASTIC 16 OZ | E42: CUP, CLEAR PLASTIC 16 OZ | F42: SPECIFY | H42: CS | I42: 1000 | J42: CT | K42: 50 | L42: 37.88421053 | M42: 1894.210526 | N42: 0.03788421053 | O42: 7762026 | P42: SYS IMP | Q42: 10/70 CT | R42: N | T42: Sysco | U42: 42.85 | V42: 59.14 | W42: 77.88 | X42: 56.55 | Y42: 37.88 | Z42: 0 | AA42: 0
B43: 38 | C43: 5153 | D43: CUP CLEAR PLASTIC 16 OZ FOR COFFE BAR | E43: CUP ULTRA CLEAR PLASTIC HEAVY DUTY 16 OZ CLEAR PRACTICAL-FILL PET CUP. DIAMETER OF TOP (IN):. 3.9. DIAMETER OF BASE (IN):. 2.4. HEIGHT (IN):. 4.7 | F43: DART OR APPROVED EQUIVALENT | G43: TP16D | H43: CS | I43: 1000 | J43: CT | K43: 1200 | L43: 59.14 | M43: 70968 | N43: 0.05914 | O43: 7000136 | P43: ULTRACLEAR | Q43: 20 / 50 CT | S43: TP16D / CUP, 16 OZ PET CLEAR | T43: Labatt | U43: 60.38 | V43: 59.14 | X43: 70.65 | Y43: 85 | Z43: 0 | AA43: 0
B44: 39 | C44: 5154 | D44: CUP CLEAR PLASTIC 20 OZ FOR COFFEE BAR | E44: CUP ULTRA CLEAR PLASTIC HEAVY DUTY 16 OZ CLEAR PRACTICAL-FILL PET CUP | F44: DART OR APPROVED EQUIVALENT | G44: TP20D | H44: CS | I44: 600 | J44: CT | K44: 1200 | L44: 49.52631579 | M44: 59431.57895 | N44: 0.08254385965 | O44: 2665285 | P44: DART | Q44: 600/20 OZ | R44: Y | S44: Will stock if awarded | T44: Sysco | U44: 51.14 | V44: 49.93 | X44: 59.78 | Y44: 49.53 | Z44: 0 | AA44: 0
B45: 40 | D45: CUP COFFEE 10 OZ | E45: CUP, 10 OZ, HOT, STYROFOAM | F45: SPECIFY | H45: CS | I45: 1000 | J45: CT | K45: 20 | L45: 25.62105263 | M45: 512.4210526 | N45: 0.02562105263 | O45: 5842653 | P45: DART | Q45: 40/25 CT | R45: N | T45: Sysco | U45: 26.71 | V45: 31.53 | X45: 27.77 | Y45: 25.62 | Z45: 0 | AA45: 0
B46: 41 | D46: CUP COFFEE 12 OZ | E46: CUP 12 OZ HOT STYROFOAM | F46: SPECIFY | H46: CS | I46: 1000 | J46: CT | K46: 20 | L46: 23.22105263 | M46: 464.4210526 | N46: 0.02322105263 | O46: 4088837 | P46: SYSCO | Q46: 40/25CT | R46: N | T46: Sysco | U46: 29.76 | V46: 35.41 | W46: 30.01 | X46: 30.99 | Y46: 23.22 | Z46: 0 | AA46: 0
B47: 42 | D47: CUP COFFEE 8 OZ | E47: CUP, 8 OZ, HOT, STYROFOAM | F47: SPECIFY | H47: CS | I47: 1000 | J47: CT | K47: 25 | L47: 16.10526316 | M47: 402.6315789 | N47: 0.01610526316 | O47: 4088829 | P47: SYSCO | Q47: 40/25 CT | R47: N | T47: Sysco | U47: 20.98 | V47: 25.41 | W47: 21.69 | X47: 16.71 | Y47: 16.11 | Z47: 0 | AA47: 0
B48: 43 | C48: 5069 | D48: CUP COLD DRINK 12 OZ | E48: CUP, PLASTIC CLEAR 12 OZ | F48: SPECIFY | H48: CS | I48: 1000 | J48: CT | K48: 5 | L48: 30.28 | M48: 151.4 | N48: 0.03028 | O48: 147168 | P48: Pactiv | Q48: 1000 | R48: No | T48: BEK | U48: 30.28 | V48: 51.25 | W48: 96.19 | X48: 0 | Y48: 67.6 | Z48: 0 | AA48: 0
B49: 44 | C49: 5152 | D49: CUP LID DOME BLACK | E49: LID DOME BLACK FITS 12/14/16/24 OZ CUPS | F49: SOLO/SYMPHONY OR APPROVED EQUIVALENT | H49: CS | I49: 1000 | J49: CT | K49: 600 | L49: 24.56 | M49: 14736 | N49: 0.02456 | O49: 2833961 | P49: Solo | Q49: 10/100ct | S49: Stocked Item | T49: Shamrock | U49: 24.95 | V49: 25.04 | W49: 24.56 | X49: 0 | Y49: 0 | Z49: 0 | AA49: 0
B50: 45 | C50: 5155 | D50: CUP LID PLASTIC CLEAR w/STRAW SLOT | E50: LID UNIVERSAL 16-24 OZ CLEAR PLASTIC w/STRAW SLOT | F50: DART OR APPROVED EQUIVALENT | G50: 626TS | H50: CS | I50: 1000 | J50: CT | K50: 1000 | L50: 25.46 | M50: 25460 | N50: 0.02546 | O50: 3464671 | P50: Solo | Q50: 10/100ct | S50: Stocked Item | T50: Shamrock | U50: 25.92 | V50: 26.83 | W50: 25.46 | X50: 25.53 | Y50: 26.49 | Z50: 0 | AA50: 0
B51: 46 | C51: 5072 | D51: CUP PORTION 1 OZ | E51: CUP, PORTION, 1 OZ | F51: SPECIFY | H51: CS | I51: 2500 | J51: CT | K51: 10 | L51: 23.17 | M51: 231.7 | N51: 0.009268 | O51: 7140011 | P51: SOLO | Q51: 10 / 250 CT | S51: P100N / SOUFFLE CUP, 1OZ TRANSLUCENT | T51: Labatt | U51: 23.97 | V51: 23.17 | W51: 32.57 | X51: 24.15 | Y51: 33.29 | Z51: 0 | AA51: 0
B52: 47 | C52: 5073 | D52: CUP PORTION 1 OZ LID | E52: CUP, LID, PORTION, 1 OZ | F52: SPECIFY | H52: CS | I52: 2500 | J52: CT | K52: 10 | L52: 18.73 | M52: 187.3 | N52: 0.007492 | O52: 7653000 | P52: PACTIV | Q52: 1 / 2500 CT | S52: YLS1FR / LID, SOUFFLE CLEAR 0.75-1 OZ | T52: Labatt | U52: 21.68 | V52: 18.73 | W52: 28.46 | X52: 19.93 | Y52: 24.46 | Z52: 0 | AA52: 0
B53: 48 | C53: 5071 | D53: CUP PORTION 2 OZ W/LID | E53: CUP, PORTION, 2 OZ W/LID | F53: LIDDLES OR APPROVED EQUIVALENT | H53: CS | I53: 900 | J53: CT | K53: 25 | L53: 56.27 | M53: 1406.75 | N53: 0.06252222222 | O53: 7415230 | P53: LIDDLES | Q53: 900 / 2 OZ | S53: 87242 / CUP, SOUFFLE HNG 2 OZ TRANS | T53: Labatt | U53: 58.15 | V53: 56.27 | X53: 0 | Y53: 0 | Z53: 0 | AA53: 0
B54: 49 | C54: 5051 | D54: CUP PORTION 4 OZ W/LID | E54: CUP, PORTION, 4 OZ W/LID | F54: LIDDLES OR APPROVED EQUIVALENT | H54: CS | I54: 900 | J54: CT | K54: 25 | L54: 87.47 | M54: 2186.75 | N54: 0.09718888889 | O54: 7415231 | P54: LIDDLES | Q54: 900 / 4 OZ | S54: 87220 / CUP, SOUFFLE HNG 4OZ TRANS | T54: Labatt | U54: 90.65 | V54: 87.47 | X54: 0 | Y54: 0 | Z54: 0 | AA54: 0
B55: 50 | C55: 5051 | D55: CUP THERMAL 12 OZ | E55: CUP THERMAL DUO SHIELD INSULATED PAPER, DIAMETER OF TOP (IN):. 3.5. DIAMETER OF BASE (IN):. 2.4. HEIGHT (IN):. 4.3. PRACTICAL FILL (OZ.): 12. FLUSH FILL (OZ.): 13.4. | F55: SOLO/SYMPHONY OR APPROVED EQUIVALENT | G55: IC12-J8000 | H55: CS | I55: 600 | J55: CT | K55: 600 | L55: 70.09473684 | M55: 42056.84211 | N55: 0.1168245614 | O55: 8076287 | P55: SOLO | Q55: 15/40CT | R55: N | T55: Sysco | U55: 84.34 | V55: 81.36 | X55: 98.91 | Y55: 70.09 | Z55: 0 | AA55: 0
B56: 51 | C56: 5052 | D56: CUTLERY COMBO PACK | E56: FORK, SPOON, KNIFE, SALT, PEPPER, NAPKIN KIT | F56: SPECIFY | H56: CS | I56: 250 | J56: CT | K56: 100 | L56: 11.63 | M56: 1163 | N56: 0.04652 | O56: 8523722 | P56: WALLACE | Q56: 1 / 250 CT | S56: 3822 / KIT-MD PP WHT F,K,S,S&P,NAP | T56: Labatt | U56: 16.13 | V56: 11.63 | W56: 17.34 | X56: 17.15 | Y56: 48.58 | Z56: 0 | AA56: 0
B57: 52 | C57: 5053 | D57: CUTLERY FORK | E57: CUTLERY, FORK, HD, WHITE | F57: SPECIFY | H57: CS | I57: 1000 | J57: CT | K57: 500 | L57: 7.54 | M57: 3770 | N57: 0.00754 | O57: 7815411 | P57: WALLACE | Q57: 1 / 1000 CT | S57: 3540/3640 / FORK, MD PP WHITE | T57: Labatt | U57: 16.3 | V57: 7.54 | X57: 11.96 | Y57: 18.76 | Z57: 0 | AA57: 0
B58: 53 | C58: 5054 | D58: CUTLERY FORK SILVER | E58: CUTLERY, FORK, PLASTIC, SILVERR | F58: RELFECTIONS OR APPROVED EQUIVALENT | H58: CS | I58: 600 | J58: CT | K58: 25 | L58: 34.02 | M58: 850.5 | N58: 0.0567 | O58: 871043 | P58: WNA | Q58: 600 | R58: No | T58: BEK | U58: 34.02 | V58: 43.82 | W58: 47.08 | X58: 61.3 | Y58: 47 | Z58: 0 | AA58: 0
B59: 54 | C59: 5076 | D59: CUTLERY KNIFE | E59: CUTLERY, KNIFE, HD, WHITE | F59: SPECIFY | H59: CS | I59: 1000 | J59: CT | K59: 50 | L59: 7.39 | M59: 369.5 | N59: 0.00739 | O59: 7815413 | P59: WALLACE | Q59: 1 / 1000 CT | S59: 3641/3541 / KNIFE, MD PP WHITE 3641/MWPK | T59: Labatt | U59: 16.3 | V59: 7.39 | X59: 11.87 | Y59: 59.73 | Z59: 0 | AA59: 0
B60: 55 | C60: 5077 | D60: CUTLERY KNIFE SILVER | E60: CUTLERY, KNIFE, PLASTIC, SILVER | F60: RELFECTIONS OR APPROVED EQUIVALENT | H60: CS | I60: 600 | J60: CT | K60: 25 | L60: 34.02 | M60: 850.5 | N60: 0.0567 | O60: 871042 | P60: WNA | Q60: 600 | R60: No | T60: BEK | U60: 34.02 | V60: 43.64 | W60: 46.58 | X60: 62.1 | Y60: 47 | Z60: 0 | AA60: 0
B61: 56 | C61: 5078 | D61: CUTLERY SPOON | E61: CUTLERY, SPOON, HD, WHITE | F61: SPECIFY | H61: CS | I61: 1000 | J61: CT | K61: 500 | L61: 7.66 | M61: 3830 | N61: 0.00766 | O61: 8915412 | P61: WALLACE | Q61: 1 / 1000 CT | S61: 3542/3642 / SPOON, MD PP WHITE | T61: Labatt | U61: 15.16 | V61: 7.66 | X61: 22 | Y61: 54 | Z61: 0 | AA61: 0
B62: 57 | C62: 5079 | D62: CUTLERY SPOON SILVER | E62: CUTLERY, SPOON, PLASTIC, SILVER | F62: RELFECTIONS OR APPROVED EQUIVALENT | H62: CS | I62: 600 | J62: CT | K62: 25 | L62: 34.02 | M62: 850.5 | N62: 0.0567 | O62: 871041 | P62: WNA | Q62: 600 | R62: No | T62: BEK | U62: 34.02 | V62: 52.53 | W62: 46.85 | X62: 62.1 | Y62: 47 | Z62: 0 | AA62: 0
B63: 58 | C63: 5080 | D63: CUTLERY SPORK KIT | E63: SPORK AND NAPKIN ONLY | F63: SPECIFY | H63: CS | I63: 1000 | J63: CT | K63: 2300 | L63: 12.98 | M63: 29854 | N63: 0.01298 | O63: BWKSPRKMWPPWIW | P63: Boardwalk | Q63: 1000 | T63: Starr | U63: 43.47 | V63: 15.39 | W63: 27.27 | X63: 12.98 | Y63: 22.55 | Z63: 0 | AA63: 0
B64: 59 | C64: 5020 | D64: DOILY 12IN | E64: PREMIUM PAPER DOILLY, WHITE LACE, 12 INCH ROUND | F64: SPECIFY | H64: BOX | I64: 500 | J64: CT | K64: 10 | L64: 13.65 | M64: 136.5 | N64: 0.0273 | O64: 7436132 | P64: ROYAL | Q64: 1 / 500 CY | S64: LD12 / DOILIES, ROUND LACE 12" | T64: Labatt | U64: 21.16 | V64: 13.65 | X64: 0 | Y64: 28.37 | Z64: 0 | AA64: 0
B65: 60 | C65: 5019 | D65: DOILY 16IN | E65: PREMIUM PAPER DOILLY, WHITE LACE, 16 INCH ROUND | F65: SPECIFY | H65: BOX | I65: 500 | J65: CT | K65: 10 | L65: 114.8 | M65: 1148 | N65: 0.2296 | O65: 9394071 | P65: ROYAL | Q65: 1 / 2500 CT | S65: LD16 / DOILIE , 16" LACE | T65: Labatt | V65: 114.8 | X65: 0 | Y65: 202.26 | Z65: 0 | AA65: 0
B66: 61 | C66: 5021 | D66: DOILY 18IN | E66: PREMIUM PAPER DOILLY, WHITE LACE, 18 INCH ROUND | F66: SPECIFY | H66: BOX | I66: 500 | J66: CT | K66: 10 | L66: 109.25 | M66: 1092.5 | N66: 0.2185 | O66: 2811511 | P66: Hoffmaster | Q66: 500pk | R66: Yes S/O | T66: Shamrock | V66: 0 | W66: 109.25 | X66: 0 | Y66: 150.74 | Z66: 0 | AA66: 0
B67: 62 | C67: 5007 | D67: DUST PAN | E67: HEAVY DUTY UPRIGHT DUST PAN, OPEN STYLE, 12.5 WIDE X 37 IN HIGH | F67: SPECIFY | H67: CS | I67: 1 | J67: EA | K67: 12 | L67: 3.19 | M67: 38.28 | N67: 3.19 | O67: 8804271 | P67: Rubbermaid | Q67: 1 each | S67: Stocked | T67: Shamrock | U67: 5.93 | V67: 6.41 | W67: 3.19 | X67: 0 | Y67: 14.62 | Z67: 0 | AA67: 0
B68: 63 | C68: 5100 | D68: FOIL ROLL .0007 GAUGE 24IN | E68: HEAVY DUTY ALUMINUM FOIL - SIZE 24X2000 | F68: SPECIFY | H68: CS | I68: 1 | J68: EA | K68: 125 | L68: 57.07 | M68: 7133.75 | N68: 57.07 | O68: 876100 | P68: Pactiv | Q68: 24X1000 | R68: No | T68: BEK | U68: 57.07 | V68: 65.56 | X68: 0 | Y68: 100.24 | Z68: 0 | AA68: 0
B69: 64 | C69: 5102 | D69: FOIL SHEET PAPER LINED | E69: FOIL, SHEET, PAPER LINED 10.5X14 | F69: SPECIFY | H69: CS | I69: 2500 | J69: CT | K69: 250 | L69: 56.84210526 | M69: 14210.52632 | N69: 0.02273684211 | O69: 6997456 | P69: SYSCO | Q69: 1/1000CT | R69: N | T69: Sysco | U69: 82.8 | V69: 63.27 | X69: 100 | Y69: 56.84 | Z69: 0 | AA69: 0
B70: 65 | C70: 5101 | D70: FOILSHEET | E70: HEAVY DUTY ALUMINUM FOIL - SIZE 12X10 | F70: SPECIFY | H70: CS | I70: 1 | J70: EA | K70: 100 | L70: 10.71 | M70: =SUM(L70*K70) -> 1071 | N70: =IFERROR(SUM(L70/I70),0) -> 10.71 | O70: 6834009 | P70: HFA | Q70: 1 / 500 CT | S70: 51210 / FOIL SHEETS, 12X10-3/4 | T70: Labatt | U70: 61.57 | V70: 10.71 | X70: 49.04 | Y70: 70.77 | Z70: 0 | AA70: 0
B71: 66 | C71: 5035 | D71: GLOVE POT & SINK LG | E71: GLOVE, POT & SINK LG HD 19" LENGTH, 25 MIL THICKNESS,HEAVY DUTY | F71: SPECIFY | H71: CS | I71: 12 | J71: PR | K71: 15 | L71: 10.02 | M71: 150.3 | N71: 0.835 | O71: 6794127 | P71: JOBSELECT | Q71: 1 / 12 CT | S71: 1005-03-CP / GLOVES YELLOW RUBBER LG | T71: Labatt | V71: 10.02 | X71: 0 | Y71: 0 | Z71: 0 | AA71: 0
B72: 67 | C72: 5124 | D72: GLOVE POT & SINK MED | E72: GLOVE, POT & SINK MED HD 19" LENGTH, 25 MIL THICKNESS,HEAVY DUTY | F72: SPECIFY | H72: CS | I72: 12 | J72: PR | K72: 15 | L72: 10.2 | M72: 153 | N72: 0.85 | O72: 6790018 | P72: JOBSELECT | Q72: 1 / 12 CT | S72: 1005-02-CP / GLOVES YELLOW RUBBER MED | T72: Labatt | V72: 10.2 | X72: 0 | Y72: 78.49 | Z72: 0 | AA72: 0
B73: 68 | C73: 5123 | D73: GLOVE POT & SINK SM | E73: GLOVE, POT & SINK SMALL HD 19" LENGTH, 25 MIL THICKNESS,HEAVY DUTY | F73: SPECIFY | H73: CS | I73: 12 | J73: PR | K73: 12 | L73: 8.98 | M73: 107.76 | N73: 0.7483333333 | O73: 6794128 | P73: JOBSELECT | Q73: 1 / 12 CT | S73: 1005-01 / GLOVES, YELLOW RUBBER SML | T73: Labatt | V73: 8.98 | X73: 0 | Y73: 0 | Z73: 0 | AA73: 0
B74: 69 | C74: 5144 | D74: GLOVE POT & SINK X-LARGE | E74: GLOVE, POT & SINK X-LARGE HD 19" LENGTH, 25 MIL THICKNESS,HEAVY DUTY | F74: SPECIFY | H74: CS | I74: 12 | J74: PR | K74: 20 | L74: 8.98 | M74: 179.6 | N74: 0.7483333333 | O74: 6795803 | P74: JOBSELECT | Q74: 1 / 12 CT | S74: 1005-04 / GLOVES, YELLOW RUBBER XLARGE | T74: Labatt | V74: 8.98 | X74: 0 | Y74: 0 | Z74: 0 | AA74: 0
B75: 70 | C75: 5057 | D75: GLOVE VINYL LARGE | E75: GLOVE, VINYL, LARGE, FOOD GRADE, POWDER FREE | F75: SPECIFY | H75: CS | I75: 1000 | J75: CT | K75: 300 | L75: 17.39 | M75: 5217 | N75: 0.01739 | O75: GVP9-LG-HH | P75: The Safety Zone | Q75: 1000 | T75: Starr | U75: 20.92 | V75: 27.73 | W75: 24.16 | X75: 17.39 | Y75: 27.95 | Z75: 48.8 | AA75: 0
B76: 71 | C76: 5059 | D76: GLOVE VINYL MED | E76: GLOVE, VINYL,MED, FOOD GRADE, POWDER FREE | F76: SPECIFY | H76: CS | I76: 1000 | J76: CT | K76: 350 | L76: 17.39 | M76: 6086.5 | N76: 0.01739 | O76: GVP9-MD-HH | P76: The Safety Zone | Q76: 1000 | T76: Starr | U76: 20.92 | V76: 27.73 | W76: 24.09 | X76: 17.39 | Y76: 27.83 | Z76: 48.8 | AA76: 0
B77: 72 | C77: 5058 | D77: GLOVE VINYL SMALL | E77: GLOVE, VINYL SMALL, FOOD GRADE, POWDER FREE | F77: SPECIFY | H77: CS | I77: 1000 | J77: CT | K77: 7 | L77: 12.75789474 | M77: 89.30526316 | N77: 0.01275789474 | O77: 5989864 | P77: SYS CLS | Q77: 4/100 CT | R77: N | T77: Sysco | U77: 20.92 | V77: 27.73 | W77: 23.53 | X77: 17.39 | Y77: 12.76 | Z77: 48.8 | AA77: 0
B78: 73 | C78: 5135 | D78: GLOVE VINYL X-LARGE | E78: GLOVE, VINYL, X-LARGE, FOOD GRADE, POWDER FREE | F78: SPECIFY | H78: CS | I78: 1000 | J78: CT | K78: 100 | L78: 17.39 | M78: 1739 | N78: 0.01739 | O78: GVP9-XL-HH | P78: The Safety Zone | Q78: 1000 | T78: Starr | U78: 20.92 | V78: 27.73 | W78: 24.29 | X78: 17.39 | Y78: 27.93 | Z78: 48.8 | AA78: 0
B79: 74 | C79: 5008 | D79: GREASTRIP PLS | E79: CLEANER, GREASTRIP PLS, 32 OZ | F79: ECO-LABS OR APPROVED EQUIVALENT | H79: CS | I79: 6 | J79: BTL | K79: 5 | L79: 42.47 | M79: 212.35 | N79: 7.078333333 | O79: 8428401 | P79: ECOLAB | Q79: 6 / 32 OZ | S79: 6129777 / GREASTRIP PLUS | T79: Labatt | V79: 42.47 | W79: 99.19 | X79: 0 | Y79: 94.68 | Z79: 0 | AA79: 0
B80: 75 | C80: 5009 | D80: GRILL BRICK | E80: GRILL, BRICK | F80: SPECIFY | H80: CS | I80: 12 | J80: CT | K80: 5 | L80: 10.45263158 | M80: 52.26315789 | N80: 0.8710526316 | O80: 5793963 | P80: SYSCO | Q80: 12/8X4IN | R80: N | T80: Sysco | U80: 17.56 | V80: 12.39 | W80: 16.59 | X80: 19.42 | Y80: 10.45 | Z80: 0 | AA80: 0
B81: 76 | C81: 5022 | D81: HAIR NET X-LARGE BLACK | E81: NYLON, 1/16 IN HONEYCOMB, BLACK, FDA ACCEPTED, EXTRA LARGE | F81: SPECIFY | H81: CS | I81: 144 | J81: CT | K81: 120 | L81: 8.7 | M81: 1044 | N81: 0.06041666667 | O81: DPLW-28-BK | P81: The Safety Zone | Q81: 144 | T81: Starr | U81: 10.14 | V81: 10.7 | X81: 8.7 | Y81: 0 | Z81: 0 | AA81: 0
B82: 77 | C82: 5137 | D82: HAIR NET X-LARGE LIGHT BROWN | E82: NYLON, 1/16 IN HONEYCOMB, BROWN, FDA ACCEPTED, EXTRA LARGE | F82: SPECIFY | H82: CS | I82: 144 | J82: CT | K82: 200 | L82: 8.7 | M82: 1740 | N82: 0.06041666667 | O82: DPLW-28-BR | P82: The Safety Zone | Q82: 144 | T82: Starr | U82: 10.14 | V82: 9.85 | W82: 12.85 | X82: 8.7 | Y82: 86.98 | Z82: 10.94 | AA82: 0
B83: 78 | C83: 5000 | D83: LAUNDRY DETERGENT LIQUID | E83: LIQUID, HE, GALLON | F83: TIDE/ALL OR APPROVED EQUIVALENT | H83: CS | I83: 4 | J83: GAL | K83: 325 | L83: 24 | M83: 7800 | N83: 6 | O83: PGC40367 | P83: Proctor & Gamble | Q83: 4 | S83: 138 oz Container | T83: Starr | V83: 52.53 | X83: 24 | Y83: 27.51 | Z83: 0 | AA83: 0
B84: 79 | C84: 5060 | D84: LINER HALF 6IN DEEP 23X14 | E84: NSF CERIFIED, OVENABLE PLASTIC PAN LINER TO 400 F, PREFORMED CONTOUR FIT. SIZE 23X14 | F84: SPECIFY | H84: CS | I84: 50 | J84: CT | K84: 315 | L84: 4.568421053 | M84: 1439.052632 | N84: 0.09136842105 | O84: 6239552 | P84: SYSCO | Q84: 1/250CT | R84: N | T84: Sysco | U84: 23.28 | V84: 23.42 | W84: 47.93 | X84: 0 | Y84: 4.57 | Z84: 0 | AA84: 0
B85: 80 | C85: 5023 | D85: LINER HOTEL PAN DEEP 34X18 | E85: NSF CERIFIED, OVENABLE PLASTIC PAN LINER TO 400 F, PREFORMED CONTOUR FIT. SIZE 34x18 | F85: SPECIFY | H85: CS | I85: 50 | J85: CT | K85: 500 | L85: 21.52631579 | M85: 10763.15789 | N85: 0.4305263158 | O85: 9719816 | P85: HANGARD | Q85: 100/34X16 | R85: N | T85: Sysco | U85: 22.26 | V85: 25.21 | W85: 27.93 | X85: 0 | Y85: 21.53 | Z85: 0 | AA85: 0
B86: 81 | C86: 5104 | D86: LINER PAN 4IN 34x12 | E86: NSF CERIFIED, OVENABLE PAN LINER TO 400 F, 4 IN 34x12 | F86: SPECIFY | H86: CS | I86: 100 | J86: CT | K86: 25 | L86: 35.79 | M86: 894.75 | N86: 0.3579 | P86: PanSaver | Q86: 100 | R86: No | S86: We stock this brand, but not this item. We will bring into stock if awarded. | T86: BEK | U86: 35.79 | V86: 38.12 | W86: 58.79 | X86: 0 | Y86: 0 | Z86: 0 | AA86: 0
B87: 82 | C87: 5024 | D87: LINER SHEET PAN 16 3/8 X 24 | E87: NSF CERIFIED, OVENABLE PAN LINER TO 400 F, 16 3/8 X 25 | F87: SPECIFY | H87: CS | I87: 1000 | J87: CT | K87: 200 | L87: 31.71 | M87: 6342 | N87: 0.03171 | O87: 7145551 | P87: PRIME SOUR | Q87: 1 / 1000 CT | S87: 75003991 / PAN LINER, 16 3/8 X 24 | T87: Labatt | U87: 42.5 | V87: 31.71 | W87: 37.61 | X87: 0 | Y87: 32.42 | Z87: 0 | AA87: 0
B88: 83 | C88: 5049 | D88: LINER TRASH CAN 33 GAL | E88: LOW-DENSITY CAN LINERS, 33X39, WHITE, FLAT PACKED, .7 MIL, FITS 33 GALLON | F88: SPECIFY | H88: CS | I88: 150 | J88: CT | K88: 50 | L88: 11.63157895 | M88: 581.5789474 | N88: 0.07754385965 | O88: 1763192 | P88: SYS REL | Q88: 100/33 GAL | S88: Lowest bid sample was not approved by staff and other had a minimum order | T88: Sysco | U88: 29.36 | V88: 14.76 | W88: 18.5 | X88: 0 | Y88: 11.63 | Z88: 11.32 | AA88: 11.5
B89: 84 | C89: 5050 | D89: LINER TRASH CAN 60 GAL | E89: LOW-DENSITY CAN LINERS, 38X58, BLACK, FLAT PACK, 1.5 MIL, FITS 60 GALLON | F89: SPECIFY | H89: CS | I89: 100 | J89: CT | K89: 300 | L89: 19.87368421 | M89: 5962.105263 | N89: 0.1987368421 | O89: 1763846 | P89: SYS REL | Q89: 100/60 GAL | R89: N | T89: Sysco | U89: 39.45 | V89: 27.54 | W89: 51.34 | X89: 0 | Y89: 19.87 | Z89: 19.98 | AA89: 21.5
B90: 85 | C90: 5010 | D90: MOP HANDLE | E90: JAW STYLE HANDLE, RECOMMENDED FOR WIDE HEADBANDS, MADE OF FIBERGLASS MEASURES 1" DIAMETER BY 60" LENGTH | F90: SPECIFY | H90: EA | I90: 1 | J90: CT | K90: 24 | L90: 8.14 | M90: 195.36 | N90: 8.14 | O90: 4180279 | P90: SYSCO | Q90: 1/60" | R90: N | T90: Sysco | U90: 13.53 | V90: 8.26 | W90: 12.1 | X90: 0 | Y90: 8.14 | Z90: 0 | AA90: 0
B91: 86 | C91: 5011 | D91: MOP HEAD MEDIUM BLUE | E91: MOP HEAD, MEDIUM, BLUE, WIDE BAND ATOMIC LOOP | F91: SPECIFY | H91: EA | I91: 1 | J91: EA | K91: 50 | L91: 6.68 | M91: 334 | N91: 6.68 | O91: A02602 | Q91: 1ea. | S91: Lowest had wrong item | T91: Starr | U91: 11.19 | V91: 3.26 | W91: 11.43 | X91: 6.68 | Y91: 11.41 | Z91: 0 | AA91: 0
B92: 87 | C92: 5146 | D92: MOP HEAD SMALL BLUE | E92: MOP HEAD, SMALL, BLUE, WIDE BAND ATOMIC LOOP | F92: SPECIFY | H92: EA | I92: 1 | J92: EA | K92: 50 | L92: 4.62 | M92: 231 | N92: 4.62 | O92: A02601 | Q92: 1ea. | S92: Lowest had wrong item | T92: Starr | V92: 2.56 | X92: 4.62 | Y92: 0 | Z92: 0 | AA92: 0
B93: 88 | C93: 5106 | D93: NAPKIN EXPRESS | E93: TORK ADVANCED XPRESSNAP DISPENSER NAPKIN, INTERFOLD, WHITE 13X8.5 (OPEN) 6.5X4.25 (FOLDED) 500 1 PLY | F93: TORK OR APPROVED EQUIVALENT | H93: CS | I93: 6000 | J93: CT | K93: 275 | L93: 28.68 | M93: 7887 | N93: 0.00478 | O93: 672801 | P93: SELECT | Q93: 12 / 250 CT | S93: N050 / NAPKIN, DINNER 1PLY 1/8 FOLD | T93: Labatt | V93: 28.68 | X93: 44.29 | Y93: 46.74 | Z93: 0 | AA93: 0
B94: 89 | D94: OVEN MITT NEOPRENE | E94: OVEN MITT, 17", HEAT RESISTANT UP TO 500, NON-SLIP, STAIN AND WATER RESISTANT, DISHWASHER SAFE, TEXTURED NEOPRENE | F94: SPECIFY | H94: CS | I94: 24 | J94: 1 CT | K94: 10 | L94: 21.65 | M94: 216.5 | N94: 0.9020833333 | O94: 918943 | P94: San Jamar | Q94: 1 | R94: Yes | T94: BEK | U94: 21.65 | V94: 25.18 | W94: 109.38 | X94: 0 | Y94: 44.58 | Z94: 0 | AA94: 0
B95: 90 | C95: 5028 | D95: PAN FOIL STEAM TABLE | E95: FULL SIZE FOIL STEAM TABLE PAN, 50/20X12X2 | F95: SPECIFY | H95: CS | I95: 40 | J95: CT | K95: 20 | L95: 20.54 | M95: 410.8 | N95: 0.5135 | O95: 6953435 | P95: HFA | Q95: 1 / 50 CT | S95: 2050-45-50 / LID, FOIL FULL SZ STEAM PAN | T95: Labatt | V95: 20.54 | W95: 51.23 | X95: 0 | Y95: 28.74 | Z95: 0 | AA95: 0
B96: 91 | C96: 5061 | D96: PAPER BATHROOM TISSUE 2 PLY | E96: 2PLY - UNIVERSAL ROLL TISSUE -- 96 PER CASE | F96: SPECIFY | H96: CS | I96: 96 | J96: CT | K96: 55 | L96: 32.49 | M96: 1786.95 | N96: 0.3384375 | O96: 59344215 | P96: Roses | Q96: 96 | T96: Starr | V96: 41.99 | W96: 41.6 | X96: 32.49 | Y96: 39.43 | Z96: 0 | AA96: 0
B97: 92 | C97: 5140 | D97: PAPER NAPKINS COCKTAIL | E97: 1 PLY, 8.7x12, DAINTY, FOLDED, WHITE | F97: TORK OR APPROVED EQUIVALENT | H97: CS | I97: 4000 | J97: CT | K97: 10 | L97: 13.37894737 | M97: 133.7894737 | N97: 0.003344736842 | O97: 4458574 | P97: SYS CLS | Q97: 8/500CT | R97: N | T97: Sysco | V97: 13.45 | W97: 17.33 | X97: 0 | Y97: 13.38 | Z97: 0 | AA97: 0
B98: 93 | C98: 5134 | D98: PAPER NAPKINS DINNER | E98: 2 PLY, WHITE, 1/8 FOLD, 15x17 | F98: SPECIFY | H98: CS | I98: 3000 | J98: CT | K98: 10 | L98: 38.5 | M98: 385 | N98: 0.01283333333 | O98: 59340040 | P98: Roses | Q98: 3000 | T98: Starr | U98: 40.79 | V98: 39.16 | X98: 38.5 | Y98: 43.47 | Z98: 0 | AA98: 0
B99: 94 | C99: 5125 | D99: PAPER TABLE COVERS | E99: LINEN LIKE WITH PLASTIC BACKING, WHITE, 50x108 | F99: SPECIFY | H99: CS | I99: 24 | J99: CT | K99: 55 | L99: 44.18 | M99: 2429.9 | N99: 1.840833333 | O99: 5875323 | P99: SYSCO | Q99: 25/54X108 | R99: N | T99: Sysco | V99: 66.48 | W99: 60.94 | X99: 0 | Y99: 44.18 | Z99: 0 | AA99: 0
B100: 95 | C100: 5086 | D100: PLATE 3 CMPT BLACK FOAM | E100: PLATE, 3 CMPT, LAMIINAETED BLACK FOAM 10.25 IN | F100: SPECIFY | H100: CS | I100: 500 | J100: CT | K100: 5 | L100: 33.11 | M100: 165.55 | N100: 0.06622 | O100: 7295501 | P100: PACTIV | Q100: 1 / 540 CT | S100: TKB044D0000Y / PLATE, 10.25" BLK 3CMP LAM | T100: Labatt | U100: 43.68 | V100: 33.11 | X100: 0 | Y100: 0 | Z100: 0 | AA100: 0
B101: 96 | C101: 5085 | D101: PLATE BLACK FOAM 10.25" | E101: PLATE, 10.25 IN, LAMINATED BLACK FOAM | F101: SPECIFY | H101: CS | I101: 500 | J101: CT | K101: 2 | L101: 23.31 | M101: 46.62 | N101: 0.04662 | O101: 2969031 | P101: Propak | Q101: 200ct. | S101: Stocked, but ours is a 9.25 x 9.25 x 3 | T101: Shamrock | U101: 43.68 | V101: 33.11 | W101: 23.31 | X101: 0 | Y101: 29.4 | Z101: 0 | AA101: 0
B102: 97 | C102: 5082 | D102: PLATE BLACK FOAM 6" | E102: PLATE, 6 IN, BLACK, LAMINATED FOAM | F102: SPECIFY | H102: CS | I102: 1000 | J102: CT | K102: 15 | L102: 14.45 | M102: =SUM(L102*K102) -> 216.75 | N102: =IFERROR(SUM(L102/I102),0) -> 0.01445 | O102: 7295514 | P102: PACTIV | Q102: 1 / 1000 CT | S102: 0TKB0006000Y / PLATE, BLK 6" LAMINATED | T102: Labatt | U102: 15.39 | V102: 14.45 | W102: 46.28 | X102: 0 | Y102: 26.13 | Z102: 0 | AA102: 0
B103: 98 | C103: 5128 | D103: PLATTER OVAL | E103: OVAL, WHITE LAMINATED FOAM, 9 INCH | F103: SPECIFY | H103: CS | I103: 500 | J103: CT | K103: 15 | L103: 20.17 | M103: 302.55 | N103: 0.04034 | O103: 7661465 | P103: PLACESETTR | Q103: 800 / 7 X 9 | S103: 0TH10045000Y / PLATTER, WHITE NON-LAMINATED | T103: Labatt | U103: 37.16 | V103: 20.17 | W103: 24.65 | X103: 0 | Y103: 43.49 | Z103: 0 | AA103: 0
B104: 99 | C104: 5108 | D104: POT HOLDERS | E104: POT HOLDER 8x11 TERRY CLOTH | F104: SPECIFY | H104: CS | I104: 1 | J104: EA | K104: 150 | L104: 2.85 | M104: 427.5 | N104: 2.85 | O104: 115582 | P104: John Ritz | Q104: 1 | R104: No | T104: BEK | U104: 2.85 | V104: 3.94 | W104: 17.04 | X104: 0 | Y104: 5.59 | Z104: 0 | AA104: 0
B105: 100 | C105: 5014 | D105: SCOURING PAD HVY NYLON 6X9 GR | E105: SCOURING PAD, HVY NYLON, 6X9, GREEN | F105: SPECIFY | H105: CS | I105: 20 | J105: CT | K105: 75 | L105: 3.473684211 | M105: 260.5263158 | N105: 0.1736842105 | O105: 1376805 | P105: SYSCO | Q105: 1/20CT | R105: N | T105: Sysco | U105: 7.8 | V105: 4.28 | W105: 5.29 | X105: 0 | Y105: 3.47 | Z105: 0 | AA105: 0
B106: 101 | C106: 5015 | D106: SCOURING PADS STAINLESS STEAL | E106: SCOURING PADS, STAINLESS STEAL, 50 GR 1.75 OZ | F106: SPECIFY | H106: CS | I106: 12 | J106: CT | K106: 45 | L106: 3.81 | M106: 171.45 | N106: 0.3175 | O106: 5663006 | P106: ACS | Q106: 1 / 12 CT | S106: 434PP / SCRUBBER, SS, 50GR | T106: Labatt | U106: 15.12 | V106: 3.81 | W106: 4.92 | X106: 0 | Y106: 15.57 | Z106: 0 | AA106: 0
B107: 102 | C107: 5012 | D107: SCOURING POWDER | E107: CLEANER, SCOURING POWDER, 21 OZ | F107: SPECIFY | H107: CS | I107: 24 | J107: BTL | K107: 2 | L107: 25.6 | M107: 51.2 | N107: 1.066666667 | O107: 5499041 | P107: COLGATE | Q107: 24 / 21 OZ | S107: 11904278 / ALL PURPOSE, PWD BLE AJAX | T107: Labatt | V107: 25.6 | W107: 26.6 | X107: 0 | Y107: 27.91 | Z107: 0 | AA107: 0
B108: 103 | C108: 5129 | D108: STERNO | E108: STERNO, GEL, NO WICK, 2 HOUR BURN | F108: STERNO OR APPROVED EQUIVALENT | H108: CS | I108: 72 | J108: EA | K108: 15 | L108: 41.3 | M108: 619.5 | N108: 0.5736111111 | O108: 6561208 | P108: STERNO | Q108: 72 / 6.7 OZ | S108: 20660 / FUEL, METHANOL DISH 2 HR | T108: Labatt | U108: 61.57 | V108: 41.3 | W108: 44.2 | X108: 0 | Y108: 57.29 | Z108: 0 | AA108: 0
B109: 104 | C109: 5119 | D109: STIRRER | E109: STIRRER BEVERAGE | F109: SPECIFY | H109: CS | I109: 1000 | J109: CT | K109: 10 | L109: 15.03 | M109: 150.3 | N109: 0.01503 | O109: 7905126 | P109: JRMI | Q109: 10 / 1000 CT | S109: STNST1270501 / STIRRER, 5"-5.5" BLK UW | T109: Labatt | U109: 17.93 | V109: 15.03 | W109: 21.06 | X109: 0 | Y109: 17.19 | Z109: 0 | AA109: 0
B110: 105 | D110: STRAWS | E110: 7.75" PLASTIC | F110: SPECIFY | H110: CS | I110: 24 | J110: 500 CT | K110: 75 | L110: 37.52 | M110: 2814 | N110: 1.563333333 | O110: 7905130 | P110: JRMI | Q110: 24 / 500 CT | S110: Lowest not lowest by case count | T110: Labatt | U110: 13.86 | V110: 37.52 | W110: 47.33 | X110: 0 | Y110: 56.71 | Z110: 0 | AA110: 0
B111: 106 | C111: 5036 | D111: THERMOMETER DIAL | E111: THERMOMETER, DIAL, DURABLE STAINLESS STEEL STEM. TEMPERATURE RANGE OF 0°F - 220°F | F111: SPECIFY | H111: CS | I111: 1 | J111: CT | K111: 25 | L111: 2.36 | M111: 59 | N111: 2.36 | O111: 3321231 | P111: Componet | Q111: 1ct. | S111: Stocked | T111: Shamrock | V111: 5.8 | W111: 2.36 | X111: 0 | Y111: 6.79 | Z111: 0 | AA111: 0
B112: 107 | C112: 5037 | D112: THERMOMETER DIGITAL FAHRENHEIT | E112: EASY-TO-READ DIGITAL DISPLAY. ON/OFF SWITCH FOR LONG BATTERY LIFE. DURABLE STAINLESS STEEL STEM. POCKET CASE AND EXTRA BATTERY INCLUDED. TEMPERATURE RANGE OF 0°F - 220°F | F112: SPECIFY | H112: CS | I112: 1 | J112: CT | K112: 150 | L112: 6.48 | M112: 972 | N112: 6.48 | O112: 3513501 | P112: Componet | Q112: 1ct. | S112: Stocked | T112: Shamrock | U112: 19.89 | V112: 30.38 | W112: 6.48 | X112: 0 | Y112: 6.79 | Z112: 0 | AA112: 0
B113: 108 | C113: 5038 | D113: THERMOMETER FREEZER | E113: FREEZER GUIDE THERMOMETER, 4.875 INCH -- 1 EACH TEMPERATURE RANGE OF -40°F - 100°F | F113: SPECIFY | H113: CS | I113: 1 | J113: CT | K113: 20 | L113: 2.74 | M113: 54.8 | N113: 2.74 | O113: 3513481 | P113: Componet | Q113: 1ct. | S113: Stocked - Dual Freezer & Refrigerator | T113: Shamrock | V113: 4.37 | W113: 2.74 | X113: 0 | Y113: 8.15 | Z113: 0 | AA113: 0
B114: 109 | C114: 5039 | D114: THERMOMETER OVEN | E114: EASY-TO-READ 2 1/4" DIAL. RANGE 100 F TO 600 F. DURABLE STAINLESS STEEL. HANGS OR STANDS. NSF LISTED. MADE TO GO INSIDE OVEN | F114: SPECIFY | H114: CS | I114: 1 | J114: CT | K114: 5 | L114: 3.27 | M114: 16.35 | N114: 3.27 | O114: 3985941 | P114: Componet | Q114: 1ct. | S114: Stocked | T114: Shamrock | V114: 4.71 | W114: 3.27 | X114: 0 | Y114: 7.37 | Z114: 0 | AA114: 0
B115: 110 | C115: 5040 | D115: THERMOMETER REFRIGERATOR | E115: REFRIGERATOR THERMOMETER- DUAL, STAINLESS STEEL, 20/80-TEMPERATURE RANGE OF -40°F - 100°F | F115: SPECIFY | H115: CS | I115: 1 | J115: CT | K115: 40 | L115: 2.74 | M115: 109.6 | N115: 2.74 | O115: 3513481 | P115: Componet | Q115: 1ct. | S115: Stocked - Dual Refrigerator & Freezer | T115: Shamrock | V115: 3.18 | W115: 2.74 | X115: 0 | Y115: 17.95 | Z115: 0 | AA115: 0
B116: 111 | C116: 5145 | D116: TOWEL MICROFIBER | E116: TOWEL, BAR MOP, MICROFIBER CLOTH 16X16, ALL WHITE BUT WILL ACCEPT ASSORTED COLORS | F116: SPECIFY | H116: CS | I116: 12 | J116: CT | K116: 200 | L116: 5.88 | M116: 1176 | N116: 0.49 | O116: 794504B | P116: Members Mak | Q116: 12 | S116: 36 Per Package | T116: Starr | V116: 20.5 | W116: 14.63 | X116: 5.88 | Y116: 17.68 | Z116: 0 | AA116: 0
B117: 112 | C117: 5105 | D117: TOWEL PAPER MULTIFOLD | E117: TOWEL PAPER, C FOLD TO FIT ADVANCE TABCO 3.25X11.25 | F117: SPECIFY | H117: CS | I117: 4000 | J117: CT | K117: 20 | L117: 17.04 | M117: 340.8 | N117: 0.00426 | O117: GEN1510B | P117: General | Q117: 4000 | T117: Starr | V117: 19.52 | X117: 17.04 | Y117: 19.78 | Z117: 0 | AA117: 0
B118: 113 | C118: 5150 | D118: TOWEL PAPER ROLL | E118: TOWEL PAPER ROLL 8”X950’ WHITE HARD ROLL TOWEL 6/CS | F118: SCOTT OR APPROVED EQUIVALENT | G118: 2000 | H118: CS | I118: 6 | J118: ROLL | K118: 20 | L118: 17.75 | M118: 355 | N118: 2.958333333 | O118: 6819105 | P118: SELECT | Q118: 12 / 8"X350FT | S118: H235 / TOWEL ROLL BROWN 8'' X 350FT | T118: Labatt | V118: 17.75 | X118: 0 | Y118: 51.02 | Z118: 0 | AA118: 0
B119: 114 | C119: 5030 | D119: TOWEL PAPER SINGLE FOLD NATURAL | E119: TOWEL, PAPER, SINGLE FOLD, NATURAL 10.25X9.25 | F119: SPECIFY | H119: CS | I119: 4000 | J119: CT | K119: 350 | L119: 18.82105263 | M119: 6587.368421 | N119: 0.004705263158 | O119: 4458671 | P119: ERTHPLS | Q119: 16/250CT | R119: N | T119: Sysco | V119: 19.12 | W119: 19.94 | X119: 19.22 | Y119: 18.82 | Z119: 0 | AA119: 0
B120: 115 | C120: 5002 | D120: TRAY 5 CMPT BLACK | E120: TRAY, 5 COMPARTMENT, BLACK FOAM, HEAVY DUTY | F120: SPECIFY | H120: CS | I120: 500 | J120: CT | K120: 5000 | L120: 19.7 | M120: 98500 | N120: 0.0394 | O120: 0 | P120: SATINWARE | Q120: 4 / 125 CT | S120: 71443B / 5 COMPARTMENT TRAY BLK | T120: Labatt | U120: 19.75 | V120: 19.7 | X120: 25 | Y120: 0 | Z120: 0 | AA120: 0
B121: 116 | D121: TRAY BOWL & LID COMBO | E121: DURABLE AND CRACK RESISTANT, SECURE TAB LOCKING SYSTEM, INTERLOCKING LIDS, 16" SQUARE 4 COMPARTMENT TRAY w/CLEAR LID AND AN INSIDE 12" ROUND BOWL w/CLEAR LID COMBO SET | F121: SYSCO IMP OR APPROVED EQUIVALENT | G121: 5077534 5077526 | H121: CS | J121: CT | K121: 10 | M121: 0 | N121: 0 | V121: 0 | X121: 0 | Y121: 0 | Z121: 0 | AA121: 0
B122: 117 | C122: 5120 | D122: TRAY CATERING 18IN | E122: DURABLE AND CRACK RESISTANT, SECURE TAB LOCKING SYSTEM, INTERLOCKING LIDS - 16 IN ROUND, BLACK HARD PLASTIC | F122: SYSCO OR APPROVED EQUIVALENT | G122: 5948948 | H122: CS | I122: 36 | J122: CT | K122: 10 | L122: 36.3 | M122: 363 | N122: 1.008333333 | O122: 6963016 | P122: HFA | Q122: 1 / 25 CT | S122: 4019-120-25 / TRAY, RND 18' EMBOSSED FOIL | T122: Labatt | V122: 36.3 | W122: 56.98 | X122: 0 | Y122: 0 | Z122: 0 | AA122: 0
B123: 118 | C123: 5094 | D123: TRAY CATERING 18IN LID | E123: DURABLE AND CRACK RESISTANT, SECURE TAB LOCKING SYSTEM, INTERLOCKING LIDS - 18 IN ROUND DOME LID, CLEAR | F123: SYSCO OR APPROVED EQUIVALENT | G123: 7432834 | H123: CS | I123: 36 | J123: CT | K123: 10 | L123: 26.29 | M123: 262.9 | N123: 0.7302777778 | O123: 6963017 | P123: HFA | Q123: 1 / 25 CT | S123: 4018DL-25 / LID,DOME FOR 18" ROUND TRAY | T123: Labatt | V123: 26.29 | W123: 35.2 | X123: 0 | Y123: 0 | Z123: 0 | AA123: 0
B124: 119 | C124: 5103 | D124: WRAP PLASTIC PVC FILM CUTTER | E124: CONTINUOUS LENGTH ROLLS WITH CUTTER, SIZE 24" X 2000 | F124: SPECIFY | H124: CS | I124: 1 | J124: CT | K124: 120 | L124: 17.03 | M124: 2043.6 | N124: 17.03 | O124: 877031 | P124: Pactiv | Q124: 24x2000 | R124: No | T124: BEK | U124: 17.03 | V124: 20.84 | W124: 22.86 | X124: 0 | Y124: 17.61 | Z124: 0 | AA124: 0

Sheet FRESH PRODUCE MASTER
B1: ROSWELL INDEPENDENT SCHOOL DISTRICT
B2: CAFETERIA FRESH PRODUCE BID 20-12 FOR 2020-21
B3: MUST BE RECEIVED BY MAY 7, 2020 ON CD-R OR FLASH DRIVE SEALED WITH SUPPORTING DOCUMENTS
A5: STOCK ID | B5: ITEM NO | C5: ITEM | D5: BID UNIT | F5: CASE WEIGHT | H5: BIDDERS NOTES | I5: Labatt | J5: Peterson | K5: Shamrock | L5: Sysco
B6: 1 | C6: APPLES BAGGED SLICED GREEN 1/2 CUP SERVING | D6: 200 | E6: CT | G6: LB | H6: Awarded to All Vendors | I6: 44.5 | J6: 25.02 | K6: 34.04 | L6: 0
B7: 2 | C7: APPLES BAGGED SLICED RED 1/2 CUP SERVING | D7: 200 | E7: CT | G7: LB | H7: Awarded to All Vendors | I7: 28.31 | J7: 0 | K7: 19.07 | L7: 33.87
B8: 3 | C8: APPLES BRAEBURN XF | D8: 88 | E8: CT | G8: LB | H8: Awarded to All Vendors | I8: 50 | J8: 0 | L8: 0
B9: 4 | C9: APPLES FUJI | D9: 100 | E9: CT | G9: LB | H9: Awarded to All Vendors | I9: 26.19 | J9: 0 | K9: 38.51 | L9: 34.96
A10: 4001 | B10: 5 | C10: APPLES GALA | D10: 100 | E10: CT | G10: LB | H10: Awarded to All Vendors | I10: 26.19 | J10: 0 | K10: 38.31 | L10: 29.85
B11: 6 | C11: APPLES GOLDEN DELICIOUS | D11: 138 | E11: CT | G11: LB | H11: Awarded to All Vendors | I11: 24.94 | J11: 0 | K11: 35.7 | L11: 78.62
B12: 7 | C12: APPLES GRANNY SMITH | D12: 113 | E12: CT | G12: LB | H12: Awarded to All Vendors | I12: 26.19 | J12: 0 | K12: 34.04 | L12: 60.3
A13: 4002 | B13: 8 | C13: APPLES JONAGOLDS | D13: 88 | E13: CT | G13: LB | H13: Awarded to All Vendors | I13: 50 | J13: 0 | L13: 0
A14: 4032 | B14: 9 | C14: APPLES PINK LADIES | D14: 88 | E14: CT | G14: LB | H14: Awarded to All Vendors | I14: 52 | J14: 0 | L14: 66.95
B15: 10 | C15: APPLES RED DELICIOUS | D15: 138 | E15: CT | G15: LB | H15: Awarded to All Vendors | I15: 23.69 | J15: 0 | K15: 28.57 | L15: 25.75
B16: 11 | C16: APPLES SLICE BAGGED | D16: 100 | E16: 2 OZ | G16: LB | H16: Awarded to All Vendors | I16: 28.31 | J16: 22.5 | K16: 19.07 | L16: 10.55
B17: 12 | C17: APPLES/GRAPES BAGGED | D17: 100 | E17: 2 OZ | G17: LB | H17: Awarded to All Vendors | J17: 0 | L17: 0
A18: 4003 | B18: 13 | C18: AVOCADO PULP | D18: 6 | E18: 2 LB | G18: LB | H18: Awarded to All Vendors | I18: 0 | J18: 0 | L18: 73.2
A19: 4004 | B19: 14 | C19: AVOCADOS HASS | D19: 32 | E19: CT | G19: LB | H19: Awarded to All Vendors | I19: 41.73 | J19: 0 | K19: 52.69 | L19: 56.2
B20: 15 | C20: BANANAS PETITE | D20: 150 | E20: CT | G20: LB | H20: Awarded to All Vendors | I20: 19.56 | J20: 0 | L20: 31.26
A21: 4005 | B21: 16 | C21: BLACKBERRIES | D21: 12 | E21: LB | G21: LB | H21: Awarded to All Vendors | I21: 24.94 | J21: 0 | K21: 23.49 | L21: 19.37
B22: 17 | C22: BLUEBERRIES | E22: LB | G22: LB | H22: Awarded to All Vendors | I22: 25.81 | J22: 0 | K22: 29.97 | L22: 33.98
B23: 18 | C23: BROCCOLI FLORETS | D23: 6 | E23: 3 LB | G23: LB | H23: Awarded to All Vendors | I23: 25.04 | J23: 0 | K23: 21.22 | L23: 37.31
A24: 4006 | B24: 19 | C24: CANTALOUPE | D24: 15 | E24: CT | G24: LB | H24: Awarded to All Vendors | I24: 18.81 | J24: 0 | K24: 23.06 | L24: 36.35
A25: 4007 | B25: 20 | C25: CANTALOUPE CUBES | D25: 5 | E25: LB | G25: LB | H25: Awarded to All Vendors | I25: 20.5 | J25: 0 | K25: 36.07 | L25: 19.72
B26: 21 | C26: CARROT BABY | D26: 4 | E26: 5 LB | G26: LB | H26: Awarded to All Vendors | I26: 19.89 | J26: 0 | K26: 12.2 | L26: 29.54
A27: 4008 | B27: 22 | C27: CARROT BABY BAGGED 2 OZ | D27: 100 | E27: CT | G27: LB | H27: Awarded to All Vendors | I27: 23.44 | J27: 0 | L27: 19.28
B28: 23 | C28: CARROTEENIE 2 OZ | D28: 100 | E28: CT | G28: LB | H28: Awarded to All Vendors | I28: 23.44 | J28: 0 | K28: 15.07 | L28: 0
B29: 24 | C29: CAULIFLOWER FLORETS | D29: 4 | E29: 3 LB | G29: LB | H29: Awarded to All Vendors | I29: 18 | J29: 0 | K29: 19.26 | L29: 21.7
A30: 4009 | B30: 25 | C30: CELERY STICKS | D30: 4 | E30: 5 LB | G30: LB | H30: Awarded to All Vendors | I30: 30.81 | J30: 0 | K30: 25.39 | L30: 38.56
A31: 4010 | B31: 26 | C31: CHERRIES RED TART DEHYDRATED WHOLE WITH OUT PITS | E31: LB | G31: LB | H31: Awarded to All Vendors | I31: 17 | J31: 0 | L31: 57.67
B32: 27 | C32: CHILE ANAHEIM | E32: LB | G32: LB | H32: Awarded to All Vendors | I32: 26.1 | J32: 0 | K32: 25.27 | L32: 0
B33: 28 | C33: CILANTRO | D33: 4 | E33: LB | G33: LB | H33: Awarded to All Vendors | I33: 16.25 | J33: 0 | K33: 15.85 | L33: 18.77
A34: 4031 | B34: 29 | C34: CLEMENTINE | G34: LB | H34: Awarded to All Vendors | I34: 55 | J34: 0 | L34: 37.25
B35: 30 | C35: CORN YELLOW | D35: 48 | E35: CT | G35: LB | H35: Awarded to All Vendors | I35: 26.19 | J35: 0 | K35: 40.66 | L35: 30.41
B36: 31 | C36: CRANBERRIES DEHYDRATED WHOLE | D36: 1 | E36: LB | G36: LB | H36: Awarded to All Vendors | I36: 19.56 | J36: 0 | K36: 24.94 | L36: 17.29
B37: 32 | C37: CUCUMBERS LG | D37: 5 | E37: LB | G37: LB | H37: Awarded to All Vendors | I37: 2.88 | J37: 0 | K37: 9.29 | L37: 9.66
A38: 4011 | B38: 33 | C38: GRAPE BAGGED | D38: 100 | E38: 2 OZ | G38: LB | H38: Awarded to All Vendors | I38: 52.34 | J38: 0 | L38: 0
B39: 34 | C39: GRAPE BLACK SEEDLESS | D39: 5 | E39: LB | G39: LB | H39: Awarded to All Vendors | I39: 0 | J39: 0 | L39: 0
B40: 35 | C40: GRAPE GREEN SEEDLESS | D40: 5 | E40: LB | G40: LB | H40: Awarded to All Vendors | I40: 15.61 | J40: 0 | K40: 44.71 | L40: 11.74
A41: 4013 | B41: 36 | C41: GRAPE RED SEEDLESS | D41: 5 | E41: LB | G41: LB | H41: Awarded to All Vendors | I41: 8.94 | J41: 0 | K41: 31.75 | L41: 12.75
A42: 4012 | B42: 37 | C42: GRAPE WHITE SEEDLESS | D42: 5 | E42: LB | G42: LB | H42: Awarded to All Vendors | I42: 15.61 | J42: 0 | L42: 0
B43: 38 | C43: GREENS BABY SPRING MIX | D43: 5 | E43: LB | G43: LB | H43: Awarded to All Vendors | I43: 7.89 | J43: 0 | L43: 0
B44: 39 | C44: GREENS SPRING MIX | D44: 5 | E44: LB | G44: LB | H44: Awarded to All Vendors | I44: 24.72 | J44: 0 | K44: 9.53 | L44: 25.29
B45: 40 | C45: HONEYDEW CUBES | D45: 5 | E45: LB | G45: LB | H45: Awarded to All Vendors | I45: 19.25 | J45: 0 | K45: 17.03 | L45: 18.56
B46: 41 | C46: HONEYDEWS | D46: 5 | E46: CT | G46: LB | H46: Awarded to All Vendors | I46: 17.69 | J46: 0 | K46: 20.57 | L46: 32.06
A47: 4014 | B47: 42 | C47: JALAPEÑO | D47: 5 | E47: LB | G47: LB | H47: Awarded to All Vendors | I47: 4.65 | J47: 0 | K47: 12.27 | L47: 16.6
A48: 4015 | B48: 43 | C48: JICAMA CUBED | D48: 12 | E48: LB | G48: LB | H48: Awarded to All Vendors | J48: 0 | K48: 23.62 | L48: 0
B49: 44 | C49: JICAMA STICKS | D49: 5 | E49: LB | G49: LB | H49: Awarded to All Vendors | I49: 18 | J49: 0 | L49: 0
B50: 45 | C50: KIWI FRUIT | D50: 33 | E50: CT | G50: LB | H50: Awarded to All Vendors | I50: 11.14 | J50: 0 | K50: 18.05 | L50: 23.76
A51: 4016 | B51: 46 | C51: LETTUCE ICEBERG SHRED | D51: 4 | E51: 5 LB | G51: LB | H51: Awarded to All Vendors | I51: 22.25 | J51: 0 | K51: 15.48 | L51: 18.4
A52: 4018 | B52: 47 | C52: LETTUCE ROMAINE CHOPPED | D52: 6 | E52: 2 LB | G52: LB | H52: Awarded to All Vendors | I52: 24.16 | J52: 0 | K52: 18.01 | L52: 24.59
B53: 48 | C53: LETTUCE ROMAINE SHRED | D53: 6 | E53: 2 LB | G53: LB | H53: Awarded to All Vendors | I53: 22.93 | J53: 0 | K53: 15.48 | L53: 18.35
B54: 49 | C54: MUSHROOM MEDIUM | D54: 10 | E54: LB | G54: LB | H54: Awarded to All Vendors | I54: 19.53 | J54: 0 | K54: 20.09 | L54: 19.69
A55: 4020 | B55: 50 | C55: NECTARINES | D55: 72 | E55: CT | G55: LB | H55: Awarded to All Vendors | I55: 25 | J55: 0 | L55: 47.44
B56: 51 | C56: ONION RED | D56: 25 | E56: LB | G56: LB | H56: Awarded to All Vendors | I56: 11.88 | J56: 0 | K56: 12.59 | L56: 12.72
A57: 4019 | B57: 52 | C57: ONION WHITE | D57: 25 | E57: LB | G57: LB | H57: Awarded to All Vendors | I57: 20.63 | J57: 0 | K57: 16.25 | L57: 35.05
B58: 53 | C58: ONION YELLOW | D58: 25 | E58: LB | G58: LB | H58: Awarded to All Vendors | I58: 16.25 | J58: 0 | K58: 11.89 | L58: 8.79
B59: 54 | C59: ORANGE WEDGES BAGGED | D59: 50 | E59: 4.7 OZ | G59: LB | H59: Awarded to All Vendors | J59: 0 | L59: 0
B60: 55 | C60: ORANGES | D60: 125 | E60: CT | G60: LB | H60: Awarded to All Vendors | I60: 28.31 | J60: 0 | K60: 23.11 | L60: 37.01
A61: 4021 | B61: 56 | C61: ORANGES BAGGED SLICED 1/2 CUP SERVING | D61: 200 | E61: CT | G61: LB | H61: Awarded to All Vendors | J61: 0 | L61: 0
B62: 57 | C62: ORANGES BLOOD | D62: 138 | E62: CT | G62: LB | H62: Awarded to All Vendors | I62: 40.5 | J62: 0 | L62: 19.45
B63: 58 | C63: ORANGES NAVEL | D63: 138 | E63: CT | G63: LB | H63: Awarded to All Vendors | I63: 40.5 | J63: 0 | L63: 42.37
B64: 59 | C64: ORANGES VALENCIA | D64: 138 | E64: CT | G64: LB | H64: Awarded to All Vendors | I64: 28.31 | J64: 0 | L64: 68.39
B65: 60 | C65: PAPAYAS | D65: 8 | E65: CT | G65: LB | H65: Awarded to All Vendors | I65: 41.25 | J65: 0 | L65: 53.57
B66: 61 | C66: PEACH | D66: 80 | E66: CT | G66: LB | H66: Awarded to All Vendors | I66: 31.25 | J66: 0 | L66: 30.88
B67: 62 | C67: PEARS ANJOU | D67: 100 | E67: CT | G67: LB | H67: Awarded to All Vendors | I67: 56.25 | J67: 0 | K67: 35.96 | L67: 21.34
B68: 63 | C68: PEARS BARTLETT | D68: 120 | E68: CT | G68: LB | H68: Awarded to All Vendors | I68: 57.14 | J68: 0 | L68: 0
A69: 4022 | B69: 64 | C69: PEARS COMICE | D69: 120 | E69: CT | G69: LB | H69: Awarded to All Vendors | I69: 57.5 | J69: 0 | L69: 0
B70: 65 | C70: PEARS RED | D70: 120 | E70: CT | G70: LB | H70: Awarded to All Vendors | I70: 45 | J70: 0 | L70: 40.82
B71: 66 | C71: PEAS BAGGED SNOW PEAS & CARROTS 1/2CUP SERVING | D71: 200 | E71: CT | G71: LB | H71: Awarded to All Vendors | J71: 0 | L71: 0
B72: 67 | C72: PEPPERS BELL GREEN | E72: LB | G72: LB | H72: Awarded to All Vendors | I72: 23.75 | J72: 0 | K72: 23.38 | L72: 31.57
B73: 68 | C73: PEPPERS BELL ORANGE | E73: LB | G73: LB | H73: Awarded to All Vendors | I73: 0 | J73: 0 | L73: 47.66
B74: 69 | C74: PEPPERS BELL RED | E74: LB | G74: LB | H74: Awarded to All Vendors | I74: 23.75 | J74: 0 | K74: 22.79 | L74: 31.72
B75: 70 | C75: PINEAPPLE CUBES | D75: 5 | E75: LB | G75: LB | H75: Awarded to All Vendors | I75: 21.75 | J75: 0 | K75: 43.96 | L75: 32.72
B76: 71 | C76: PINEAPPLE GOLDEN RIPE | D76: 8 | E76: CT | G76: LB | H76: Awarded to All Vendors | I76: 11.25 | J76: 0 | K76: 18.09 | L76: 24.79
B77: 72 | C77: PINEAPPLE SPEAR BAGGED | D77: 50 | E77: 2.7 OZ | G77: LB | H77: Awarded to All Vendors | I77: 0 | J77: 0 | L77: 50.04
A78: 4024 | B78: 73 | C78: PLUM BLACK 45 - 50 | D78: 50 | E78: CT | G78: LB | H78: Awarded to All Vendors | I78: 40 | J78: 0 | L78: 22.9
A79: 4025 | B79: 74 | C79: PLUM PURPLE 45 - 50 | D79: 50 | E79: CT | G79: LB | H79: Awarded to All Vendors | I79: 0 | J79: 0 | L79: 0
A80: 4026 | B80: 75 | C80: PLUM RED 45 - 50 | D80: 50 | E80: CT | G80: LB | H80: Awarded to All Vendors | I80: 40 | J80: 0 | L80: 45.61
B81: 76 | C81: POTATOES WHITE BAKING | D81: 80 | E81: CT | G81: LB | H81: Awarded to All Vendors | I81: 23.94 | J81: 0 | K81: 39.85 | L81: 14.64
A82: 4027 | B82: 77 | C82: POTATOES WHITE BAKING | D82: 10 | E82: LB | G82: LB | H82: Awarded to All Vendors | I82: 5.95 | J82: 0 | L82: 0
A83: 4028 | B83: 78 | C83: RADISH LOOSE | D83: 25 | E83: LB | G83: LB | H83: Awarded to All Vendors | I83: 36.44 | J83: 0 | K83: 34.5 | L83: 58.63
A84: 4030 | B84: 79 | C84: SALAD MIX 50/50 BABY SPINACH SPRING MIX | D84: 4 | E84: 5 LB | G84: LB | H84: Awarded to All Vendors | I84: 24.5 | J84: 0 | L84: 0
B85: 80 | C85: SALAD MIX 4 WAY BUTTER ROMAINE GREEN AND RED LEAF | D85: 4 | E85: 5 LB | G85: LB | H85: Awarded to All Vendors | I85: 24.5 | J85: 0 | L85: 23.1
B86: 81 | C86: SPINACH BABY | D86: 4 | E86: 2.5 LB | G86: LB | H86: Awarded to All Vendors | I86: 13.09 | J86: 0 | K86: 13.42 | L86: 23.14
B87: 82 | C87: STRAWBERRIES | D87: 8 | E87: LB | G87: LB | H87: Awarded to All Vendors | I87: 17.38 | J87: 0 | K87: 15.98 | L87: 39.89
B88: 83 | C88: TANGERINES | D88: 120 | E88: CT | G88: LB | H88: Awarded to All Vendors | I88: 58.75 | J88: 0 | L88: 61.43
B89: 84 | C89: TOMATOES CHERRY | D89: 10 | E89: LB | G89: LB | H89: Awarded to All Vendors | I89: 16.44 | J89: 0 | K89: 19.28 | L89: 42.83
B90: 85 | C90: WATERMELON SEEDLESS | D90: 4 | E90: EA | G90: LB | H90: Awarded to All Vendors | I90: 9.56 | J90: 0 | K90: 26.89 | L90: 34.19
I91: 0 | J91: 0 | K91: 0 | L91: 0

Sheet TALLY (hidden)
A1: CAFETERIA FOOD BID 20-10 FOR SCHOOL YEAR 2020-21
A5: CAFETERIA NON-FOOD BID 20-11 FOR 2020-21
A7: BEK | B7: 29210.46
A8: ITEM # | B8: 5 | C8: 7 | D8: 10 | E8: 21 | F8: 23 | G8: 33 | H8: 43 | I8: 53 | J8: 55 | K8: 57 | L8: 63 | M8: 81 | N8: 89 | O8: 99 | P8: 119
A12: CAFETERIA FRESH PRODUCE BID 20-12 FOR 2020-21
A14: Labatt | B14: 462484
A15: ITEM # | B15: 1 | C15: 2 | D15: 3 | E15: 4 | F15: 5 | G15: 6 | H15: 7 | I15: 8 | J15: 9 | K15: 10 | L15: 11 | M15: 13 | N15: 14 | O15: 15 | P15: 16 | Q15: 17 | R15: 18 | S15: 19 | T15: 20 | U15: 21 | V15: 22 | W15: 23 | X15: 24 | Y15: 25 | Z15: 26
B16: 27 | C16: 28 | D16: 29 | E16: 30 | F16: 31 | G16: 32 | H16: 33 | I16: 34 | J16: 35 | K16: 36 | L16: 37 | M16: 38 | N16: 39 | O16: 40 | P16: 41 | Q16: 42 | R16: 44 | S16: 45 | T16: 46 | U16: 47 | V16: 48 | W16: 49 | X16: 50 | Y16: 51 | Z16: 52
B17: 53 | C17: 55 | D17: 57 | E17: 58 | F17: 59 | G17: 60 | H17: 61 | I17: 62 | J17: 63 | K17: 64 | L17: 65 | M17: 67 | N17: 68 | O17: 69 | P17: 70 | Q17: 71 | R17: 72 | S17: 73 | T17: 74 | U17: 75 | V17: 76 | W17: 77 | X17: 78 | Y17: 79 | Z17: 80
B18: 81 | C18: 82 | D18: 83 | E18: 84 | F18: 85
A24: Peterson | B24: 10929.6
A25: ITEM # | B25: 1 | C25: 2 | D25: 3 | E25: 4 | F25: 5 | G25: 6 | H25: 7 | I25: 8 | J25: 9 | K25: 10 | L25: 11 | M25: 12 | N25: 13 | O25: 14 | P25: 15 | Q25: 16 | R25: 17 | S25: 18 | T25: 19 | U25: 20 | V25: 21 | W25: 22 | X25: 23 | Y25: 24 | Z25: 25
B26: 26 | C26: 27 | D26: 28 | E26: 29 | F26: 30 | G26: 31 | H26: 32 | I26: 33 | J26: 34 | K26: 35 | L26: 36 | M26: 37 | N26: 38 | O26: 39 | P26: 40 | Q26: 41 | R26: 42 | S26: 43 | T26: 44 | U26: 45 | V26: 46 | W26: 47 | X26: 48 | Y26: 49 | Z26: 50
B27: 51 | C27: 52 | D27: 53 | E27: 54 | F27: 55 | G27: 56 | H27: 57 | I27: 58 | J27: 59 | K27: 60 | L27: 61 | M27: 62 | N27: 63 | O27: 64 | P27: 65 | Q27: 66 | R27: 67 | S27: 68 | T27: 69 | U27: 70 | V27: 71 | W27: 72 | X27: 73 | Y27: 74 | Z27: 75
B28: 76 | C28: 77 | D28: 78 | E28: 79 | F28: 80 | G28: 81 | H28: 82 | I28: 83 | J28: 84 | K28: 85
A34: Shamrock | B34: 282042.1
A35: ITEM # | B35: 1 | C35: 2 | D35: 4 | E35: 5 | F35: 6 | G35: 7 | H35: 10 | I35: 11 | J35: 14 | K35: 16 | L35: 17 | M35: 18 | N35: 19 | O35: 20 | P35: 21 | Q35: 23 | R35: 24 | S35: 25 | T35: 27 | U35: 28 | V35: 30 | W35: 31 | X35: 32 | Y35: 35 | Z35: 36
B36: 39 | C36: 40 | D36: 41 | E36: 42 | F36: 43 | G36: 45 | H36: 46 | I36: 47 | J36: 48 | K36: 49 | L36: 51 | M36: 52 | N36: 53 | O36: 55 | P36: 62 | Q36: 67 | R36: 69 | S36: 70 | T36: 71 | U36: 76 | V36: 78 | W36: 81 | X36: 82 | Y36: 84 | Z36: 85
A43: Sysco | B43: 495155.5
A44: ITEM # | B44: 1 | C44: 2 | D44: 3 | E44: 4 | F44: 5 | G44: 6 | H44: 7 | I44: 8 | J44: 9 | K44: 10 | L44: 11 | M44: 12 | N44: 13 | O44: 14 | P44: 15 | Q44: 16 | R44: 17 | S44: 18 | T44: 19 | U44: 20 | V44: 21 | W44: 22 | X44: 23 | Y44: 24 | Z44: 25
B45: 26 | C45: 27 | D45: 28 | E45: 29 | F45: 30 | G45: 31 | H45: 32 | I45: 33 | J45: 34 | K45: 35 | L45: 36 | M45: 37 | N45: 38 | O45: 39 | P45: 40 | Q45: 41 | R45: 42 | S45: 43 | T45: 44 | U45: 45 | V45: 46 | W45: 47 | X45: 48 | Y45: 49 | Z45: 50
B46: 51 | C46: 52 | D46: 53 | E46: 54 | F46: 55 | G46: 56 | H46: 57 | I46: 58 | J46: 59 | K46: 60 | L46: 61 | M46: 62 | N46: 63 | O46: 64 | P46: 65 | Q46: 66 | R46: 67 | S46: 68 | T46: 69 | U46: 70 | V46: 71 | W46: 72 | X46: 73 | Y46: 74 | Z46: 75
B47: 76 | C47: 77 | D47: 78 | E47: 79 | F47: 80 | G47: 81 | H47: 82 | I47: 83 | J47: 84 | K47: 85
A55: CAFETERIA MILK BID 20-13 FOR SCHOOL YEAR 2020-21
A57: GH Dairy | B57: 310.5
A58: ITEM # | B58: 6
A60: Price's | B60: 5037.2185
A61: ITEM # | B61: 1 | C61: 2 | D61: 3 | E61: 4 | F61: 5
